Workbook

Sheet parameters
A1: Parameter sheet | Q1: do not remove | R1: NO | X1: sutter kocher parameters | AA1: standard parameters | AD1: # of goals
R2: YES | X2: 0 | Y2: 0.05 | AA2: 0 | AB2: 0.05 | AD2: 0 | AE2: 0.05
B3: NETWORK PARAMETERS | X3: 0.05 | Y3: 0.01 | AA3: 0.05 | AB3: 0.01 | AD3: 0.05 | AE3: 0.01
C4: min/average | D4: max/stdev | X4: 0 | Y4: 0.1 | AA4: 0 | AB4: 0.02 | AD4: 0 | AE4: 0.1
B5: initial level | C5: 0 | D5: 0.05 | R5: 1 | X5: 0.2 | Y5: 0.03 | AA5: 1 | AB5: 0.15 | AD5: 0.5 | AE5: 0.15
B6: resource consumption rate r | C6: 0.05 | D6: 0.01 | R6: 2 | X6: 0.5 | Y6: 0.25 | AA6: 0.5 | AB6: 0.25 | AD6: 0.5 | AE6: 0.25
B7: connection strength | C7: 0 | D7: 0.1 | R7: 3 | X7: 1 | Y7: 350 | AA7: 1 | AB7: 350 | AD7: 1 | AE7: 350
B8: genetic factor normal case | C8: 0.5 | D8: 0.15 | R8: 4 | X8: 10 | Y8: 25 | AA8: 10 | AB8: 25 | AD8: 10 | AE8: 25
B9: genetic factor emergenic case | C9: 0.5 | D9: 0.25 | R9: 5
B10: delay of onset | C10: 1 | D10: 350 | X10: 0.25 | AA10: 0.25 | AD10: 0.25
B11: maximum range | C11: 10 | D11: 25
B13: connection probability | C13: 0.25
X17: 0.004 | AA17: 0.002 | AD17: 0.005
B18: PRODUCT PARAMETERS
X19: 1 | AA19: 1 | AD19: 1
B20: Poisson parameter | C20: 0.005
X21: 0 | AA21: 0 | AD21: 0
B22: condition_value | C22: 1 | E22: simple model
B24: threshold_value | C24: 0 | X24: 0.7 | AA24: 0.7 | AD24: 0.7
B26: Correlated Frequency-tenacity (product model 3)
B27: correlation_F_and_T | C27: 0.7
X29: 10 | AA29: 10 | AD29: 10
X30: 2 | AA30: 2 | AD30: 2
B31: Simonton Creative Productivity Model | X31: 1 | AA31: 1 | AD31: 1
B32: production_constant | C32: 10
B33: decay_constant | C33: 2
B34: power_constant | C34: 1 | E34: Applies only to Condition Value 5
X36: 0.5 | AA36: 0.5 | AD36: 0.5
B37: Matthew Models
B38: Model 1 | X38: 0 | AA38: 0 | AD38: 0
B39: Simple_Matthew (condition value must be 5!) | C39: 0.5 | E39: Applies only to Condition Value 5
B40: Model 2 | X40: NO | AA40: NO | AD40: NO
B41: Product support parameter | C41: 0 | X41: 0.001 | AA41: 0.001 | AD41: 0.001
B42: Model 3
B43: matthew condition | C43: NO
B44: matthew parameter | C44: 0.001
X46: NO | AA46: NO | AD46: NO
B48: SECUNDARY PARAMETERS | X48: 0 | AA48: 0 | AD48: 0
B49: lifespan decline condition | C49: NO
X50: 0 | AA50: 0 | AD50: 0
B51: random walk multiplier | C51: 0
B53: random effect on growers | C53: 0

Sheet output
T28: type of model | U28: =model_type(model!E11) -> normal genetic model
U29: =IF(parameters!C43="YES","Matthew model","Standard model") -> Standard model
U31: =model_type2(model!L11) -> Product model 3 off.
A44: Specified values | G44: Growth and Connection parameters
B45: grower3 | C45: =H63 -> 0.5740356122
B46: products1 | C46: =collected_number_of_products -> 1 | G46: =model!A8:H18 -> grower | H46: endlevel | I46: initial40 | J46: rate40 | K46: carcap40 | L46: effect_type | M46: delay | N46: MyMax | P46: grower1 | Q46: grower2 | R46: grower3 | S46: grower4 | T46: grower5 | U46: grower6 | V46: grower7 | W46: grower8 | X46: grower9 | Y46: grower10
B47: =G65 -> initial level | C47: 0.01841085553 | G47: 1 | H47: 0.7392324218 | I47: 0.01669751406 | J47: 0.05092682943 | K47: 0.7388847627 | L47: 1 | M47: 1 | N47: 14 | O47: grower1 | P47: =model!I9:R18 -> 0 | Q47: 0.01714553537 | R47: 0 | S47: 0 | T47: 0 | U47: 0 | V47: -0.09563197814 | W47: -0.0833150027 | X47: -0.02844627027 | Y47: 0
B48: rate | C48: 0.04230283365 | G48: 2 | H48: 0.0001464627523 | I48: 0.01534633338 | J48: 0.05448371638 | K48: 0.5162982774 | L48: 1 | M48: 1 | N48: 14 | O48: grower2 | P48: 0.1537682293 | Q48: 0 | R48: 0 | S48: 0 | T48: 0 | U48: 0.1005438102 | V48: 0 | W48: 0 | X48: -0.04089210002 | Y48: 0
B49: carcap | C49: 0.3758006941 | G49: 3 | H49: 0.5740356122 | I49: 0.01841085553 | J49: 0.04230283365 | K49: 0.3758006941 | L49: 1 | M49: 1 | N49: 12 | O49: grower3 | P49: 0 | Q49: -0.0194471946 | R49: 0 | S49: 0 | T49: 0 | U49: -0.05974043994 | V49: 0 | W49: 0 | X49: 0 | Y49: 0
B50: grower 4 | C50: =H80 -> 0.4266862619 | G50: 4 | H50: 0.4266862619 | I50: 0.01927238405 | J50: 0.05748591676 | K50: 0.4266862658 | L50: 1 | M50: 1 | N50: 14 | O50: grower4 | P50: 0 | Q50: 0 | R50: 0.05229779754 | S50: 0 | T50: 0.02284022334 | U50: 0 | V50: 0 | W50: -0.05842723536 | X50: 0 | Y50: 0
B51: life span slope | C51: =collected_product_slope -> -9.48586606e-05 | G51: 5 | H51: 1.202663895 | I51: 0.03481343985 | J51: 0.0579026969 | K51: 0.866515278 | L51: 1 | M51: 147 | N51: 23 | O51: grower5 | P51: 0 | Q51: 0 | R51: 0 | S51: 0 | T51: 0 | U51: 0 | V51: 0 | W51: 0 | X51: -0.2160446574 | Y51: 0
G52: 6 | H52: 0.2906027191 | I52: 0.03410543799 | J52: 0.07209752005 | K52: 0.5539786194 | L52: 1 | M52: 1 | N52: 21 | O52: grower6 | P52: 0 | Q52: -0.2026103561 | R52: 0 | S52: 0 | T52: 0.04373094672 | U52: 0 | V52: 0 | W52: 0 | X52: 0 | Y52: 0
G53: 7 | H53: 0.0009398782184 | I53: 0.02922555804 | J53: 0.05968569602 | K53: 0.6020108528 | L53: 1 | M53: 47 | N53: 18 | O53: grower7 | P53: 0 | Q53: 0 | R53: 0 | S53: 0 | T53: 0.007349127016 | U53: 0 | V53: 0 | W53: 0 | X53: -0.0769863515 | Y53: -0.03032650553
G54: 8 | H54: 5.498475526e-11 | I54: 0.01916859746 | J54: 0.04321927875 | K54: 0.4246094515 | L54: 1 | M54: 125 | N54: 15 | O54: grower8 | P54: 0.04906929455 | Q54: 0 | R54: 0 | S54: -0.1882285317 | T54: 0 | U54: 0 | V54: 0.002828869967 | W54: 0 | X54: -0.05215757015 | Y54: 0.1341925151
G55: 9 | H55: 2.547388995e-40 | I55: 0.04763828516 | J55: 0.03119942177 | K55: 0.396554079 | L55: 1 | M55: 94 | N55: 23 | O55: grower9 | P55: -0.1271468516 | Q55: 0.07996354158 | R55: 0 | S55: -0.1554692021 | T55: 0 | U55: 0.153723412 | V55: -0.07662760226 | W55: 0 | X55: 0 | Y55: 0
G56: 10 | H56: 0.4183920952 | I56: 0.04140222371 | J56: 0.03397394519 | K56: 0.4226804018 | L56: 1 | M56: 292 | N56: 17 | O56: grower10 | P56: 0 | Q56: 0 | R56: 0 | S56: 0 | T56: 0 | U56: 0 | V56: 0 | W56: -0.05758916141 | X56: 0 | Y56: 0
G60: Growth Levels and Level parameters
H62: grower 3 | J62: best performance | O62: timeseries growers step = 20
G63: max value | H63: =H79 -> 0.5740356122 | J63: =MAX(H77:H86) -> 1.206186144 | N63: time | O63: =growers_in_steps_of_20 -> grower1 | P63: grower2 | Q63: grower3 | R63: grower4 | S63: grower5 | T63: grower6 | U63: grower7 | V63: grower8 | W63: grower9 | X63: grower10
G64: name | H64: grower 3 | J64: =Plookup(J63,H77:H86,G77:G86) -> grower5 | N64: 1 | O64: 0.01669751406 | P64: 0.01534633338 | Q64: 0.01841085553 | R64: 0.01927238405 | S64: 0.03481343985 | T64: 0.03410543799 | U64: 0.02922555804 | V64: 0.01916859746 | W64: 0.04763828516 | X64: 0.04140222371
G65: initial level | H65: =model!C11 -> 0.01841085553 | J65: =Plookup(J63,H77:H86,model!C9:C18) -> 0.03481343985 | N65: 21 | O65: 0.04227896322 | P65: 0.03432441306 | Q65: 0.04084243884 | R65: 0.04421768683 | S65: 0.03481343985 | T65: 0.1334532476 | U65: 0.02922555804 | V65: 0.01916859746 | W65: 0.04763828516 | X65: 0.04140222371
G66: rate | H66: =model!D11 -> 0.04230283365 | J66: =Plookup(J63,H77:H86,model!D9:D18) -> 0.0579026969 | N66: 41 | O66: 0.1059196074 | P66: 0.03975234804 | Q66: 0.08730591379 | R66: 0.09243379823 | S66: 0.03481343985 | T66: 0.3493987161 | U66: 0.02922555804 | V66: 0.01916859746 | W66: 0.04763828516 | X66: 0.04140222371
G67: carcap | H67: =model!E11 -> 0.3758006941 | J67: =my_lookup(J63,H77:H86,model!E9:E18) -> 0.866515278 | N67: 61 | O67: 0.2283080456 | P67: 0.02039546381 | Q67: 0.1721679218 | R67: 0.1647617799 | S67: 0.03481343985 | T67: 0.5000025539 | U67: 0.04755037359 | V67: 0.01916859746 | W67: 0.04763828516 | X67: 0.04140222371
G68: delay | H68: =model!G11 -> 1 | J68: =my_lookup(J63,H77:H86,model!G9:G18) -> 147 | N68: 81 | O68: 0.3850661848 | P68: 0.007976221177 | Q68: 0.2918633846 | R68: 0.240221942 | S68: 0.03481343985 | T68: 0.5068510983 | U68: 0.07225253309 | V68: 0.01916859746 | W68: 0.04763828516 | X68: 0.04140222371
G69: Max | H69: =model!H18 -> 17 | J69: =my_lookup(J63,H77:H86,model!H9:H18) -> 23 | N69: 101 | O69: 0.5184652387 | P69: 0.003509776859 | Q69: 0.4056777892 | R69: 0.2940849322 | S69: 0.03481343985 | T69: 0.4650422867 | U69: 0.08000540944 | V69: 0.01916859746 | W69: 0.04715051732 | X69: 0.04140222371
G70: connection sum | H70: =model!K20 -> 0.05229779754 | J70: =my_lookup(J63,H77:H86,connectionsum) -> 0.07392029707 | N70: 121 | O70: 0.6008822823 | P70: 0.001866181603 | Q70: 0.4780371448 | R70: 0.3240721877 | S70: 0.03481343985 | T70: 0.4225563194 | U70: 0.07219630299 | V70: 0.01916859746 | W70: 0.044442213 | X70: 0.04140222371
G71: total support | H71: =model!Z33 -> 0.01844352138 | J71: =my_lookup(J63,H77:H86,totalsupport) -> 0.02239812709 | N71: 141 | O71: 0.6424317213 | P71: 0.001155696071 | Q71: 0.5137039522 | R71: 0.3429725208 | S71: 0.03481343985 | T71: 0.3920419491 | U71: 0.05939697143 | V71: 0.01128400377 | W71: 0.04149761885 | X71: 0.04140222371
G72: number of products | H72: =model!T23 -> 1 | N72: 161 | O72: 0.6606178412 | P72: 0.000790294081 | Q72: 0.5315126777 | R72: 0.3596141497 | S72: 0.100568988 | T72: 0.3721925041 | U72: 0.04761894646 | V72: 0.005553406056 | W72: 0.03649035079 | X72: 0.04140222371
N73: 181 | O73: 0.680235033 | P73: 0.0005736871732 | Q73: 0.5428150713 | R73: 0.3792253558 | S73: 0.3748937211 | T73: 0.351957605 | U73: 0.03842524925 | V73: 0.002623750628 | W73: 0.01660314922 | X73: 0.04140222371
N74: 201 | O74: 0.7102142854 | P74: 0.0004450899823 | Q74: 0.5540199554 | R74: 0.4040024446 | S74: 0.8393630455 | T74: 0.3272486347 | U74: 0.03096514577 | V74: 0.001157864452 | W74: 0.001260148755 | X74: 0.04140222371
N75: 221 | O75: 0.7285563741 | P75: 0.0003745778427 | Q75: 0.5638185211 | R75: 0.4183306581 | S75: 1.116142261 | T75: 0.3105505985 | U75: 0.02434903924 | V75: 0.0004775843251 | W75: 1.233034729e-05 | X75: 0.04140222371
H76: max level | I76: endlevel | J76: sum of levels | N76: 241 | O76: 0.7356279572 | P76: 0.0003323416726 | Q76: 0.5695271552 | R76: 0.4237146856 | S76: 1.191571211 | T76: 0.3013714454 | U76: 0.01893422872 | V76: 0.0001907866009 | W76: 4.801039965e-08 | X76: 0.04140222371
G77: grower1 | H77: =TRANSPOSE(maxlevel10) -> 0.7394182791 | I77: =TRANSPOSE(endlevel10) -> 0.7392324218 | J77: =TRANSPOSE(totalsumlist) -> 304.67013 | N77: 261 | O77: 0.7381643533 | P77: 0.0003034317733 | Q77: 0.572192062 | R77: 0.425626812 | S77: 1.205142732 | T77: 0.2963170125 | U77: 0.01473530253 | V77: 7.532544445e-05 | W77: 1.507906633e-10 | X77: 0.04140222371
G78: grower2 | H78: 0.04184883324 | I78: 0.0001464627523 | J78: 2.469526574 | N78: 281 | O78: 0.7390447374 | P78: 0.0002813707227 | Q78: 0.5733125718 | R78: 0.4263054424 | S78: 1.206069692 | T78: 0.2935849769 | U78: 0.0115166381 | V78: 2.961648497e-05 | W78: 4.609479356e-13 | X78: 0.04140222371
G79: grower3 | H79: 0.5740356122 | I79: 0.5740356122 | J79: 237.8312194 | N79: 301 | O79: 0.7393321398 | P79: 0.0002630857 | Q79: 0.5737586587 | R79: 0.4265480555 | S79: 1.205136893 | T79: 0.2921452609 | U79: 0.009042619893 | V79: 1.159435611e-05 | W79: 1.419212533e-15 | X79: 0.05394767026
G80: grower4 | H80: 0.4266862619 | I80: 0.4266862619 | J80: 175.9790584 | N80: 321 | O80: 0.7394102725 | P80: 0.0002470583977 | Q80: 0.5739309474 | R80: 0.4266357239 | S80: 1.20428533 | T80: 0.2914025007 | U80: 0.007128837148 | V80: 4.388625949e-06 | W80: 4.412886369e-18 | X80: 0.09350408325
G81: grower5 | H81: 1.206186144 | I81: 1.202663895 | J81: 376.778136 | N81: 341 | O81: 0.7394160946 | P81: 0.0002325266211 | Q81: 0.5739963868 | R81: 0.4266677661 | S81: 1.203718266 | T81: 0.2910243752 | U81: 0.00563877836 | V81: 1.567430602e-06 | W81: 1.382620327e-20 | X81: 0.1503541333
G82: grower6 | H82: 0.5149812295 | I82: 0.2906027191 | J82: 161.5455067 | N82: 361 | O82: 0.7393980233 | P82: 0.0002191003196 | Q82: 0.5740210151 | R82: 0.4266795471 | S82: 1.203361343 | T82: 0.2908323909 | U82: 0.004472065167 | V82: 5.184015211e-07 | W82: 4.355415689e-23 | X82: 0.2188795015
G83: grower7 | H83: 0.08010345035 | I83: 0.0009398782184 | J83: 12.61734526 | N83: 381 | O83: 0.7393729309 | P83: 0.0002065714853 | Q83: 0.5740302273 | R83: 0.4266838641 | S83: 1.203133649 | T83: 0.290733714 | U83: 0.00355428705 | V83: 1.576129067e-07 | W83: 1.377292452e-25 | X83: 0.2858758859
G84: grower8 | H84: 0.01916859746 | I84: 5.498475526e-11 | J84: 2.927988987 | N84: 401 | O84: 0.7393465695 | P84: 0.0001948205024 | Q84: 0.5740336504 | R84: 0.4266854245 | S84: 1.202982411 | T84: 0.2906812479 | U84: 0.002829632276 | V84: 4.446161695e-08 | W84: 4.36757836e-28 | X84: 0.3391958064
G85: grower9 | H85: 0.04763828516 | I85: 2.547388995e-40 | J85: 8.061023429 | N85: 421 | O85: 0.7393208265 | P85: 0.0001837707175 | Q85: 0.574034911 | R85: 0.426685977 | S85: 1.202876991 | T85: 0.2906515384 | U85: 0.002255754917 | V85: 1.186833238e-08 | W85: 1.387931468e-30 | X85: 0.3750968421
G86: grower10 | H86: 0.4183920952 | I86: 0.4183920952 | J86: 70.31037885 | N86: 441 | O86: 0.7392962707 | P86: 0.0001733667414 | Q86: 0.5740353698 | R86: 0.4266861684 | S86: 1.202800107 | T86: 0.2906330624 | U86: 0.001800200668 | V86: 3.058247294e-09 | W86: 4.417690555e-33 | X86: 0.3966403653
N87: 461 | O87: 0.7392730314 | P87: 0.0001635642004 | Q87: 0.5740355346 | R87: 0.4266862334 | S87: 1.202741915 | T87: 0.2906202119 | U87: 0.001437885591 | V87: 7.720676218e-10 | W87: 1.407890218e-35 | X87: 0.4086996903
H91: Example of my_value formula, applies to total_model_output
H92: time | I92: value
H93: 220 | I93: =my_value(total_model_output,H93,3) -> 0.5634241471 | J93: I93=my_value(total_model_output,H93,3)
H94: 221 | I94: 0.5638185211
H95: 222 | I95: 0.564201706
H96: 223 | I96: 0.5645737449
H97: 224 | I97: 0.5649347075
H98: 225 | I98: 0.5652846871
H99: 226 | I99: 0.5656237985
H100: 227 | I100: 0.565952176
H101: 228 | I101: 0.5662699707
H102: 229 | I102: 0.5665773489
H103: 230 | I103: 0.56687449
H104: 231 | I104: 0.5671615849
H105: 232 | I105: 0.5674388341
H106: 233 | I106: 0.5677064463

Sheet model
A1: model | B1: initial | C1: =parameters!C5 -> 0 | D1: =parameters!D5 -> 0.05 | F1: =parameters!C13 -> 0.25 | H1: RW_multiplier | I1: =parameters!C51 -> 0 | K1: MyMax | L1: 20 | M1: myRandom | N1: =parameters!C51 -> 0 | O1: multiplier | Q1: matthew | R1: NO | S1: NO
B2: rate | C2: =parameters!C6 -> 0.05 | D2: =parameters!D6 -> 0.01 | H2: cc_reduction | I2: =parameters!C49 -> NO | K2: effect type | L2: 1 | Q2: matthewparameter | R2: 0.0001 | CB2: =RANDBETWEEN(1,10) -> 7
B3: connection | C3: =parameters!C7 -> 0 | D3: =parameters!D7 -> 0.1
B4: carcapNorm | C4: =parameters!C8 -> 0.5 | D4: =parameters!D8 -> 0.15 | CH4: PLUS FACTOR | CI4: 0.01
B5: carcapEm | C5: =parameters!C9 -> 0.5 | D5: =parameters!D9 -> 0.25 | CH5: MIN FACTOR | CI5: -0.01
B6: delay | C6: =parameters!C10 -> 1 | D6: =parameters!D10 -> 350 | BO6: 30
B7: Max | C7: =parameters!C11 -> 10 | D7: =parameters!D11 -> 25 | U7: =COUNTIF(I10:R19,"<>0") -> 35
A8: grower | B8: endlevel | C8: initial40 | D8: rate40 | E8: carcap40 | F8: effect_type | G8: delay | H8: MyMax | I8: grower1 | J8: grower2 | K8: grower3 | L8: grower4 | M8: grower5 | N8: grower6 | O8: grower7 | P8: grower8 | Q8: grower9 | R8: grower10 | S8: grower5 | T8: grower6 | U8: grower7 | V8: grower8 | W8: grower9 | X8: grower10
A9: 1 | B9: =TRANSPOSE(endlevel10) -> 0.7392324218 | C9: =MRandReal($C$1,$D$1) -> 0.01669751406 | D9: =MNormal($C$2,$D$2) -> 0.05092682943 | E9: =MNormal($C$4,$D$4) -> 0.7388847627 | F9: =IF(RAND()<$L$2,1,0) -> 1 | G9: 1 | H9: =RANDBETWEEN($C$7,$D$7) -> 14 | I9: 0 | J9: =IF(RAND()<$F$1,MNormal($C$3,$D$3),0) -> 0.01714553537 | K9: 0 | L9: 0 | M9: 0 | N9: 0 | O9: -0.09563197814 | P9: -0.0833150027 | Q9: -0.02844627027 | R9: 0 | S9: 0 | T9: 0 | U9: 0 | V9: 0 | W9: -0.003233883653 | X9: -0.02385528148 | Y9: grower5 | Z9: grower6 | AA9: grower7 | AB9: grower8 | AC9: grower9 | AD9: grower10 | BI9: grower | BK9: initial40 | BL9: rate40 | BM9: carcap40 | BN9: effect_type | BO9: delay | BP9: MyMax | BQ9: grower1 | BR9: grower2 | BS9: grower3 | BT9: grower4 | BU9: grower5 | BV9: grower6 | BW9: grower7 | BX9: grower8 | BY9: grower9 | BZ9: grower10 | CC9: initial40 | CD9: rate40 | CE9: carcap40 | CF9: effect_type | CG9: delay | CH9: MyMax | CI9: grower1 | CJ9: grower2 | CK9: grower3 | CL9: grower4 | CM9: grower5 | CN9: grower6 | CO9: grower7 | CP9: grower8 | CQ9: grower9 | CR9: grower10 | CU9: initial | CV9: rate | CW9: genetic K | CX9: effect_type | CY9: delay | CZ9: MyMax | DA9: grower1 | DB9: grower2 | DC9: grower3 | DD9: grower4 | DE9: grower5 | DF9: grower6 | DG9: grower7 | DH9: grower8 | DI9: grower9 | DJ9: grower10
A10: 2 | B10: 0.0001464627523 | C10: 0.01534633338 | D10: 0.05448371638 | E10: 0.5162982774 | F10: 1 | G10: 1 | H10: 14 | I10: =IF(RAND()<$F$1,MNormal($C$3,$D$3),0) -> 0.1537682293 | J10: 0 | K10: 0 | L10: 0 | M10: 0 | N10: 0.1005438102 | O10: 0 | P10: 0 | Q10: -0.04089210002 | R10: 0 | S10: 0 | T10: 0 | U10: 0.009265752701 | V10: 0 | W10: 0 | X10: -0.006655736524 | Y10: =IF(M$21=MAX(maxlevel10),M10,"") -> 0 | Z10: =IF(N$21=MAX(maxlevel10),N10,"") ->  | AA10: =IF(O$21=MAX(maxlevel10),O10,"") ->  | AB10: =IF(P$21=MAX(maxlevel10),P10,"") ->  | AC10: =IF(Q$21=MAX(maxlevel10),Q10,"") ->  | AD10: =IF(R$21=MAX(maxlevel10),R10,"") ->  | AE10: =TRANSPOSE(totalsumlist) -> 304.67013 | AF10: =SUM(U10:AD10) -> 0.002610016177 | AG10: =AE10*AF10 -> 0.7951939679 | BI10: 1 | BK10: =MRandReal($C$1,$D$1) -> 0.01959688663 | BL10: =MNormal($C$2,$D$2) -> 0.04917767953 | BM10: =MNormal($C$4,$D$4) -> 0.6095970227 | BN10: =IF(RAND()<$L$2,1,0) -> 1 | BO10: 1 | BP10: =RANDBETWEEN($C$7,$D$7) -> 14 | BQ10: 0 | BR10: =IF(RAND()<$F$1,MNormal($C$3,$D$3),0) -> 0.08765076615 | BS10: 0 | BT10: 0 | BU10: 0.1303599485 | BV10: 0 | BW10: 0 | BX10: 0 | BY10: -0.1406859657 | BZ10: -0.04343766714 | CC10: =MRandReal($C$1,$D$1) -> 0.02529813945 | CD10: =MNormal($C$2,$D$2) -> 0.036251571 | CE10: =MNormal($C$4,$D$4) -> 0.1169992954 | CF10: =IF(RAND()<$L$2,1,0) -> 1 | CG10: 1 | CH10: =RANDBETWEEN($C$7,$D$7) -> 15 | CI10: =IF(RAND()<$F$1,MNormal($C$3+PLUS_FACTOR,$D$3),0) -> 0 | CJ10: 0 | CK10: 0.05575821377 | CL10: 0 | CM10: 0 | CN10: =IF(RAND()<$F$1,MNormal($C$3+MIN_FACTOR,$D$3),0) -> -0.01703667224 | CO10: 0 | CP10: 0 | CQ10: 0 | CR10: 0.003720979569 | CU10: =MRandReal($C$1,$D$1) -> 0.01537457407 | CV10: =MNormal($C$2,$D$2) -> 0.07187591137 | CW10: =MNormal($C$4,$D$4) -> 0.5494396734 | CX10: =IF(RAND()<$L$2,1,0) -> 1 | CY10: 1 | CZ10: =RANDBETWEEN($C$7,$D$7) -> 11 | DA10: 0 | DB10: =IF(RAND()<$F$1,MNormal($C$3,$D$3),0) -> 0 | DC10: 0 | DD10: 0 | DE10: 0 | DF10: 0.01339351735 | DG10: 0 | DH10: 0.1462199992 | DI10: 0 | DJ10: 0.05328153728
A11: 3 | B11: 0.5740356122 | C11: 0.01841085553 | D11: 0.04230283365 | E11: 0.3758006941 | F11: 1 | G11: 1 | H11: 12 | I11: 0 | J11: -0.0194471946 | K11: 0 | L11: 0 | M11: 0 | N11: -0.05974043994 | O11: 0 | P11: 0 | Q11: 0 | R11: 0 | S11: -0.007516184054 | T11: -0.03828784061 | U11: 0 | V11: 0 | W11: 0 | X11: 0 | Y11: 0 | AE11: 2.469526574 | AF11: 0 | AG11: 0 | BI11: 2 | BK11: 0.04282853007 | BL11: 0.05819941938 | BM11: 0.3279240002 | BN11: 1 | BO11: 1 | BP11: 19 | BQ11: =IF(RAND()<$F$1,MNormal($C$3,$D$3),0) -> 0 | BR11: 0 | BS11: =IF(RAND()<$F$1,MNormal($C$3,$D$3),0) -> 0 | BT11: 0 | BU11: 0 | BV11: 0 | BW11: 0 | BX11: 0 | BY11: 0 | BZ11: -0.1500882266 | CC11: 0.0357226789 | CD11: 0.06350092057 | CE11: 0.6262011694 | CF11: 1 | CG11: 1 | CH11: 16 | CI11: 0.008744114131 | CJ11: 0 | CK11: 0 | CL11: 0 | CM11: 0 | CN11: 0.07950032408 | CO11: 0 | CP11: 0 | CQ11: 0 | CR11: 0 | CU11: 0.04849624634 | CV11: 0.04712205151 | CW11: 0.6833330271 | CX11: 1 | CY11: 1 | CZ11: 25 | DA11: =IF(RAND()<$F$1,MNormal($C$3,$D$3),0) -> 0.03805056174 | DB11: 0 | DC11: =IF(RAND()<$F$1,MNormal($C$3,$D$3),0) -> 0 | DD11: 0 | DE11: 0 | DF11: 0 | DG11: 0.09031332154 | DH11: -0.1305793668 | DI11: 0 | DJ11: 0
A12: 4 | B12: 0.4266862619 | C12: 0.01927238405 | D12: 0.05748591676 | E12: 0.4266862658 | F12: 1 | G12: 1 | H12: 14 | I12: 0 | J12: 0 | K12: 0.05229779754 | L12: 0 | M12: 0.02284022334 | N12: 0 | O12: 0 | P12: -0.05842723536 | Q12: 0 | R12: 0 | S12: -0.02429855243 | T12: 0 | U12: 0 | V12: 0 | W12: -0.01514843054 | X12: 0 | Y12: 0.02284022334 | AE12: 237.8312194 | AF12: 0.007691792799 | AG12: 1.82934846 | BI12: 3 | BK12: 0.04680217803 | BL12: 0.03398630078 | BM12: 0.7007913304 | BN12: 1 | BO12: 1 | BP12: 24 | BQ12: 0 | BR12: =IF(RAND()<$F$1,MNormal($C$3,$D$3),0) -> 0 | BS12: 0 | BT12: =IF(RAND()<$F$1,MNormal($C$3,$D$3),0) -> -0.1300813149 | BU12: 0 | BV12: 0 | BW12: 0.04373693089 | BX12: 0 | BY12: 0 | BZ12: 0 | CC12: 0.03153948486 | CD12: 0.05466535414 | CE12: 0.3209086145 | CF12: 1 | CG12: =RANDBETWEEN($C$6,CA12*$BO$6) ->  | CH12: 15 | CI12: 0 | CJ12: 0 | CK12: 0.1086265708 | CL12: 0.05348523738 | CM12: -0.1008091307 | CN12: 0 | CO12: 0 | CP12: 0 | CQ12: 0.3066082134 | CR12: 0 | CU12: 0.02785827518 | CV12: 0.05471930049 | CW12: 0.5024240348 | CX12: 1 | CY12: 1 | CZ12: 24 | DA12: 0.1457650439 | DB12: =IF(RAND()<$F$1,MNormal($C$3,$D$3),0) -> 0 | DC12: 0 | DD12: =IF(DC13<>0,(correlation_F_and_T*DC13+SQRT(1-correlation_F_and_T^2)*MNormal($C$3,$D$3)),0) -> 0.1344945595 | DE12: =IF(RAND()<$F$1,MNormal($C$3,$D$3),0) -> 0 | DF12: -0.1037108361 | DG12: 0 | DH12: 0 | DI12: 0 | DJ12: 0
A13: 5 | B13: 1.202663895 | C13: 0.03481343985 | D13: 0.0579026969 | E13: 0.866515278 | F13: 1 | G13: =RANDBETWEEN($C$6,A13*$BO$6) -> 147 | H13: 23 | I13: 0 | J13: 0 | K13: 0 | L13: 0 | M13: 0 | N13: =IF(RAND()<$F$1,MNormal($C$3,$D$3),0) -> 0 | O13: =IF(RAND()<$F$1,MNormal($C$3,$D$3),0) -> 0 | P13: =IF(RAND()<$F$1,MNormal($C$3,$D$3),0) -> 0 | Q13: =IF(RAND()<$F$1,MNormal($C$3,$D$3),0) -> -0.2160446574 | R13: =IF(RAND()<$F$1,MNormal($C$3,$D$3),0) -> 0 | S13: 0 | T13: 0 | U13: 0 | V13: 0 | W13: -0.02092272245 | X13: 0 | Y13: 0 | AE13: 175.9790584 | AF13: -0.02092272245 | AG13: -3.681960996 | BI13: 4 | BK13: 0.01080997884 | BL13: 0.04403996981 | BM13: 0.5300218748 | BN13: 1 | BO13: 1 | BP13: 22 | BQ13: 0 | BR13: 0 | BS13: =IF(RAND()<$F$1,MNormal($C$3,$D$3),0) -> 0 | BT13: 0 | BU13: =IF(RAND()<$F$1,MNormal($C$3,$D$3),0) -> -0.1037353722 | BV13: 0 | BW13: -0.2313798848 | BX13: 0 | BY13: 0 | BZ13: -0.01773167363 | CC13: 0.03749216497 | CD13: 0.06140882061 | CE13: 0.5904205195 | CF13: 1 | CH13: 13 | CI13: 0 | CJ13: 0.157696939 | CK13: 0.07033263759 | CL13: 0 | CM13: 0 | CN13: 0 | CO13: 0 | CP13: -0.1935054035 | CQ13: 0.1312365809 | CR13: 0 | CU13: 0.01366274059 | CV13: 0.05174089269 | CW13: 0.2810969063 | CX13: 1 | CY13: 1 | CZ13: 22 | DA13: 0 | DB13: 0 | DC13: =IF(RAND()<$F$1,MNormal($C$3,$D$3),0) -> 0.0964146939 | DD13: 0 | DE13: 0 | DF13: 0 | DG13: 0 | DH13: 0 | DI13: 0 | DJ13: 0
A14: 6 | B14: 0.2906027191 | C14: 0.03410543799 | D14: 0.07209752005 | E14: 0.5539786194 | F14: 1 | G14: 1 | H14: 21 | I14: 0 | J14: -0.2026103561 | K14: 0 | L14: 0 | M14: =IF(RAND()<$F$1,MNormal($C$3,$D$3),0) -> 0.04373094672 | N14: 0 | O14: =IF(RAND()<$F$1,MNormal($C$3,$D$3),0) -> 0 | P14: =IF(RAND()<$F$1,MNormal($C$3,$D$3),0) -> 0 | Q14: =IF(RAND()<$F$1,MNormal($C$3,$D$3),0) -> 0 | R14: =IF(RAND()<$F$1,MNormal($C$3,$D$3),0) -> 0 | S14: 0 | T14: -0.05042344294 | U14: 0 | V14: 0.02109724675 | W14: -0.01722731874 | X14: -0.04010981916 | Y14: 0.04373094672 | AE14: 376.778136 | AF14: 0.007491055567 | AG14: 2.822465953 | BI14: 5 | BK14: 0.04441068172 | BL14: 0.04615863861 | BM14: 0.5600363178 | BN14: 1 | BO14: =RANDBETWEEN($C$6,BI14*$BO$6) -> 82 | BP14: 14 | BQ14: 0 | BR14: 0 | BS14: 0 | BT14: =IF(RAND()<$F$1,MNormal($C$3,$D$3),0) -> 0 | BU14: 0 | BV14: =IF(RAND()<$F$1,MNormal($C$3,$D$3),0) -> 0 | BW14: =IF(RAND()<$F$1,MNormal($C$3,$D$3),0) -> 0 | BX14: =IF(RAND()<$F$1,MNormal($C$3,$D$3),0) -> 0 | BY14: =IF(RAND()<$F$1,MNormal($C$3,$D$3),0) -> 0 | BZ14: =IF(RAND()<$F$1,MNormal($C$3,$D$3),0) -> -0.1601636557 | CC14: 0.002784782648 | CD14: 0.0551015835 | CE14: 0.6020920346 | CF14: 1 | CH14: 24 | CI14: 0.2506812726 | CJ14: 0 | CK14: 0 | CL14: 0 | CM14: 0 | CN14: 0 | CO14: 0 | CP14: 0 | CQ14: 0 | CR14: 0 | CU14: 0.0017208606 | CV14: 0.0542660065 | CW14: 0.5330060471 | CX14: 1 | CY14: =RANDBETWEEN($C$6,CS14*$BO$6) ->  | CZ14: 19 | DA14: 0 | DB14: 0 | DC14: -0.08243357818 | DD14: =IF(RAND()<$F$1,MNormal($C$3,$D$3),0) -> 0.2001866856 | DE14: 0 | DF14: =IF(RAND()<$F$1,MNormal($C$3,$D$3),0) -> -0.1090626293 | DG14: =IF(RAND()<$F$1,MNormal($C$3,$D$3),0) -> 0 | DH14: =IF(RAND()<$F$1,MNormal($C$3,$D$3),0) -> 0 | DI14: =IF(RAND()<$F$1,MNormal($C$3,$D$3),0) -> 0 | DJ14: =IF(RAND()<$F$1,MNormal($C$3,$D$3),0) -> 0
A15: 7 | B15: 0.0009398782184 | C15: 0.02922555804 | D15: 0.05968569602 | E15: 0.6020108528 | F15: 1 | G15: 47 | H15: 18 | I15: 0 | J15: 0 | K15: 0 | L15: 0 | M15: =IF(RAND()<$F$1,MNormal($C$3,$D$3),0) -> 0.007349127016 | N15: =IF(RAND()<$F$1,MNormal($C$3,$D$3),0) -> 0 | O15: 0 | P15: =IF(RAND()<$F$1,MNormal($C$3,$D$3),0) -> 0 | Q15: =IF(RAND()<$F$1,MNormal($C$3,$D$3),0) -> -0.0769863515 | R15: =IF(RAND()<$F$1,MNormal($C$3,$D$3),0) -> -0.03032650553 | S15: 0 | T15: 0 | U15: 0 | V15: -0.009128951321 | W15: 0 | X15: 0 | Y15: 0.007349127016 | AE15: 161.5455067 | AF15: -0.001779824305 | AG15: -0.2875226193 | BI15: 6 | BK15: 0.01219488084 | BL15: 0.07419576937 | BM15: 0.3595198979 | BN15: 1 | BO15: 174 | BP15: 15 | BQ15: 0 | BR15: 0 | BS15: 0 | BT15: 0 | BU15: =IF(RAND()<$F$1,MNormal($C$3,$D$3),0) -> 0 | BV15: 0 | BW15: =IF(RAND()<$F$1,MNormal($C$3,$D$3),0) -> 0 | BX15: =IF(RAND()<$F$1,MNormal($C$3,$D$3),0) -> 0 | BY15: =IF(RAND()<$F$1,MNormal($C$3,$D$3),0) -> 0.104108559 | BZ15: =IF(RAND()<$F$1,MNormal($C$3,$D$3),0) -> 0 | CC15: 0.006611520052 | CD15: 0.0481874638 | CE15: 0.6137995648 | CF15: 1 | CH15: 10 | CI15: =IF(RAND()<$F$1,MNormal($C$3+MIN_FACTOR,$D$3),0) -> 0 | CJ15: -0.02410479712 | CK15: 0 | CL15: 0 | CM15: 0 | CN15: =IF(RAND()<$F$1,MNormal($C$3+PLUS_FACTOR,$D$3),0) -> 0 | CO15: 0 | CP15: 0.02208053771 | CQ15: 0 | CR15: 0 | CU15: 0.01803647578 | CV15: 0.06001003427 | CW15: 0.1763647218 | CX15: 1 | CZ15: 21 | DA15: 0 | DB15: 0.03854367499 | DC15: -0.1056846119 | DD15: 0 | DE15: =IF(RAND()<$F$1,MNormal($C$3,$D$3),0) -> 0 | DF15: 0 | DG15: =IF(RAND()<$F$1,MNormal($C$3,$D$3),0) -> 0.004021737385 | DH15: =IF(RAND()<$F$1,MNormal($C$3,$D$3),0) -> 0 | DI15: =IF(RAND()<$F$1,MNormal($C$3,$D$3),0) -> 0 | DJ15: =IF(RAND()<$F$1,MNormal($C$3,$D$3),0) -> 0
A16: 8 | B16: 5.498475526e-11 | C16: 0.01916859746 | D16: 0.04321927875 | E16: 0.4246094515 | F16: 1 | G16: 125 | H16: 15 | I16: 0.04906929455 | J16: 0 | K16: 0 | L16: -0.1882285317 | M16: =IF(RAND()<$F$1,MNormal($C$3,$D$3),0) -> 0 | N16: =IF(RAND()<$F$1,MNormal($C$3,$D$3),0) -> 0 | O16: =IF(RAND()<$F$1,MNormal($C$3,$D$3),0) -> 0.002828869967 | P16: 0 | Q16: =IF(RAND()<$F$1,MNormal($C$3,$D$3),0) -> -0.05215757015 | R16: =IF(RAND()<$F$1,MNormal($C$3,$D$3),0) -> 0.1341925151 | S16: 0 | T16: -0.03100737922 | U16: 0 | V16: 0 | W16: -0.01070039384 | X16: -0.03834283614 | Y16: 0 | AE16: 12.61734526 | AF16: -0.04904322998 | AG16: -0.6187953651 | BI16: 7 | BK16: 0.03836259842 | BL16: 0.03974109253 | BM16: 0.5218862742 | BN16: 1 | BO16: 61 | BP16: 14 | BQ16: -0.07749615841 | BR16: -0.00137468941 | BS16: 0 | BT16: 0.03744608794 | BU16: =IF(RAND()<$F$1,MNormal($C$3,$D$3),0) -> -0.07047147227 | BV16: =IF(RAND()<$F$1,MNormal($C$3,$D$3),0) -> 0 | BW16: 0 | BX16: =IF(RAND()<$F$1,MNormal($C$3,$D$3),0) -> 0 | BY16: =IF(RAND()<$F$1,MNormal($C$3,$D$3),0) -> 0 | BZ16: =IF(RAND()<$F$1,MNormal($C$3,$D$3),0) -> -0.04145003843 | CC16: 0.01665510833 | CD16: 0.04685343443 | CE16: 0.2252639194 | CF16: 1 | CH16: 17 | CI16: 0 | CJ16: 0 | CK16: 0 | CL16: 0 | CM16: 0 | CN16: -0.013698037 | CO16: 0 | CP16: 0.113168949 | CQ16: 0 | CR16: 0 | CU16: 0.007663217187 | CV16: 0.05742852231 | CW16: 0.565956617 | CX16: 1 | CZ16: 16 | DA16: 0 | DB16: 0 | DC16: 0 | DD16: 0 | DE16: =IF(RAND()<$F$1,MNormal($C$3,$D$3),0) -> 0 | DF16: =IF(RAND()<$F$1,MNormal($C$3,$D$3),0) -> 0 | DG16: 0 | DH16: =IF(RAND()<$F$1,MNormal($C$3,$D$3),0) -> 0 | DI16: =IF(RAND()<$F$1,MNormal($C$3,$D$3),0) -> 0 | DJ16: =IF(RAND()<$F$1,MNormal($C$3,$D$3),0) -> 0
A17: 9 | B17: 2.547388995e-40 | C17: 0.04763828516 | D17: 0.03119942177 | E17: 0.396554079 | F17: 1 | G17: 94 | H17: 23 | I17: -0.1271468516 | J17: 0.07996354158 | K17: 0 | L17: -0.1554692021 | M17: =IF(RAND()<$F$1,MNormal($C$3,$D$3),0) -> 0 | N17: =IF(RAND()<$F$1,MNormal($C$3,$D$3),0) -> 0.153723412 | O17: =IF(RAND()<$F$1,MNormal($C$3,$D$3),0) -> -0.07662760226 | P17: =IF(RAND()<$F$1,MNormal($C$3,$D$3),0) -> 0 | Q17: 0 | R17: =IF(RAND()<$F$1,MNormal($C$3,$D$3),0) -> 0 | S17: 0 | T17: 0 | U17: 0 | V17: -0.0003044670612 | W17: 0 | X17: -0.008482101949 | Y17: 0 | AE17: 2.927988987 | AF17: -0.00878656901 | AG17: -0.02572697729 | BI17: 8 | BK17: 0.02527859807 | BL17: 0.03960997744 | BM17: 0.2707705331 | BN17: 1 | BO17: 166 | BP17: 21 | BQ17: 0 | BR17: 0 | BS17: 0.1135464179 | BT17: -0.1301985331 | BU17: =IF(RAND()<$F$1,MNormal($C$3,$D$3),0) -> 0 | BV17: =IF(RAND()<$F$1,MNormal($C$3,$D$3),0) -> 0 | BW17: =IF(RAND()<$F$1,MNormal($C$3,$D$3),0) -> 0 | BX17: 0 | BY17: =IF(RAND()<$F$1,MNormal($C$3,$D$3),0) -> 0 | BZ17: =IF(RAND()<$F$1,MNormal($C$3,$D$3),0) -> 0 | CC17: 0.03866393864 | CD17: 0.04432700893 | CE17: 0.3269044267 | CF17: 1 | CH17: 18 | CI17: 0 | CJ17: -0.09159831495 | CK17: 0 | CL17: -0.04129602708 | CM17: 0.145000978 | CN17: 0 | CO17: 0.1032693012 | CP17: -0.01113246207 | CQ17: 0 | CR17: 0 | CU17: 0.02076869905 | CV17: 0.06380413104 | CW17: 0.3721323472 | CX17: 1 | CZ17: 19 | DA17: 0 | DB17: 0 | DC17: 0 | DD17: 0 | DE17: =IF(RAND()<$F$1,MNormal($C$3,$D$3),0) -> 0 | DF17: =IF(RAND()<$F$1,MNormal($C$3,$D$3),0) -> 0 | DG17: =IF(RAND()<$F$1,MNormal($C$3,$D$3),0) -> 0 | DH17: 0 | DI17: =IF(RAND()<$F$1,MNormal($C$3,$D$3),0) -> 0 | DJ17: =IF(RAND()<$F$1,MNormal($C$3,$D$3),0) -> 0
A18: 10 | B18: 0.4183920952 | C18: 0.04140222371 | D18: 0.03397394519 | E18: 0.4226804018 | F18: 1 | G18: 292 | H18: 17 | I18: 0 | J18: 0 | K18: 0 | L18: 0 | M18: =IF(RAND()<$F$1,MNormal($C$3,$D$3),0) -> 0 | N18: =IF(RAND()<$F$1,MNormal($C$3,$D$3),0) -> 0 | O18: =IF(RAND()<$F$1,MNormal($C$3,$D$3),0) -> 0 | P18: =IF(RAND()<$F$1,MNormal($C$3,$D$3),0) -> -0.05758916141 | Q18: =IF(RAND()<$F$1,MNormal($C$3,$D$3),0) -> 0 | R18: 0 | S18: 0 | T18: 0 | U18: 0 | V18: 0 | W18: 0 | X18: -0.02397815626 | Y18: 0 | AE18: 8.061023429 | AF18: -0.02397815626 | AG18: -0.1932884794 | BI18: 9 | BK18: 0.01439515352 | BL18: 0.0685920437 | BM18: 0.707140383 | BN18: 1 | BO18: 62 | BP18: 14 | BQ18: 0 | BR18: 0 | BS18: 0.07766221246 | BT18: 0 | BU18: =IF(RAND()<$F$1,MNormal($C$3,$D$3),0) -> 0 | BV18: =IF(RAND()<$F$1,MNormal($C$3,$D$3),0) -> 0 | BW18: =IF(RAND()<$F$1,MNormal($C$3,$D$3),0) -> 0 | BX18: =IF(RAND()<$F$1,MNormal($C$3,$D$3),0) -> 0 | BY18: 0 | BZ18: =IF(RAND()<$F$1,MNormal($C$3,$D$3),0) -> 0 | CC18: 0.03672996759 | CD18: 0.05443396388 | CE18: 0.4127346907 | CF18: 1 | CH18: 10 | CI18: 0 | CJ18: -0.05412719473 | CK18: 0 | CL18: 0 | CM18: 0 | CN18: 0 | CO18: 0 | CP18: 0.2083280543 | CQ18: 0 | CR18: 0 | CU18: 0.005275678635 | CV18: 0.05193634591 | CW18: 0.1475893556 | CX18: 1 | CZ18: 22 | DA18: 0 | DB18: 0 | DC18: 0 | DD18: 0 | DE18: =IF(RAND()<$F$1,MNormal($C$3,$D$3),0) -> 0 | DF18: =IF(RAND()<$F$1,MNormal($C$3,$D$3),0) -> 0 | DG18: =IF(RAND()<$F$1,MNormal($C$3,$D$3),0) -> 0 | DH18: =IF(RAND()<$F$1,MNormal($C$3,$D$3),0) -> 0 | DI18: 0 | DJ18: =IF(RAND()<$F$1,MNormal($C$3,$D$3),0) -> 0
S19: quadratic_condition | T19: 1 | U19: =IF(I$21=MAX(maxlevel10),I19,"") ->  | V19: =IF(J$21=MAX(maxlevel10),J19,"") ->  | W19: =IF(K$21=MAX(maxlevel10),K19,"") ->  | X19: =IF(L$21=MAX(maxlevel10),L19,"") ->  | Y19: 0 | AE19: 70.31037885 | AF19: 0 | AG19: 0 | BI19: 10 | BK19: 0.0239071697 | BL19: 0.04632131874 | BM19: 0.4594257384 | BN19: 1 | BO19: 72 | BP19: 10 | BQ19: 0 | BR19: 0 | BS19: 0 | BT19: 0 | BU19: =IF(RAND()<$F$1,MNormal($C$3,$D$3),0) -> 0 | BV19: =IF(RAND()<$F$1,MNormal($C$3,$D$3),0) -> 0.04708090656 | BW19: =IF(RAND()<$F$1,MNormal($C$3,$D$3),0) -> 0 | BX19: =IF(RAND()<$F$1,MNormal($C$3,$D$3),0) -> 0.03392809043 | BY19: =IF(RAND()<$F$1,MNormal($C$3,$D$3),0) -> 0 | BZ19: 0 | CC19: 0.007568508387 | CD19: 0.04605561995 | CE19: 0.5303756939 | CF19: 1 | CH19: 23 | CI19: 0 | CJ19: 0 | CK19: 0 | CL19: 0 | CM19: 0 | CN19: 0.03808398072 | CO19: 0 | CP19: 0 | CQ19: 0 | CR19: 0.0606055732 | CU19: 0.014591524 | CV19: 0.05936285716 | CW19: 0.5314690784 | CX19: 1 | CZ19: 18 | DA19: 0 | DB19: 0.1794630064 | DC19: -0.1136215729 | DD19: 0 | DE19: =IF(RAND()<$F$1,MNormal($C$3,$D$3),0) -> 0 | DF19: =IF(RAND()<$F$1,MNormal($C$3,$D$3),0) -> 0 | DG19: =IF(RAND()<$F$1,MNormal($C$3,$D$3),0) -> 0 | DH19: =IF(RAND()<$F$1,MNormal($C$3,$D$3),0) -> 0.02574864994 | DI19: =IF(RAND()<$F$1,MNormal($C$3,$D$3),0) -> 0 | DJ19: 0
H20: Sum | I20: =SUM(I9:I18) -> 0.07569067231 | J20: =SUM(J9:J18) -> -0.1249484737 | K20: 0.05229779754 | L20: -0.3436977338 | M20: 0.07392029707 | N20: 0.1945267823 | O20: -0.1694307104 | P20: -0.1993313995 | Q20: -0.4145269493 | R20: 0.1038660095 | S20: pref_attach_on | T20: 0 | AG20: =SUM(AG10:AG19) -> 0.6397139442
B21: Max | H21: Max | I21: =MAX(I24:I522) -> 0.7394182791 | J21: 0.04184883324 | K21: 0.5740356122 | L21: 0.4266862619 | M21: 1.206186144 | N21: 0.5149812295 | O21: 0.08010345035 | P21: 0.01916859746 | Q21: 0.04763828516 | R21: 0.4183920952 | S21: threshold | T21: 0 | BQ21: 25
A22: grower1 | B22: =TRANSPOSE(maxlevel10) -> 0.7394182791 | C22: =TRANSPOSE(early_levels) -> 0.153845502 | F22: =B22 -> 0.7394182791 | I22: =I21*I20 -> 0.05596706667 | J22: -0.005228947842 | K22: 0.03002079823 | L22: -0.1466511013 | M22: 0.0891616381 | N22: 0.1001776415 | O22: -0.0135719845 | P22: -0.003820903358 | Q22: -0.01974735302 | R22: 0.04345671735 | S22: poisson prob | T22: 0.002 | AJ22: =COUNTIF(AJ24:AJ33,"<>0") -> 1 | AK22: =COUNTIF(AK24:AK33,"<>0") -> 4 | AL22: 2 | AM22: 0 | AN22: 1 | AO22: 3 | AP22: 4 | AQ22: 3 | AR22: 2 | AS22: 5 | BI22: grower | BK22: initial40 | BL22: rate40 | BM22: carcap40 | BN22: effect_type | BO22: delay | BP22: MyMax | BQ22: grower1 | BR22: grower2 | BS22: grower3 | BT22: grower4 | BU22: grower5 | BV22: grower6 | BW22: grower7 | BX22: grower8 | BY22: grower9 | BZ22: grower10 | CC22: initial40 | CD22: rate40 | CE22: carcap40 | CF22: effect_type | CG22: delay | CH22: MyMax | CI22: grower1 | CJ22: grower2 | CK22: grower3 | CL22: grower4 | CM22: grower5 | CN22: grower6 | CO22: grower7 | CP22: grower8 | CQ22: grower9 | CR22: grower10
A23: grower2 | B23: 0.04184883324 | C23: 0.03175732366 | F23: =E10 -> 0.5162982774 | G23: step | H23: time | I23: grower1 | J23: grower2 | K23: grower3 | L23: grower4 | M23: grower5 | N23: grower6 | O23: grower7 | P23: grower8 | Q23: grower9 | R23: grower10 | S23: products 3 | T23: =S522 -> 1 | X23: grower1 | Y23: grower2 | Z23: grower3 | AA23: grower4 | AB23: grower5 | AC23: grower6 | AD23: grower7 | AE23: grower8 | AF23: grower9 | AG23: grower10 | AJ23: grower1 | AK23: grower2 | AL23: grower3 | AM23: grower4 | AN23: grower5 | AO23: grower6 | AP23: grower7 | AQ23: grower8 | AR23: grower9 | AS23: grower10 | BI23: 1 | BK23: =MRandReal($C$1,$D$1) -> 0.02288722396 | BL23: =MNormal($C$2,$D$2) -> 0.05491765529 | BM23: =MNormal($C$4,$D$4) -> 0.5398280043 | BN23: =IF(RAND()<$L$2,1,0) -> 1 | BO23: 1 | BP23: =RANDBETWEEN($C$7,$D$7) -> 16 | BQ23: =IF(RAND()<$F$1,MNormal($C$3-((1-(501-$BO23)/500)/$BQ$21),$D$3),0) -> 0 | BR23: -0.0212937034 | BS23: 0 | BT23: 0 | BU23: 0 | BV23: 0 | BW23: -0.1113476111 | BX23: 0 | BY23: -0.08789280151 | BZ23: 0 | CC23: =MRandReal($C$1,$D$1) -> 0.03759680092 | CD23: =MNormal($C$2,$D$2) -> 0.05099435547 | CE23: =MNormal($C$4,$D$4) -> 0.6215481463 | CF23: =IF(RAND()<$L$2,1,0) -> 1 | CG23: 1 | CH23: =RANDBETWEEN($C$7,$D$7) -> 20 | CI23: 0 | CJ23: =IF(RAND()<$F$1,MNormal($C$3,$D$3),0) -> 0 | CK23: 0 | CL23: 0 | CM23: 0.099093634 | CN23: 0 | CO23: 0 | CP23: 0 | CQ23: 0 | CR23: 0
A24: grower3 | B24: 0.5740356122 | C24: 0.120154903 | D24: =B35 -> 1.206186144 | F24: =D10 -> 0.05448371638 | G24: 1 | H24: 0.1 | I24: =FGrowthMatrix8(C9:C18,D9:D18,E9:E18,F9:F18,G9:G18,H9:H18,I9:R18,500) -> 0.01669751406 | J24: 0.01534633338 | K24: 0.01841085553 | L24: 0.01927238405 | M24: 0.03481343985 | N24: 0.03410543799 | O24: 0.02922555804 | P24: 0.01916859746 | Q24: 0.04763828516 | R24: 0.04140222371 | S24: 0 | T24: 0 | U24: =calculate_product_slope(T24:T522) -> -9.48586606e-05 | X24: =I9*AVERAGE($I24:$I522) -> 0 | Y24: 0.01046840178 | Z24: 0 | AA24: 0 | AB24: 0 | AC24: 0 | AD24: -0.05838919281 | AE24: -0.05086892325 | AF24: -0.01736819411 | AG24: 0 | AJ24: 0 | AK24: =IF(RAND()<$F$1,MNormal($C$3,$D$3),0) -> 0 | AL24: 0.1053002597 | AM24: 0 | AN24: 0 | AO24: 0.04371677603 | AP24: 0 | AQ24: 0 | AR24: 0 | AS24: 0 | BI24: 2 | BK24: 0.0154617697 | BL24: 0.04439142998 | BM24: 0.4274136627 | BN24: 1 | BO24: 1 | BP24: 21 | BQ24: 0 | BR24: 0 | BS24: 0.01892387103 | BT24: 0 | BU24: 0 | BV24: 0.01310607164 | BW24: 0 | BX24: 0.02335802835 | BY24: 0 | BZ24: 0 | CC24: 0.02900590301 | CD24: 0.066445444 | CE24: =MNormal($C$4,$D$4) -> 0.7118429022 | CF24: 1 | CG24: 1 | CH24: 13 | CI24: =IF(RAND()<$F$1,MNormal($C$3,$D$3),0) -> 0 | CJ24: 0 | CK24: =IF(RAND()<$F$1,MNormal($C$3,$D$3),0) -> 0 | CL24: 0 | CM24: 0 | CN24: 0 | CO24: -0.1056075749 | CP24: 0 | CQ24: 0 | CR24: 0
A25: grower4 | B25: 0.4266862619 | C25: 0.122743389 | F25: =I20 -> 0.07569067231 | G25: 2 | H25: 0.2 | I25: 0.01748168279 | J25: 0.01610808307 | K25: 0.01916892267 | L25: 0.02011679692 | M25: 0.03481343985 | N25: 0.03667366615 | O25: 0.02922555804 | P25: 0.01916859746 | Q25: 0.04763828516 | R25: 0.04140222371 | S25: 0 | T25: =S25-S24 -> 0 | X25: =I10*AVERAGE($J24:$J522) -> 0.0007609914399 | Y25: 0 | Z25: 0 | AA25: 0 | AB25: 0 | AC25: 0.0004975863949 | AD25: 0 | AE25: 0 | AF25: -0.0002023730013 | AG25: 0 | AJ25: =IF(RAND()<$F$1,MNormal($C$3,$D$3),0) -> 0 | AK25: 0 | AL25: =IF(RAND()<$F$1,MNormal($C$3,$D$3),0) -> 0 | AM25: 0 | AN25: 0 | AO25: 0 | AP25: 0 | AQ25: 0 | AR25: 0 | AS25: 0 | BI25: 3 | BK25: 0.02528454065 | BL25: 0.04854559305 | BM25: 0.5831149389 | BN25: 1 | BO25: =RANDBETWEEN($C$6,BI25*$BO$6) -> 1 | BP25: 23 | BQ25: 0 | BR25: 0 | BS25: 0 | BT25: 0 | BU25: 0 | BV25: 0 | BW25: 0 | BX25: 0 | BY25: 0 | BZ25: 0 | CC25: 0.002465999126 | CD25: 0.05501965512 | CE25: =MLOgnormal($C$5,$D$5) -> 0.6177379318 | CF25: 1 | CG25: 1 | CH25: 17 | CI25: 0 | CJ25: =IF(RAND()<$F$1,MNormal($C$3,$D$3),0) -> 0 | CK25: 0 | CL25: =IF(RAND()<$F$1,MNormal($C$3,$D$3),0) -> 0 | CM25: -0.0926710963 | CN25: 0 | CO25: 0 | CP25: 0 | CQ25: 0 | CR25: 0
A26: grower5 | B26: 1.206186144 | C26: 0.03481343985 | G26: 3 | H26: 0.3 | I26: 0.01830373402 | J26: 0.01689791393 | K26: 0.01995736533 | L26: 0.02099586892 | M26: 0.03481343985 | N26: 0.03942385975 | O26: 0.02922555804 | P26: 0.01916859746 | Q26: 0.04763828516 | R26: 0.04140222371 | S26: 0 | T26: =S26-S25 -> 0 | X26: =I11*AVERAGE($K24:$K522) -> 0 | Y26: -0.009268837684 | Z26: 0 | AA26: 0 | AB26: 0 | AC26: -0.02847322981 | AD26: 0 | AE26: 0 | AF26: 0 | AG26: 0 | AJ26: 0 | AK26: =IF(RAND()<$F$1,MNormal($C$3,$D$3),0) -> 0 | AL26: 0 | AM26: =IF(RAND()<$F$1,MNormal($C$3,$D$3),0) -> 0 | AN26: 0 | AO26: 0 | AP26: 0.03826836149 | AQ26: 0 | AR26: -0.06885482718 | AS26: 0 | BI26: 4 | BK26: 0.0008035570383 | BL26: 0.04392421831 | BM26: 0.5069694826 | BN26: 1 | BO26: 107 | BP26: 10 | BQ26: 0 | BR26: -0.09807875658 | BS26: 0 | BT26: 0.05863978358 | BU26: 0.1372998723 | BV26: 0 | BW26: 0 | BX26: 0 | BY26: 0 | BZ26: 0 | CC26: 0.02751265764 | CD26: 0.05777351331 | CE26: =MLOgnormal($C$5,$D$5) -> 0.4254132401 | CF26: 1 | CG26: 1 | CH26: 10 | CI26: -0.1315844905 | CJ26: 0.09739817355 | CK26: =IF(RAND()<$F$1,MNormal($C$3,$D$3),0) -> 0 | CL26: 0 | CM26: =IF(RAND()<$F$1,MNormal($C$3,$D$3),0) -> 0 | CN26: 0 | CO26: 0.03245941094 | CP26: -0.07845567292 | CQ26: 0 | CR26: 0
A27: grower6 | B27: 0.5149812295 | C27: 0.4386704463 | G27: 4 | H27: 0.4 | I27: 0.01916557481 | J27: 0.01771559385 | K27: 0.02077733129 | L27: 0.02191081438 | M27: 0.03481343985 | N27: 0.04236709235 | O27: 0.02922555804 | P27: 0.01916859746 | Q27: 0.04763828516 | R27: 0.04140222371 | S27: 0 | T27: 0 | X27: =I12*AVERAGE($L24:$L522) -> 0 | Y27: 0 | Z27: 0.01844352138 | AA27: 0 | AB27: 0.008054911818 | AC27: 0 | AD27: 0 | AE27: -0.02060515002 | AF27: 0 | AG27: 0 | AJ27: 0 | AK27: -0.1994300606 | AL27: =IF(RAND()<$F$1,MNormal($C$3,$D$3),0) -> 0 | AM27: 0 | AN27: =IF(RAND()<$F$1,MNormal($C$3,$D$3),0) -> 0 | AO27: 0 | AP27: 0.07089910738 | AQ27: 0.1067622601 | AR27: 0 | AS27: 0.0674057282 | BI27: 5 | BK27: 0.04573361278 | BL27: 0.04996652836 | BM27: 0.5362035862 | BN27: 1 | BO27: 36 | BP27: 10 | BQ27: 0 | BR27: 0 | BS27: 0 | BT27: 0 | BU27: 0 | BV27: 0 | BW27: 0 | BX27: 0 | BY27: 0 | BZ27: 0 | CC27: 0.01717091501 | CD27: 0.03289791608 | CE27: =MNormal($C$4,$D$4) -> 0.5660729065 | CF27: 1 | CG27: =RANDBETWEEN($C$6,CA27*$BO$6) ->  | CH27: 24 | CI27: 0 | CJ27: 0 | CK27: 0 | CL27: =IF(RAND()<$F$1,MNormal($C$3,$D$3),0) -> 0 | CM27: 0 | CN27: =IF(RAND()<$F$1,MNormal($C$3,$D$3),0) -> 0 | CO27: =IF(RAND()<$F$1,MNormal($C$3,$D$3),0) -> 0 | CP27: =IF(RAND()<$F$1,MNormal($C$3,$D$3),0) -> 0.01908022878 | CQ27: =IF(RAND()<$F$1,MNormal($C$3,$D$3),0) -> 0 | CR27: =IF(RAND()<$F$1,MNormal($C$3,$D$3),0) -> 0
A28: grower7 | B28: 0.08010345035 | C28: 0.03281925195 | G28: 5 | H28: 0.5 | I28: 0.02006920974 | J28: 0.01856069233 | K28: 0.02163000586 | L28: 0.02286287163 | M28: 0.03481343985 | N28: 0.04551482022 | O28: 0.02922555804 | P28: 0.01916859746 | Q28: 0.04763828516 | R28: 0.04140222371 | S28: 0 | T28: 0 | X28: =I14*AVERAGE($N24:$N522) -> 0 | Y28: -0.06559277083 | Z28: 0 | AA28: 0 | AB28: 0.01415739068 | AC28: 0 | AD28: 0 | AE28: 0 | AF28: 0 | AG28: 0 | AJ28: 0 | AK28: 0 | AL28: 0.0209323773 | AM28: =IF(RAND()<$F$1,MNormal($C$3,$D$3),0) -> 0 | AN28: 0 | AO28: =IF(RAND()<$F$1,MNormal($C$3,$D$3),0) -> 0 | AP28: =IF(RAND()<$F$1,MNormal($C$3,$D$3),0) -> 0 | AQ28: =IF(RAND()<$F$1,MNormal($C$3,$D$3),0) -> 0 | AR28: =IF(RAND()<$F$1,MNormal($C$3,$D$3),0) -> 0 | AS28: =IF(RAND()<$F$1,MNormal($C$3,$D$3),0) -> 0.1488992319 | BI28: 6 | BK28: 0.02769096196 | BL28: 0.04263991807 | BM28: 0.6665805337 | BN28: 1 | BO28: 174 | BP28: 17 | BQ28: 0 | BR28: 0 | BS28: 0 | BT28: -0.03176942443 | BU28: 0.1615875141 | BV28: -0.07199655956 | BW28: -0.01502760192 | BX28: 0 | BY28: 0 | BZ28: 0 | CC28: 0.02475870848 | CD28: 0.04794617892 | CE28: 0.6671381899 | CF28: 1 | CH28: 20 | CI28: -0.02186321551 | CJ28: 0 | CK28: -0.05195353404 | CL28: 0 | CM28: =IF(RAND()<$F$1,MNormal($C$3,$D$3),0) -> 0 | CN28: 0 | CO28: =IF(RAND()<$F$1,MNormal($C$3,$D$3),0) -> 0 | CP28: =IF(RAND()<$F$1,MNormal($C$3,$D$3),0) -> 0 | CQ28: =IF(RAND()<$F$1,MNormal($C$3,$D$3),0) -> 0.05748773414 | CR28: =IF(RAND()<$F$1,MNormal($C$3,$D$3),0) -> 0
A29: grower8 | B29: 0.01916859746 | C29: 0.01916859746 | G29: 6 | H29: 0.6 | I29: 0.02101674495 | J29: 0.0194325567 | K29: 0.02251661255 | L29: 0.02385330175 | M29: 0.03481343985 | N29: 0.04887884574 | O29: 0.02922555804 | P29: 0.01916859746 | Q29: 0.04763828516 | R29: 0.04140222371 | S29: 0 | T29: 0 | X29: =I15*AVERAGE($O24:$O522) -> 0 | Y29: 0 | Z29: 0 | AA29: 0 | AB29: 0.000185824595 | AC29: 0 | AD29: 0 | AE29: 0 | AF29: -0.001946619994 | AG29: -0.0007668136085 | AJ29: 0 | AK29: 0.09843621877 | AL29: 0 | AM29: 0 | AN29: =IF(RAND()<$F$1,MNormal($C$3,$D$3),0) -> 0 | AO29: 0 | AP29: =IF(RAND()<$F$1,MNormal($C$3,$D$3),0) -> 0 | AQ29: =IF(RAND()<$F$1,MNormal($C$3,$D$3),0) -> -0.1109139826 | AR29: =IF(RAND()<$F$1,MNormal($C$3,$D$3),0) -> 0 | AS29: =IF(RAND()<$F$1,MNormal($C$3,$D$3),0) -> 0.04294500403 | BI29: 7 | BK29: 0.04123355448 | BL29: 0.07162233402 | BM29: 0.6360250057 | BN29: 1 | BO29: 158 | BP29: 21 | BQ29: 0 | BR29: 0 | BS29: 0 | BT29: 0 | BU29: 0 | BV29: 0 | BW29: 0 | BX29: -0.1853550327 | BY29: 0 | BZ29: 0.02154325524 | CC29: 0.02238866985 | CD29: 0.05001564886 | CE29: 0.5279177161 | CF29: 1 | CH29: 25 | CI29: 0 | CJ29: 0 | CK29: 0 | CL29: 0 | CM29: =IF(RAND()<$F$1,MNormal($C$3,$D$3),0) -> 0 | CN29: =IF(RAND()<$F$1,MNormal($C$3,$D$3),0) -> 0 | CO29: 0 | CP29: =IF(RAND()<$F$1,MNormal($C$3,$D$3),0) -> 0 | CQ29: =IF(RAND()<$F$1,MNormal($C$3,$D$3),0) -> 0 | CR29: =IF(RAND()<$F$1,MNormal($C$3,$D$3),0) -> 0
A30: grower9 | B30: 0.04763828516 | C30: 0.04763828516 | G30: 7 | H30: 0.7 | I30: 0.02201039212 | J30: 0.02033028751 | K30: 0.02343841375 | L30: 0.02488338703 | M30: 0.03481343985 | N30: 0.05247127026 | O30: 0.02922555804 | P30: 0.01916859746 | Q30: 0.04763828516 | R30: 0.04140222371 | S30: 0 | T30: 0 | W30: =SLOPE(V28:V33,U28:U33) ->  | X30: =I16*AVERAGE($P24:$P522) -> 0.0002879245572 | Y30: 0 | Z30: 0 | AA30: -0.001104471078 | AB30: 0 | AC30: 0 | AD30: 1.659899821e-05 | AE30: 0 | AF30: -0.0003060456733 | AG30: 0.0007874032189 | AJ30: 0 | AK30: 0 | AL30: 0 | AM30: 0 | AN30: =IF(RAND()<$F$1,MNormal($C$3,$D$3),0) -> 0 | AO30: =IF(RAND()<$F$1,MNormal($C$3,$D$3),0) -> 0.1845580033 | AP30: 0 | AQ30: =IF(RAND()<$F$1,MNormal($C$3,$D$3),0) -> 0 | AR30: =IF(RAND()<$F$1,MNormal($C$3,$D$3),0) -> 0.096399618 | AS30: =IF(RAND()<$F$1,MNormal($C$3,$D$3),0) -> -0.1495154118 | BI30: 8 | BK30: 0.0005996584892 | BL30: 0.04173094077 | BM30: 0.4228697957 | BN30: 1 | BO30: 90 | BP30: 24 | BQ30: 0 | BR30: 0 | BS30: -0.1430886679 | BT30: 0.1755631012 | BU30: -0.1678022725 | BV30: 0 | BW30: -0.0002363617594 | BX30: 0 | BY30: 0 | BZ30: 0 | CC30: 0.004824876785 | CD30: 0.04636295282 | CE30: 0.4572721805 | CF30: 1 | CH30: 14 | CI30: 0 | CJ30: -0.02006289043 | CK30: 0 | CL30: 0 | CM30: =IF(RAND()<$F$1,MNormal($C$3,$D$3),0) -> 0 | CN30: =IF(RAND()<$F$1,MNormal($C$3,$D$3),0) -> -0.1008834846 | CO30: =IF(RAND()<$F$1,MNormal($C$3,$D$3),0) -> -0.02061464982 | CP30: 0 | CQ30: =IF(RAND()<$F$1,MNormal($C$3,$D$3),0) -> 0 | CR30: =IF(RAND()<$F$1,MNormal($C$3,$D$3),0) -> 0
A31: grower10 | B31: 0.4183920952 | C31: 0.04140222371 | D31: emerg | G31: 8 | H31: 0.8 | I31: 0.02305247236 | J31: 0.02125271329 | K31: 0.02439671131 | L31: 0.02595442933 | M31: 0.03481343985 | N31: 0.05630443526 | O31: 0.02922555804 | P31: 0.01916859746 | Q31: 0.04763828516 | R31: 0.04140222371 | S31: 0 | T31: 0 | X31: =I17*AVERAGE($Q24:$Q522) -> -0.00205397545 | Y31: 0.001291759483 | Z31: 0 | AA31: -0.00251150477 | AB31: 0 | AC31: 0.002483302657 | AD31: -0.001237869533 | AE31: 0 | AF31: 0 | AG31: 0 | AJ31: 0 | AK31: 0.06714888868 | AL31: 0 | AM31: 0 | AN31: =IF(RAND()<$F$1,MNormal($C$3,$D$3),0) -> 0 | AO31: =IF(RAND()<$F$1,MNormal($C$3,$D$3),0) -> 0 | AP31: =IF(RAND()<$F$1,MNormal($C$3,$D$3),0) -> -0.04010023573 | AQ31: 0 | AR31: =IF(RAND()<$F$1,MNormal($C$3,$D$3),0) -> 0 | AS31: =IF(RAND()<$F$1,MNormal($C$3,$D$3),0) -> 0.1398304137 | BI31: 9 | BK31: 0.02376560867 | BL31: 0.05822566071 | BM31: 0.6438973572 | BN31: 1 | BO31: 166 | BP31: 15 | BQ31: 0 | BR31: 0 | BS31: 0 | BT31: 0 | BU31: -0.02417304293 | BV31: 0.06454808898 | BW31: -0.04919562929 | BX31: 0 | BY31: 0 | BZ31: 0 | CC31: 0.04777402282 | CD31: 0.05200631191 | CE31: 0.4607298587 | CF31: 1 | CH31: 15 | CI31: 0 | CJ31: 0 | CK31: 0 | CL31: 0 | CM31: =IF(RAND()<$F$1,MNormal($C$3,$D$3),0) -> 0.1258515619 | CN31: =IF(RAND()<$F$1,MNormal($C$3,$D$3),0) -> 0 | CO31: =IF(RAND()<$F$1,MNormal($C$3,$D$3),0) -> 0 | CP31: =IF(RAND()<$F$1,MNormal($C$3,$D$3),0) -> -0.04957962772 | CQ31: 0 | CR31: =IF(RAND()<$F$1,MNormal($C$3,$D$3),0) -> 0
A32: avg | B32: =AVERAGE(I24:R522) -> 0.2711804236 | D32: =K24 -> 0.01841085553 | G32: 9 | H32: 0.9 | I32: 0.02414541982 | J32: 0.02219836515 | K32: 0.02539284717 | L32: 0.0270677481 | M32: 0.03481343985 | N32: 0.06039085048 | O32: 0.02922555804 | P32: 0.01916859746 | Q32: 0.04763828516 | R32: 0.04140222371 | S32: 0 | T32: 0 | X32: =I18*AVERAGE($R24:$R522) -> 0 | Y32: 0 | Z32: 0 | AA32: 0 | AB32: 0 | AC32: 0 | AD32: 0 | AE32: -0.008114460435 | AF32: 0 | AG32: 0 | AJ32: -0.2640100477 | AK32: 0 | AL32: 0 | AM32: 0 | AN32: =IF(RAND()<$F$1,MNormal($C$3,$D$3),0) -> -0.005837106284 | AO32: =IF(RAND()<$F$1,MNormal($C$3,$D$3),0) -> 0 | AP32: =IF(RAND()<$F$1,MNormal($C$3,$D$3),0) -> 0 | AQ32: =IF(RAND()<$F$1,MNormal($C$3,$D$3),0) -> 0 | AR32: 0 | AS32: =IF(RAND()<$F$1,MNormal($C$3,$D$3),0) -> 0 | BI32: 10 | BK32: 0.03741957843 | BL32: 0.04475351105 | BM32: 0.5977292394 | BN32: 1 | BO32: 162 | BP32: 11 | BQ32: 0 | BR32: 0 | BS32: 0 | BT32: 0 | BU32: 0 | BV32: -0.02652029547 | BW32: 0 | BX32: 0 | BY32: 0 | BZ32: 0 | CC32: 0.02266838253 | CD32: 0.04799579787 | CE32: 0.646284965 | CF32: 1 | CH32: 12 | CI32: 0 | CJ32: 0 | CK32: 0 | CL32: 0 | CM32: =IF(RAND()<$F$1,MNormal($C$3,$D$3),0) -> 0 | CN32: =IF(RAND()<$F$1,MNormal($C$3,$D$3),0) -> 0 | CO32: =IF(RAND()<$F$1,MNormal($C$3,$D$3),0) -> 0 | CP32: =IF(RAND()<$F$1,MNormal($C$3,$D$3),0) -> 0 | CQ32: =IF(RAND()<$F$1,MNormal($C$3,$D$3),0) -> -0.05340219755 | CR32: 0
A33: stdev | B33: =STDEV(I24:R522) -> 0.3316655013 | D33: =K44 -> 0.04084243884 | G33: 10 | H33: 1 | I33: 0.02529178502 | J33: 0.0231654518 | K33: 0.02642820376 | L33: 0.02822467819 | M33: 0.03481343985 | N33: 0.0647431077 | O33: 0.02922555804 | P33: 0.01916859746 | Q33: 0.04763828516 | R33: 0.04140222371 | S33: 0 | T33: 0 | X33: =SUM(X24:X32) -> -0.001005059453 | Y33: -0.06310144725 | Z33: 0.01844352138 | AA33: -0.003615975848 | AB33: 0.02239812709 | AC33: -0.02549234076 | AD33: -0.05961046334 | AE33: -0.07958853371 | AF33: -0.01982323278 | AG33: 2.058961031e-05 | AJ33: 0 | AK33: 0.0406185329 | AL33: 0 | AM33: 0 | AN33: =IF(RAND()<$F$1,MNormal($C$3,$D$3),0) -> 0 | AO33: =IF(RAND()<$F$1,MNormal($C$3,$D$3),0) -> 0.1447233421 | AP33: =IF(RAND()<$F$1,MNormal($C$3,$D$3),0) -> -0.09782574264 | AQ33: =IF(RAND()<$F$1,MNormal($C$3,$D$3),0) -> 0.03612264141 | AR33: =IF(RAND()<$F$1,MNormal($C$3,$D$3),0) -> 0 | AS33: 0
D34: =K64 -> 0.08730591379 | G34: 11 | H34: 1.1 | I34: 0.02649423786 | J34: 0.0241518353 | K34: 0.02750420451 | L34: 0.02942656742 | M34: 0.03481343985 | N34: 0.06937377894 | O34: 0.02922555804 | P34: 0.01916859746 | Q34: 0.04763828516 | R34: 0.04140222371 | S34: 0 | T34: 0
A35: maxlevel | B35: =MAX(B22:B31) -> 1.206186144 | D35: =K84 -> 0.1721679218 | G35: 12 | H35: 1.2 | I35: 0.02775557007 | J35: 0.02515500859 | K35: 0.02862231416 | L35: 0.03067477391 | M35: 0.03481343985 | N35: 0.07429529788 | O35: 0.02922555804 | P35: 0.01916859746 | Q35: 0.04763828516 | R35: 0.04140222371 | S35: 0 | T35: 0 | W35: =IF(RAND()<poisson_parameter*model!K35,1,0) -> 0 | X35: =IF(RAND()<K24*$T$22,1,0) -> 0 | Y35: 1
A36: average endlevel | B36: =AVERAGE(endlevel10) -> 0.3652699346 | D36: =K104 -> 0.2918633846 | G36: 13 | H36: 1.3 | I36: 0.02907869704 | J36: 0.0261720754 | K36: 0.02978403896 | L36: 0.03197066298 | M36: 0.03481343985 | N36: 0.07951982364 | O36: 0.02922555804 | P36: 0.01916859746 | Q36: 0.04763828516 | R36: 0.04140222371 | S36: 0 | T36: 0 | W36: =IF(RAND()<poisson_parameter*model!K36,1,0) -> 0 | X36: =IF(RAND()<K25*$T$22,1,0) -> 0 | Y36: 2 | BO36: =$C$3-BP36/50 -> 0 | BP36: =1-(501-BO23)/500 -> 0
A37: totsupport maxlevel | B37: =AG20 -> 0.6397139442 | D37: =K124 -> 0.4056777892 | G37: 14 | H37: 1.4 | I37: 0.03046665904 | J37: 0.02719973342 | K37: 0.0309909269 | L37: 0.03331560398 | M37: 0.03481343985 | N37: 0.08505908612 | O37: 0.02922555804 | P37: 0.01916859746 | Q37: 0.04763828516 | R37: 0.04140222371 | S37: 0 | T37: 0 | W37: =IF(RAND()<poisson_parameter*model!K37,1,0) -> 0 | X37: =IF(RAND()<(K26-$T$21)*$T$22*(1+SUM($X$35:X36)),1,0) -> 0 | Y37: 3 | BO37: =$C$3-BP37/50 -> 0 | BP37: =1-(501-BO24)/500 -> 0
A38: support maxlevel | B38: =my_lookup(B35,B22:B31,connectionsum) -> 0.07392029707 | D38: =K144 -> 0.4780371448 | G38: 15 | H38: 1.5 | I38: 0.03192262138 | J38: 0.02823426195 | K38: 0.03224456765 | L38: 0.03471096658 | M38: 0.03481343985 | N38: 0.09092421248 | O38: 0.02922555804 | P38: 0.01916859746 | Q38: 0.04763828516 | R38: 0.04140222371 | S38: 0 | T38: 0 | W38: =IF(RAND()<poisson_parameter*model!K38,1,0) -> 0 | X38: =IF(RAND()<(K27-$T$21)*$T$22*(1+pref_attach_on*SUM($X$35:X37)),1,0) -> 0 | Y38: 4 | Z38: =IF(AND(SUM($X$35:X37)=0,X38=1),Y38,"") ->  | AJ38: Average | AK38: Median | AL38: Minimum | AM38: Maximum | AN38: Perc 0.025 | AO38: Perc 0.975 | AP38: StDev | AQ38: Skewness | AR38: P value | AS38: # of simulations | BO38: =$C$3-BP38/50 -> 0 | BP38: =1-(501-BO25)/500 -> 0
A39: correl sum and max | B39: =CORREL(connectionsum,maxlevel10) -> 0.6175066447 | D39: =K164 -> 0.5137039522 | G39: 16 | H39: 1.6 | I39: 0.03344987374 | J39: 0.02927151494 | K39: 0.03354659251 | L39: 0.03615811691 | M39: 0.03481343985 | N39: 0.09712553501 | O39: 0.02922555804 | P39: 0.01916859746 | Q39: 0.04763828516 | R39: 0.04140222371 | S39: 0 | T39: 0 | W39: =IF(RAND()<poisson_parameter*model!K39,1,0) -> 0 | X39: =IF(RAND()<(K28^quadratic_condition*L28-$T$21)*$T$22*(1+pref_attach_on*SUM($X$35:X38)),1,0) -> 0 | Y39: 5 | Z39: =IF(AND(SUM($X$35:X38)=0,X39=1),Y39,"") ->  | AJ39: 2.238 | AK39: 2 | AL39: 0 | AM39: 6 | AN39: 0 | AO39: 5 | AP39: 1.261959224 | AQ39: 0.3192296336 | AR39: 0.574 | AS39: 500 | BO39: -0.00424 | BP39: 0.212
A40: correl carcap | B40: =CORREL(B22:B31,E10:E19) -> 0.3858645779 | D40: =K184 -> 0.5315126777 | G40: 17 | H40: 1.7 | I40: 0.03505182815 | J40: 0.03030692063 | K40: 0.0348986741 | L40: 0.03765841329 | M40: 0.03481343985 | N40: 0.1036723808 | O40: 0.02922555804 | P40: 0.01916859746 | Q40: 0.04763828516 | R40: 0.04140222371 | S40: 0 | T40: 0 | W40: =IF(RAND()<poisson_parameter*model!K40,1,0) -> 0 | X40: =IF(RAND()<(K29^quadratic_condition*L29-$T$21)*$T$22*(1+pref_attach_on*SUM($X$35:X39)),1,0) -> 0 | Y40: 6 | Z40: =IF(AND(SUM($X$35:X39)=0,X40=1),Y40,"") ->  | AJ40: 2.308 | AK40: 2 | AL40: 0 | AM40: 6 | AN40: 0 | AO40: 5 | AP40: 1.280787583 | AQ40: 0.2423192205 | AR40: 0.628 | AS40: 500 | BO40: -0.0014 | BP40: 0.07
A41: correl rate | B41: =CORREL(B22:B31,D10:D19) -> 0.9154648655 | D41: =K204 -> 0.5428150713 | G41: 18 | H41: 1.8 | I41: 0.03673201575 | J41: 0.03133548904 | K41: 0.03630252599 | L41: 0.03921320167 | M41: 0.03481343985 | N41: 0.1105728445 | O41: 0.02922555804 | P41: 0.01916859746 | Q41: 0.04763828516 | R41: 0.04140222371 | S41: 0 | T41: 0 | W41: =IF(RAND()<poisson_parameter*model!K41,1,0) -> 0 | X41: =IF(RAND()<(K30^quadratic_condition*L30-$T$21)*$T$22*(1+pref_attach_on*SUM($X$35:X40)),1,0) -> 0 | Y41: 7 | Z41: =IF(AND(SUM($X$35:X40)=0,X41=1),Y41,"") ->  | AJ41: 2.27 | AK41: 2 | AL41: 0 | AM41: 7 | AN41: 0 | AO41: 5 | AP41: 1.239424199 | AQ41: 0.534992646 | AR41: 0.606 | AS41: 500 | BO41: -0.00692 | BP41: 0.346
D42: =K224 -> 0.5540199554 | G42: 19 | H42: 1.9 | I42: 0.03849408201 | J42: 0.03235182835 | K42: 0.03775990205 | L42: 0.0408238107 | M42: 0.03481343985 | N42: 0.1178335468 | O42: 0.02922555804 | P42: 0.01916859746 | Q42: 0.04763828516 | R42: 0.04140222371 | S42: 0 | T42: 0 | W42: =IF(RAND()<poisson_parameter*model!K42,1,0) -> 0 | X42: =IF(RAND()<(K31^quadratic_condition*L31-$T$21)*$T$22*(1+pref_attach_on*SUM($X$35:X41)),1,0) -> 0 | Y42: 8 | Z42: =IF(AND(SUM($X$35:X41)=0,X42=1),Y42,"") ->  | AJ42: 2.32 | AK42: 2 | AL42: 0 | AM42: 8 | AN42: 0 | AO42: 5 | AP42: 1.287211648 | AQ42: 0.4734749909 | AR42: 0.598 | AS42: 500 | BO42: -0.00628 | BP42: 0.314
D43: =E11 -> 0.3758006941 | G43: 20 | H43: 2 | I43: 0.04034178021 | J43: 0.03335017138 | K43: 0.0392725957 | L43: 0.04249154644 | M43: 0.03481343985 | N43: 0.1254593802 | O43: 0.02922555804 | P43: 0.01916859746 | Q43: 0.04763828516 | R43: 0.04140222371 | S43: 0 | T43: 0 | W43: =IF(RAND()<poisson_parameter*model!K43,1,0) -> 0 | X43: =IF(RAND()<(K32^quadratic_condition*L32-$T$21)*$T$22*(1+pref_attach_on*SUM($X$35:X42)),1,0) -> 0 | Y43: 9 | Z43: =IF(AND(SUM($X$35:X42)=0,X43=1),Y43,"") ->  | AJ43: 2.264 | AK43: 2 | AL43: 0 | AM43: 7 | AN43: 0 | AO43: 5 | AP43: 1.254372712 | AQ43: 0.3781700279 | AR43: 0.628 | AS43: 500 | BO43: -0.00356 | BP43: 0.178
G44: 21 | H44: 2.1 | I44: 0.04227896322 | J44: 0.03432441306 | K44: 0.04084243884 | L44: 0.04421768683 | M44: 0.03481343985 | N44: 0.1334532476 | O44: 0.02922555804 | P44: 0.01916859746 | Q44: 0.04763828516 | R44: 0.04140222371 | S44: 0 | T44: 0 | W44: =IF(RAND()<poisson_parameter*model!K44,1,0) -> 0 | X44: =IF(RAND()<(K33^quadratic_condition*L33-$T$21)*$T$22*(1+pref_attach_on*SUM($X$35:X43)),1,0) -> 0 | Y44: 10 | Z44: =IF(AND(SUM($X$35:X43)=0,X44=1),Y44,"") ->  | AJ44: 2.274 | AK44: 2 | AL44: 0 | AM44: 6 | AN44: 0 | AO44: 5 | AP44: 1.364789104 | AQ44: 0.3646352869 | AR44: 0.62 | AS44: 500 | BO44: -0.0066 | BP44: 0.33
G45: 22 | H45: 2.2 | I45: 0.04430957323 | J45: 0.03526815964 | K45: 0.04247130066 | L45: 0.04600347569 | M45: 0.03481343985 | N45: 0.1418157981 | O45: 0.02922555804 | P45: 0.01916859746 | Q45: 0.04763828516 | R45: 0.04140222371 | S45: 0 | T45: 0 | W45: =IF(RAND()<poisson_parameter*model!K45,1,0) -> 0 | X45: =IF(RAND()<(K34^quadratic_condition*L34-$T$21)*$T$22*(1+pref_attach_on*SUM($X$35:X44)),1,0) -> 0 | Y45: 11 | Z45: =IF(AND(SUM($X$35:X44)=0,X45=1),Y45,"") ->  | AJ45: 2.286 | AK45: 2 | AL45: 0 | AM45: 7 | AN45: 0 | AO45: 5 | AP45: 1.278856892 | AQ45: 0.3993135887 | AR45: 0.594 | AS45: 500 | BO45: -0.00644 | BP45: 0.322
G46: 23 | H46: 2.3 | I46: 0.04643762945 | J46: 0.0361747901 | K46: 0.04416108603 | L46: 0.04785011647 | M46: 0.03481343985 | N46: 0.1505451646 | O46: 0.02922555804 | P46: 0.01916859746 | Q46: 0.04763828516 | R46: 0.04140222371 | S46: 0 | T46: 0 | W46: =IF(RAND()<poisson_parameter*model!K46,1,0) -> 0 | X46: =IF(RAND()<(K35^quadratic_condition*L35-$T$21)*$T$22*(1+pref_attach_on*SUM($X$35:X45)),1,0) -> 0 | Y46: 12 | Z46: =IF(AND(SUM($X$35:X45)=0,X46=1),Y46,"") ->  | AJ46: 2.29 | AK46: 2 | AL46: 0 | AM46: 7 | AN46: 0 | AO46: 5 | AP46: 1.24458748 | AQ46: 0.2445729401 | AR46: 0.608 | AS46: 500 | BO46: =$C$3-BP46/50 -> -0.0198 | BP46: 0.99
G47: 24 | H47: 2.4 | I47: 0.04866721359 | J47: 0.03703752987 | K47: 0.04591373381 | L47: 0.04975876568 | M47: 0.03481343985 | N47: 0.1596367133 | O47: 0.02922555804 | P47: 0.01916859746 | Q47: 0.04763828516 | R47: 0.04140222371 | S47: 0 | T47: 0 | W47: =IF(RAND()<poisson_parameter*model!K47,1,0) -> 0 | X47: =IF(RAND()<(K36^quadratic_condition*L36-$T$21)*$T$22*(1+pref_attach_on*SUM($X$35:X46)),1,0) -> 0 | Y47: 13 | Z47: =IF(AND(SUM($X$35:X46)=0,X47=1),Y47,"") ->  | AJ47: 2.22 | AK47: 2 | AL47: 0 | AM47: 7 | AN47: 0 | AO47: 5 | AP47: 1.287989843 | AQ47: 0.3976973316 | AR47: 0.62 | AS47: 500
G48: 25 | H48: 2.5 | I48: 0.05100245323 | J48: 0.0378495365 | K48: 0.04773121466 | L48: 0.05173052596 | M48: 0.03481343985 | N48: 0.1690828097 | O48: 0.02922555804 | P48: 0.01916859746 | Q48: 0.04763828516 | R48: 0.04140222371 | S48: 0 | T48: 0 | W48: =IF(RAND()<poisson_parameter*model!K48,1,0) -> 0 | X48: =IF(RAND()<(K37^quadratic_condition*L37-$T$21)*$T$22*(1+pref_attach_on*SUM($X$35:X47)),1,0) -> 0 | Y48: 14 | Z48: =IF(AND(SUM($X$35:X47)=0,X48=1),Y48,"") ->  | AJ48: 2.22 | AK48: 2 | AL48: 0 | AM48: 6 | AN48: 0 | AO48: 5 | AP48: 1.248486057 | AQ48: 0.3218897947 | AR48: 1 | AS48: 500
G49: 26 | H49: 2.6 | I49: 0.05344750286 | J49: 0.03860399637 | K49: 0.04961552863 | L49: 0.0537664389 | M49: 0.03481343985 | N49: 0.178872612 | O49: 0.02922555804 | P49: 0.01916859746 | Q49: 0.04763828516 | R49: 0.04140222371 | S49: 0 | T49: 0 | W49: =IF(RAND()<poisson_parameter*model!K49,1,0) -> 0 | X49: =IF(RAND()<(K38^quadratic_condition*L38-$T$21)*$T$22*(1+pref_attach_on*SUM($X$35:X48)),1,0) -> 0 | Y49: 15 | Z49: =IF(AND(SUM($X$35:X48)=0,X49=1),Y49,"") ->  | AJ49: =AVERAGE(AJ39:AJ48) -> 2.269 | AP49: =AVERAGE(AP39:AP48) -> 1.274846474
G50: 27 | H50: 2.7 | I50: 0.05600652282 | J50: 0.03929423105 | K50: 0.05156870238 | L50: 0.05586747759 | M50: 0.03481343985 | N50: 0.1889919009 | O50: 0.02922555804 | P50: 0.01916859746 | Q50: 0.04763828516 | R50: 0.04140222371 | S50: 0 | T50: 0 | W50: =IF(RAND()<poisson_parameter*model!K50,1,0) -> 0 | X50: =IF(RAND()<(K39^quadratic_condition*L39-$T$21)*$T$22*(1+pref_attach_on*SUM($X$35:X49)),1,0) -> 0 | Y50: 16 | Z50: =IF(AND(SUM($X$35:X49)=0,X50=1),Y50,"") -> 
G51: 28 | H51: 2.8 | I51: 0.05868365616 | J51: 0.03991381129 | K51: 0.05359278598 | L51: 0.05803453892 | M51: 0.03481343985 | N51: 0.1994229546 | O51: 0.02922555804 | P51: 0.01916859746 | Q51: 0.04763828516 | R51: 0.04140222371 | S51: 0 | T51: 0 | W51: =IF(RAND()<poisson_parameter*model!K51,1,0) -> 0 | X51: =IF(RAND()<(K40^quadratic_condition*L40-$T$21)*$T$22*(1+pref_attach_on*SUM($X$35:X50)),1,0) -> 0 | Y51: 17 | Z51: =IF(AND(SUM($X$35:X50)=0,X51=1),Y51,"") ->  | AJ51: Average | AK51: Median | AL51: Minimum | AM51: Maximum | AN51: Perc 0.025 | AO51: Perc 0.975 | AP51: StDev | AQ51: Skewness | AR51: P value | AS51: # of simulations
G52: 29 | H52: 2.9 | I52: 0.06148300357 | J52: 0.04045667602 | K52: 0.05568984934 | L52: 0.06026843569 | M52: 0.03481343985 | N52: 0.2101444782 | O52: 0.02922555804 | P52: 0.01916859746 | Q52: 0.04763828516 | R52: 0.04140222371 | S52: 0 | T52: 0 | W52: =IF(RAND()<poisson_parameter*model!K52,1,0) -> 0 | X52: =IF(RAND()<(K41^quadratic_condition*L41-$T$21)*$T$22*(1+pref_attach_on*SUM($X$35:X51)),1,0) -> 0 | Y52: 18 | Z52: =IF(AND(SUM($X$35:X51)=0,X52=1),Y52,"") ->  | AJ52: 2.222 | AK52: 2 | AL52: 0 | AM52: 6 | AN52: 0 | AO52: 5 | AP52: 1.333602075 | AQ52: 0.2840817038 | AR52: 1 | AS52: 1000
G53: 30 | H53: 3 | I53: 0.06440859671 | J53: 0.04091725315 | K53: 0.05786197816 | L53: 0.0625698885 | M53: 0.03481343985 | N53: 0.2211315974 | O53: 0.02922555804 | P53: 0.01916859746 | Q53: 0.04763828516 | R53: 0.04140222371 | S53: 0 | T53: 0 | W53: =IF(RAND()<poisson_parameter*model!K53,1,0) -> 0 | X53: =IF(RAND()<(K42^quadratic_condition*L42-$T$21)*$T$22*(1+pref_attach_on*SUM($X$35:X52)),1,0) -> 0 | Y53: 19 | Z53: =IF(AND(SUM($X$35:X52)=0,X53=1),Y53,"") ->  | AJ53: 2.303 | AK53: 2 | AL53: 0 | AM53: 7 | AN53: 0 | AO53: 5 | AP53: 1.372980727 | AQ53: 0.4151897123 | AR53: 1 | AS53: 1000
G54: 31 | H54: 3.1 | I54: 0.06746437007 | J54: 0.04129057863 | K54: 0.06011126945 | L54: 0.0649395176 | M54: 0.03481343985 | N54: 0.2323559223 | O54: 0.02922555804 | P54: 0.01916859746 | Q54: 0.04763828516 | R54: 0.04140222371 | S54: 0 | T54: 0 | W54: =IF(RAND()<poisson_parameter*model!K54,1,0) -> 0 | X54: =IF(RAND()<(K43^quadratic_condition*L43-$T$21)*$T$22*(1+pref_attach_on*SUM($X$35:X53)),1,0) -> 0 | Y54: 20 | Z54: =IF(AND(SUM($X$35:X53)=0,X54=1),Y54,"") ->  | AJ54: 2.244 | AK54: 2 | AL54: 0 | AM54: 7 | AN54: 0 | AO54: 5 | AP54: 1.283008227 | AQ54: 0.5118277556 | AR54: 1 | AS54: 1000
G55: 32 | H55: 3.2 | I55: 0.07065413192 | J55: 0.04157240985 | K55: 0.06243982653 | L55: 0.06737783461 | M55: 0.03481343985 | N55: 0.2437856877 | O55: 0.02922555804 | P55: 0.01916859746 | Q55: 0.04763828516 | R55: 0.04140222371 | S55: 0 | T55: 0 | W55: =IF(RAND()<poisson_parameter*model!K55,1,0) -> 0 | X55: =IF(RAND()<(K44^quadratic_condition*L44-$T$21)*$T$22*(1+pref_attach_on*SUM($X$35:X54)),1,0) -> 0 | Y55: 21 | Z55: =IF(AND(SUM($X$35:X54)=0,X55=1),Y55,"") ->  | AJ55: 2.25 | AK55: 2 | AL55: 0 | AM55: 6 | AN55: 0 | AO55: 5 | AP55: 1.267717282 | AQ55: 0.299446234 | AR55: 1 | AS55: 1000
E56: =B22 -> 0.7394182791 | F56: =B24 -> 0.5740356122 | G56: 33 | H56: 3.3 | I56: 0.0739815346 | J56: 0.0417593291 | K56: 0.06484975355 | L56: 0.06988523419 | M56: 0.03481343985 | N56: 0.2553859729 | O56: 0.02922555804 | P56: 0.01916859746 | Q56: 0.04763828516 | R56: 0.04140222371 | S56: 0 | T56: 0 | W56: =IF(RAND()<poisson_parameter*model!K56,1,0) -> 0 | X56: =IF(RAND()<(K45^quadratic_condition*L45-$T$21)*$T$22*(1+pref_attach_on*SUM($X$35:X55)),1,0) -> 0 | Y56: 22 | Z56: =IF(AND(SUM($X$35:X55)=0,X56=1),Y56,"") ->  | AJ56: 2.225 | AK56: 2 | AL56: 0 | AM56: 6 | AN56: 0 | AO56: 5 | AP56: 1.279066461 | AQ56: 0.3328421035 | AR56: 1 | AS56: 1000
G57: 34 | H57: 3.4 | I57: 0.07745004457 | J57: 0.04184883324 | K57: 0.0673431494 | L57: 0.07246198583 | M57: 0.03481343985 | N57: 0.2671190021 | O57: 0.02922555804 | P57: 0.01916859746 | Q57: 0.04763828516 | R57: 0.04140222371 | S57: 0 | T57: 0 | W57: =IF(RAND()<poisson_parameter*model!K57,1,0) -> 0 | X57: =IF(RAND()<(K46^quadratic_condition*L46-$T$21)*$T$22*(1+pref_attach_on*SUM($X$35:X56)),1,0) -> 0 | Y57: 23 | Z57: =IF(AND(SUM($X$35:X56)=0,X57=1),Y57,"") ->  | AJ57: 2.211 | AK57: 2 | AL57: 0 | AM57: 7 | AN57: 0 | AO57: 5 | AP57: 1.279889494 | AQ57: 0.3959745748 | AR57: 1 | AS57: 1000
B58: 1 | C58: =TRANSPOSE(maxlevel10) -> 0.7394182791 | D58: =C58 -> 0.7394182791 | E58: within person corrleation endlevel | F58: within person corrleation gen factor | G58: 35 | H58: 3.5 | I58: 0.0810629129 | J58: 0.04183940562 | K58: 0.06992210112 | L58: 0.07510822571 | M58: 0.03481343985 | N58: 0.2789445225 | O58: 0.02922555804 | P58: 0.01916859746 | Q58: 0.04763828516 | R58: 0.04140222371 | S58: 0 | T58: 0 | W58: =IF(RAND()<poisson_parameter*model!K58,1,0) -> 0 | X58: =IF(RAND()<(K47^quadratic_condition*L47-$T$21)*$T$22*(1+pref_attach_on*SUM($X$35:X57)),1,0) -> 0 | Y58: 24 | Z58: =IF(AND(SUM($X$35:X57)=0,X58=1),Y58,"") ->  | AJ58: 2.243 | AK58: 2 | AL58: 0 | AM58: 7 | AN58: 0 | AO58: 5 | AP58: 1.287481498 | AQ58: 0.4311907651 | AR58: 1 | AS58: 1000
B59: 2 | C59: 0.04184883324 | D59: =C68 -> 0.05092682943 | E59: =CORREL(I60:R60,endlevel10) -> 0.041694525 | F59: =CORREL(I60:R60,$E$9:$E$18) -> 0.03669018881 | G59: 36 | H59: 3.6 | I59: 0.08482314636 | J59: 0.04173056699 | K59: 0.07258867666 | L59: 0.07782394869 | M59: 0.03481343985 | N59: 0.2908202539 | O59: 0.02922555804 | P59: 0.01916859746 | Q59: 0.04763828516 | R59: 0.04140222371 | S59: 0 | T59: 0 | W59: =IF(RAND()<poisson_parameter*model!K59,1,0) -> 0 | X59: =IF(RAND()<(K48^quadratic_condition*L48-$T$21)*$T$22*(1+pref_attach_on*SUM($X$35:X58)),1,0) -> 0 | Y59: 25 | Z59: =IF(AND(SUM($X$35:X58)=0,X59=1),Y59,"") ->  | AJ59: 2.204 | AK59: 2 | AL59: 0 | AM59: 8 | AN59: 0 | AO59: 5 | AP59: 1.289203648 | AQ59: 0.3994563208 | AR59: 1 | AS59: 1000
B60: 3 | C60: 0.5740356122 | D60: =C59 -> 0.04184883324 | E60: =CORREL(I80:R80,endlevel10) -> 0.1207802635 | F60: =CORREL(I80:R80,$E$9:$E$18) -> 0.06295325536 | G60: 37 | H60: 3.7 | I60: 0.08873347993 | J60: 0.04152290277 | K60: 0.07534491704 | L60: 0.08060900061 | M60: 0.03481343985 | N60: 0.3027024019 | O60: 0.02922555804 | P60: 0.01916859746 | Q60: 0.04763828516 | R60: 0.04140222371 | S60: 0 | T60: 0 | W60: =IF(RAND()<poisson_parameter*model!K60,1,0) -> 0 | X60: =IF(RAND()<(K49^quadratic_condition*L49-$T$21)*$T$22*(1+pref_attach_on*SUM($X$35:X59)),1,0) -> 0 | Y60: 26 | Z60: =IF(AND(SUM($X$35:X59)=0,X60=1),Y60,"") ->  | AJ60: 2.27 | AK60: 2 | AL60: 0 | AM60: 6 | AN60: 0 | AO60: 5 | AP60: 1.255657866 | AQ60: 0.3133429148 | AR60: 1 | AS60: 1000
B61: 4 | C61: 0.4266862619 | D61: =C69 -> 0.05448371638 | E61: =CORREL(I100:R100,endlevel10) -> 0.2287127609 | F61: =CORREL(I100:R100,$E$9:$E$18) -> 0.08502750575 | G61: 38 | H61: 3.8 | I61: 0.09279635078 | J61: 0.04121806501 | K61: 0.07819282793 | L61: 0.08346307095 | M61: 0.03481343985 | N61: 0.3145462215 | O61: 0.02922555804 | P61: 0.01916859746 | Q61: 0.04763828516 | R61: 0.04140222371 | S61: 0 | T61: 0 | W61: =IF(RAND()<poisson_parameter*model!K61,1,0) -> 0 | X61: =IF(RAND()<(K50^quadratic_condition*L50-$T$21)*$T$22*(1+pref_attach_on*SUM($X$35:X60)),1,0) -> 0 | Y61: 27 | Z61: =IF(AND(SUM($X$35:X60)=0,X61=1),Y61,"") ->  | AJ61: 2.297 | AK61: 2 | AL61: 0 | AM61: 6 | AN61: 0 | AO61: 5 | AP61: 1.284695077 | AQ61: 0.2534247724 | AR61: 1 | AS61: 1000
B62: 5 | C62: 1.206186144 | D62: =C60 -> 0.5740356122 | E62: =CORREL(I120:R120,endlevel10) -> 0.3111028253 | F62: =CORREL(I120:R120,$E$9:$E$18) -> 0.08874295611 | G62: 39 | H62: 3.9 | I62: 0.09701387444 | J62: 0.04081874835 | K62: 0.08113437049 | L62: 0.08638568578 | M62: 0.03481343985 | N62: 0.3263066172 | O62: 0.02922555804 | P62: 0.01916859746 | Q62: 0.04763828516 | R62: 0.04140222371 | S62: 0 | T62: 0 | W62: =IF(RAND()<poisson_parameter*model!K62,1,0) -> 0 | X62: =IF(RAND()<(K51^quadratic_condition*L51-$T$21)*$T$22*(1+pref_attach_on*SUM($X$35:X61)),1,0) -> 0 | Y62: 28 | Z62: =IF(AND(SUM($X$35:X61)=0,X62=1),Y62,"") ->  | AJ62: =AVERAGE(AJ52:AJ61) -> 2.2469 | AP62: =AVERAGE(AP52:AP61) -> 1.293330236
B63: 6 | C63: 0.5149812295 | D63: =C70 -> 0.04230283365 | E63: =CORREL(I140:R140,endlevel10) -> 0.35396519 | F63: =CORREL(I140:R140,$E$9:$E$18) -> 0.08486610807 | G63: 40 | H63: 4 | I63: 0.1013878232 | J63: 0.04032864037 | K63: 0.08417145168 | L63: 0.08937620136 | M63: 0.03481343985 | N63: 0.3379387617 | O63: 0.02922555804 | P63: 0.01916859746 | Q63: 0.04763828516 | R63: 0.04140222371 | S63: 0 | T63: 0 | W63: =IF(RAND()<poisson_parameter*model!K63,1,0) -> 0 | X63: =IF(RAND()<(K52^quadratic_condition*L52-$T$21)*$T$22*(1+pref_attach_on*SUM($X$35:X62)),1,0) -> 0 | Y63: 29 | Z63: =IF(AND(SUM($X$35:X62)=0,X63=1),Y63,"") -> 
B64: 7 | C64: 0.08010345035 | D64: =C61 -> 0.4266862619 | E64: =CORREL(I160:R160,endlevel10) -> 0.3773913313 | F64: =CORREL(I160:R160,$E$9:$E$18) -> 0.08238223098 | G64: 41 | H64: 4.1 | I64: 0.1059196074 | J64: 0.03975234804 | K64: 0.08730591379 | L64: 0.09243379823 | M64: 0.03481343985 | N64: 0.3493987161 | O64: 0.02922555804 | P64: 0.01916859746 | Q64: 0.04763828516 | R64: 0.04140222371 | S64: 0 | T64: 0 | W64: =IF(RAND()<poisson_parameter*model!K64,1,0) -> 0 | X64: =IF(RAND()<(K53^quadratic_condition*L53-$T$21)*$T$22*(1+pref_attach_on*SUM($X$35:X63)),1,0) -> 0 | Y64: 30 | Z64: =IF(AND(SUM($X$35:X63)=0,X64=1),Y64,"") -> 
A65: =rate10 -> 0.05448371638 | B65: 8 | C65: 0.01916859746 | D65: =C71 -> 0.05748591676 | E65: =CORREL(I180:R180,endlevel10) -> 0.4335304567 | F65: =CORREL(I180:R180,$E$9:$E$18) -> 0.1158470604 | G65: 42 | H65: 4.2 | I65: 0.1106102587 | J65: 0.03909530267 | K65: 0.0905395234 | L65: 0.095557476 | M65: 0.03481343985 | N65: 0.3606440328 | O65: 0.02922555804 | P65: 0.01916859746 | Q65: 0.04763828516 | R65: 0.04140222371 | S65: 0 | T65: 0 | W65: =IF(RAND()<poisson_parameter*model!K65,1,0) -> 0 | X65: =IF(RAND()<(K54^quadratic_condition*L54-$T$21)*$T$22*(1+pref_attach_on*SUM($X$35:X64)),1,0) -> 0 | Y65: 31 | Z65: =IF(AND(SUM($X$35:X64)=0,X65=1),Y65,"") -> 
A66: 0.04230283365 | B66: 9 | C66: 0.04763828516 | D66: =C62 -> 1.206186144 | E66: =CORREL(I200:R200,endlevel10) -> 0.661236687 | F66: =CORREL(I200:R200,$E$9:$E$18) -> 0.322496027 | G66: 43 | H66: 4.3 | I66: 0.1154604175 | J66: 0.0383636471 | K66: 0.09387395968 | L66: 0.09874604892 | M66: 0.03481343985 | N66: 0.3716343235 | O66: 0.02922555804 | P66: 0.01916859746 | Q66: 0.04763828516 | R66: 0.04140222371 | S66: 0 | T66: 0 | W66: =IF(RAND()<poisson_parameter*model!K66,1,0) -> 0 | X66: =IF(RAND()<(K55^quadratic_condition*L55-$T$21)*$T$22*(1+pref_attach_on*SUM($X$35:X65)),1,0) -> 0 | Y66: 32 | Z66: =IF(AND(SUM($X$35:X65)=0,X66=1),Y66,"") -> 
A67: 0.05748591676 | B67: 10 | C67: 0.4183920952 | D67: =C72 -> 0.0579026969 | E67: =CORREL(I220:R220,endlevel10) -> 0.9067772378 | F67: =CORREL(I220:R220,$E$9:$E$18) -> 0.6075534635 | G67: 44 | H67: 4.4 | I67: 0.1204703213 | J67: 0.03756410912 | K67: 0.09731080209 | L67: 0.1019981423 | M67: 0.03481343985 | N67: 0.3823317748 | O67: 0.02922555804 | P67: 0.01916859746 | Q67: 0.04763828516 | R67: 0.04140222371 | S67: 0 | T67: 0 | W67: =IF(RAND()<poisson_parameter*model!K67,1,0) -> 0 | X67: =IF(RAND()<(K56^quadratic_condition*L56-$T$21)*$T$22*(1+pref_attach_on*SUM($X$35:X66)),1,0) -> 0 | Y67: 33 | Z67: =IF(AND(SUM($X$35:X66)=0,X67=1),Y67,"") -> 
A68: 0.0579026969 | B68: 1 | C68: =D9:D18 -> 0.05092682943 | D68: =C63 -> 0.5149812295 | E68: =CORREL(I240:R240,endlevel10) -> 0.9517662939 | F68: =CORREL(I240:R240,$E$9:$E$18) -> 0.6939178713 | G68: 45 | H68: 4.5 | I68: 0.1256397978 | J68: 0.03670386595 | K68: 0.1008515174 | L68: 0.1053121897 | M68: 0.03481343985 | N68: 0.392701599 | O68: 0.02922555804 | P68: 0.01916859746 | Q68: 0.04763828516 | R68: 0.04140222371 | S68: 0 | T68: 0 | W68: =IF(RAND()<poisson_parameter*model!K68,1,0) -> 0 | X68: =IF(RAND()<(K57^quadratic_condition*L57-$T$21)*$T$22*(1+pref_attach_on*SUM($X$35:X67)),1,0) -> 0 | Y68: 34 | Z68: =IF(AND(SUM($X$35:X67)=0,X68=1),Y68,"") -> 
A69: 0.07209752005 | B69: 2 | C69: 0.05448371638 | D69: =C73 -> 0.07209752005 | E69: =CORREL(I260:R260,endlevel10) -> 0.9555928319 | F69: =CORREL(I260:R260,$E$9:$E$18) -> 0.7065106068 | G69: 46 | H69: 4.6 | I69: 0.1309682585 | J69: 0.03579040443 | K69: 0.1044974463 | L69: 0.1086864317 | M69: 0.03481343985 | N69: 0.4027124081 | O69: 0.02922555804 | P69: 0.01916859746 | Q69: 0.04763828516 | R69: 0.04140222371 | S69: 0 | T69: 0 | W69: =IF(RAND()<poisson_parameter*model!K69,1,0) -> 0 | X69: =IF(RAND()<(K58^quadratic_condition*L58-$T$21)*$T$22*(1+pref_attach_on*SUM($X$35:X68)),1,0) -> 0 | Y69: 35 | Z69: =IF(AND(SUM($X$35:X68)=0,X69=1),Y69,"") -> 
A70: 0.05968569602 | B70: 3 | C70: 0.04230283365 | D70: =C64 -> 0.08010345035 | E70: =CORREL(I280:R280,endlevel10) -> 0.9562556064 | F70: =CORREL(I280:R280,$E$9:$E$18) -> 0.7067944605 | G70: 47 | H70: 4.7 | I70: 0.1364546962 | J70: 0.03483138188 | K70: 0.1082497894 | L70: 0.1121189148 | M70: 0.03481343985 | N70: 0.4123365029 | O70: 0.02922555804 | P70: 0.01916859746 | Q70: 0.04763828516 | R70: 0.04140222371 | S70: 0 | T70: 0 | W70: =IF(RAND()<poisson_parameter*model!K70,1,0) -> 0 | X70: =IF(RAND()<(K59^quadratic_condition*L59-$T$21)*$T$22*(1+pref_attach_on*SUM($X$35:X69)),1,0) -> 0 | Y70: 36 | Z70: =IF(AND(SUM($X$35:X69)=0,X70=1),Y70,"") -> 
A71: 0.04321927875 | B71: 4 | C71: 0.05748591676 | D71: =C74 -> 0.05968569602 | E71: =CORREL(I300:R300,endlevel10) -> 0.9565081263 | F71: =CORREL(I300:R300,$E$9:$E$18) -> 0.7055197936 | G71: 48 | H71: 4.8 | I71: 0.1420976835 | J71: 0.03383449181 | K71: 0.1121095928 | L71: 0.1156074922 | M71: 0.03481343985 | N71: 0.4215500743 | O71: 0.03039684151 | P71: 0.01916859746 | Q71: 0.04763828516 | R71: 0.04140222371 | S71: 0 | T71: 0 | W71: =IF(RAND()<poisson_parameter*model!K71,1,0) -> 0 | X71: =IF(RAND()<(K60^quadratic_condition*L60-$T$21)*$T$22*(1+pref_attach_on*SUM($X$35:X70)),1,0) -> 0 | Y71: 37 | Z71: =IF(AND(SUM($X$35:X70)=0,X71=1),Y71,"") -> 
A72: 0.03119942177 | B72: 5 | C72: 0.0579026969 | D72: =C65 -> 0.01916859746 | E72: =CORREL(I320:R320,endlevel10) -> 0.9580773369 | F72: =CORREL(I320:R320,$E$9:$E$18) -> 0.704073561 | G72: 49 | H72: 4.9 | I72: 0.1478953734 | J72: 0.03280733851 | K72: 0.1160777332 | L72: 0.1191498258 | M72: 0.03481343985 | N72: 0.4303333151 | O72: 0.03159508769 | P72: 0.01916859746 | Q72: 0.04763828516 | R72: 0.04140222371 | S72: 0 | T72: 0 | W72: =IF(RAND()<poisson_parameter*model!K72,1,0) -> 0 | X72: =IF(RAND()<(K61^quadratic_condition*L61-$T$21)*$T$22*(1+pref_attach_on*SUM($X$35:X71)),1,0) -> 0 | Y72: 38 | Z72: =IF(AND(SUM($X$35:X71)=0,X72=1),Y72,"") -> 
A73: 0.03397394519 | B73: 6 | C73: 0.07209752005 | D73: =C75 -> 0.04321927875 | E73: =CORREL(I340:R340,endlevel10) -> 0.9656163395 | F73: =CORREL(I340:R340,$E$9:$E$18) -> 0.7011052357 | G73: 50 | H73: 5 | I73: 0.153845502 | J73: 0.03175732366 | K73: 0.120154903 | L73: 0.122743389 | M73: 0.03481343985 | N73: 0.4386704463 | O73: 0.03281925195 | P73: 0.01916859746 | Q73: 0.04763828516 | R73: 0.04140222371 | S73: 0 | T73: 0 | W73: =IF(RAND()<poisson_parameter*model!K73,1,0) -> 0 | X73: =IF(RAND()<(K62^quadratic_condition*L62-$T$21)*$T$22*(1+pref_attach_on*SUM($X$35:X72)),1,0) -> 0 | Y73: 39 | Z73: =IF(AND(SUM($X$35:X72)=0,X73=1),Y73,"") -> 
A74: 0 | B74: 7 | C74: 0.05968569602 | D74: =C66 -> 0.04763828516 | E74: =CORREL(I360:R360,endlevel10) -> 0.9755000021 | F74: =CORREL(I360:R360,$E$9:$E$18) -> 0.6962860298 | G74: 51 | H74: 5.1 | I74: 0.159945391 | J74: 0.03069154727 | K74: 0.124341595 | L74: 0.1263854708 | M74: 0.03481343985 | N74: 0.4465496633 | O74: 0.0340681435 | P74: 0.01916859746 | Q74: 0.04763828516 | R74: 0.04140222371 | S74: 0 | T74: 0 | W74: =IF(RAND()<poisson_parameter*model!K74,1,0) -> 0 | X74: =IF(RAND()<(K63^quadratic_condition*L63-$T$21)*$T$22*(1+pref_attach_on*SUM($X$35:X73)),1,0) -> 0 | Y74: 40 | Z74: =IF(AND(SUM($X$35:X73)=0,X74=1),Y74,"") -> 
A75: =carcap10 -> 0.5162982774 | B75: 8 | C75: 0.04321927875 | D75: =C76 -> 0.03119942177 | E75: =CORREL(I380:R380,endlevel10) -> 0.9856681594 | F75: =CORREL(I380:R380,$E$9:$E$18) -> 0.6887601765 | G75: 52 | H75: 5.2 | I75: 0.1661919534 | J75: 0.02961672458 | K75: 0.128638087 | L75: 0.1300731818 | M75: 0.03481343985 | N75: 0.4539630099 | O75: 0.03534042362 | P75: 0.01916859746 | Q75: 0.04763828516 | R75: 0.04140222371 | S75: 0 | T75: 0 | W75: =IF(RAND()<poisson_parameter*model!K75,1,0) -> 0 | X75: =IF(RAND()<(K64^quadratic_condition*L64-$T$21)*$T$22*(1+pref_attach_on*SUM($X$35:X74)),1,0) -> 0 | Y75: 41 | Z75: =IF(AND(SUM($X$35:X74)=0,X75=1),Y75,"") -> 
A76: 0.3758006941 | B76: 9 | C76: 0.03119942177 | D76: =C67 -> 0.4183920952 | E76: =CORREL(I400:R400,endlevel10) -> 0.9933395157 | F76: =CORREL(I400:R400,$E$9:$E$18) -> 0.6791221528 | G76: 53 | H76: 5.3 | I76: 0.1725816981 | J76: 0.02853911972 | K76: 0.1330444266 | L76: 0.133803461 | M76: 0.03481343985 | N76: 0.4609061906 | O76: 0.03663460482 | P76: 0.01916859746 | Q76: 0.04763828516 | R76: 0.04140222371 | S76: 0 | T76: 0 | W76: =IF(RAND()<poisson_parameter*model!K76,1,0) -> 0 | X76: =IF(RAND()<(K65^quadratic_condition*L65-$T$21)*$T$22*(1+pref_attach_on*SUM($X$35:X75)),1,0) -> 0 | Y76: 42 | Z76: =IF(AND(SUM($X$35:X75)=0,X76=1),Y76,"") -> 
A77: 0.4266862658 | B77: 10 | C77: 0.03397394519 | D77: =C77 -> 0.03397394519 | E77: =CORREL(I420:R420,endlevel10) -> 0.9975176981 | F77: =CORREL(I420:R420,$E$9:$E$18) -> 0.6695980013 | G77: 54 | H77: 5.4 | I77: 0.1791107372 | J77: 0.02746449602 | K77: 0.137560416 | L77: 0.1375730837 | M77: 0.03481343985 | N77: 0.4673783332 | O77: 0.03794905128 | P77: 0.01916859746 | Q77: 0.04763828516 | R77: 0.04140222371 | S77: 0 | T77: 0 | W77: =IF(RAND()<poisson_parameter*model!K77,1,0) -> 0 | X77: =IF(RAND()<(K66^quadratic_condition*L66-$T$21)*$T$22*(1+pref_attach_on*SUM($X$35:X76)),1,0) -> 0 | Y77: 43 | Z77: =IF(AND(SUM($X$35:X76)=0,X77=1),Y77,"") -> 
A78: 0.866515278 | E78: =CORREL(I440:R440,endlevel10) -> 0.9992318007 | F78: =CORREL(I440:R440,$E$9:$E$18) -> 0.6621595956 | G78: 55 | H78: 5.5 | I78: 0.1857747926 | J78: 0.02639808252 | K78: 0.1421855975 | L78: 0.1413786713 | M78: 0.03481343985 | N78: 0.473381711 | O78: 0.03928198041 | P78: 0.01916859746 | Q78: 0.04763828516 | R78: 0.04140222371 | S78: 0 | T78: 0 | W78: =IF(RAND()<poisson_parameter*model!K78,1,0) -> 0 | X78: =IF(RAND()<(K67^quadratic_condition*L67-$T$21)*$T$22*(1+pref_attach_on*SUM($X$35:X77)),1,0) -> 0 | Y78: 44 | Z78: =IF(AND(SUM($X$35:X77)=0,X78=1),Y78,"") -> 
A79: 0.5539786194 | C79: max | D79: =B24 -> 0.5740356122 | E79: =CORREL(I460:R460,endlevel10) -> 0.9997986895 | F79: =CORREL(I460:R460,$E$9:$E$18) -> 0.6572567197 | G79: 56 | H79: 5.6 | I79: 0.1925692047 | J79: 0.02534455538 | K79: 0.1469192392 | L79: 0.1452167019 | M79: 0.03481343985 | N79: 0.4789214386 | O79: 0.04063146569 | P79: 0.01916859746 | Q79: 0.04763828516 | R79: 0.04140222371 | S79: 0 | T79: 0 | W79: =IF(RAND()<poisson_parameter*model!K79,1,0) -> 0 | X79: =IF(RAND()<(K68^quadratic_condition*L68-$T$21)*$T$22*(1+pref_attach_on*SUM($X$35:X78)),1,0) -> 0 | Y79: 45 | Z79: =IF(AND(SUM($X$35:X78)=0,X79=1),Y79,"") -> 
A80: 0.6020108528 | C80: totsup | D80: =Z33 -> 0.01844352138 | E80: =CORREL(I480:R480,endlevel10) -> 0.9999573719 | F80: =CORREL(I480:R480,$E$9:$E$18) -> 0.6543413478 | G80: 57 | H80: 5.7 | I80: 0.1994889412 | J80: 0.02430803291 | K80: 0.1517603214 | L80: 0.149083522 | M80: 0.03481343985 | N80: 0.4840051512 | O80: 0.04199544086 | P80: 0.01916859746 | Q80: 0.04763828516 | R80: 0.04140222371 | S80: 0 | T80: 0 | W80: =IF(RAND()<poisson_parameter*model!K80,1,0) -> 0 | X80: =IF(RAND()<(K69^quadratic_condition*L69-$T$21)*$T$22*(1+pref_attach_on*SUM($X$35:X79)),1,0) -> 0 | Y80: 46 | Z80: =IF(AND(SUM($X$35:X79)=0,X80=1),Y80,"") -> 
A81: 0.4246094515 | C81: sup | D81: =K20 -> 0.05229779754 | G81: 58 | H81: 5.8 | I81: 0.2065286074 | J81: 0.02329208219 | K81: 0.1567075244 | L81: 0.1529753597 | M81: 0.03481343985 | N81: 0.488642677 | O81: 0.04337170548 | P81: 0.01916859746 | Q81: 0.04763828516 | R81: 0.04140222371 | S81: 0 | T81: 0 | W81: =IF(RAND()<poisson_parameter*model!K81,1,0) -> 0 | X81: =IF(RAND()<(K70^quadratic_condition*L70-$T$21)*$T$22*(1+pref_attach_on*SUM($X$35:X80)),1,0) -> 0 | Y81: 47 | Z81: =IF(AND(SUM($X$35:X80)=0,X81=1),Y81,"") -> 
A82: 0.396554079 | C82: carcap | D82: =E11 -> 0.3758006941 | G82: 59 | H82: 5.9 | I82: 0.2136824575 | J82: 0.0222997356 | K82: 0.1617592164 | L82: 0.1568883384 | M82: 0.03481343985 | N82: 0.4928457118 | O82: 0.04475793183 | P82: 0.01916859746 | Q82: 0.04763828516 | R82: 0.04140222371 | S82: 0 | T82: 0 | W82: =IF(RAND()<poisson_parameter*model!K82,1,0) -> 0 | X82: =IF(RAND()<(K71^quadratic_condition*L71-$T$21)*$T$22*(1+pref_attach_on*SUM($X$35:X81)),1,0) -> 0 | Y82: 48 | Z82: =IF(AND(SUM($X$35:X81)=0,X82=1),Y82,"") -> 
A83: 0.4226804018 | C83: rate | D83: =D11 -> 0.04230283365 | G83: 60 | H83: 6 | I83: 0.2209444067 | J83: 0.02133351533 | K83: 0.1669134437 | L83: 0.1608184919 | M83: 0.03481343985 | N83: 0.4966275038 | O83: 0.04615167321 | P83: 0.01916859746 | Q83: 0.04763828516 | R83: 0.04140222371 | S83: 0 | T83: 0 | W83: =IF(RAND()<poisson_parameter*model!K83,1,0) -> 0 | X83: =IF(RAND()<(K72^quadratic_condition*L72-$T$21)*$T$22*(1+pref_attach_on*SUM($X$35:X82)),1,0) -> 0 | Y83: 49 | Z83: =IF(AND(SUM($X$35:X82)=0,X83=1),Y83,"") -> 
A84: 0 | D84: =B25 -> 0.4266862619 | G84: 61 | H84: 6.1 | I84: 0.2283080456 | J84: 0.02039546381 | K84: 0.1721679218 | L84: 0.1647617799 | M84: 0.03481343985 | N84: 0.5000025539 | O84: 0.04755037359 | P84: 0.01916859746 | Q84: 0.04763828516 | R84: 0.04140222371 | S84: 0 | T84: 0 | W84: =IF(RAND()<poisson_parameter*model!K84,1,0) -> 0 | X84: =IF(RAND()<(K73^quadratic_condition*L73-$T$21)*$T$22*(1+pref_attach_on*SUM($X$35:X83)),1,0) -> 0 | Y84: 50 | Z84: =IF(AND(SUM($X$35:X83)=0,X84=1),Y84,"") -> 
A85: =TRANSPOSE(connectionsum) -> 0.07569067231 | D85: =AA33 -> -0.003615975848 | G85: 62 | H85: 6.2 | I85: 0.2357666552 | J85: 0.01948717865 | K85: 0.1775200284 | L85: 0.1687141047 | M85: 0.03481343985 | N85: 0.5029863352 | O85: 0.04895137855 | P85: 0.01916859746 | Q85: 0.04763828516 | R85: 0.04140222371 | S85: 0 | T85: 0 | W85: =IF(RAND()<poisson_parameter*model!K85,1,0) -> 0 | X85: =IF(RAND()<(K74^quadratic_condition*L74-$T$21)*$T$22*(1+pref_attach_on*SUM($X$35:X84)),1,0) -> 0 | Y85: 51 | Z85: =IF(AND(SUM($X$35:X84)=0,X85=1),Y85,"") -> 
A86: -0.1249484737 | D86: =L20 -> -0.3436977338 | G86: 63 | H86: 6.3 | I86: 0.2433132241 | J86: 0.01860985027 | K86: 0.1829667979 | L86: 0.1726713275 | M86: 0.03481343985 | N86: 0.5055950368 | O86: 0.05035194753 | P86: 0.01916859746 | Q86: 0.04763828516 | R86: 0.04140222371 | S86: 0 | T86: 0 | W86: =IF(RAND()<poisson_parameter*model!K86,1,0) -> 0 | X86: =IF(RAND()<(K75^quadratic_condition*L75-$T$21)*$T$22*(1+pref_attach_on*SUM($X$35:X85)),1,0) -> 0 | Y86: 52 | Z86: =IF(AND(SUM($X$35:X85)=0,X86=1),Y86,"") -> 
A87: 0.05229779754 | D87: =E12 -> 0.4266862658 | G87: 64 | H87: 6.4 | I87: 0.2509404674 | J87: 0.01776430094 | K87: 0.1885049188 | L87: 0.1766292859 | M87: 0.03481343985 | N87: 0.5078453323 | O87: 0.05174926717 | P87: 0.01916859746 | Q87: 0.04763828516 | R87: 0.04140222371 | S87: 0 | T87: 0 | W87: =IF(RAND()<poisson_parameter*model!K87,1,0) -> 0 | X87: =IF(RAND()<(K76^quadratic_condition*L76-$T$21)*$T$22*(1+pref_attach_on*SUM($X$35:X86)),1,0) -> 0 | Y87: 53 | Z87: =IF(AND(SUM($X$35:X86)=0,X87=1),Y87,"") -> 
A88: -0.3436977338 | D88: =D12 -> 0.05748591676 | G88: 65 | H88: 6.5 | I88: 0.258640847 | J88: 0.01695102418 | K88: 0.1941307321 | L88: 0.1805838117 | M88: 0.03481343985 | N88: 0.5097541746 | O88: 0.05314046577 | P88: 0.01916859746 | Q88: 0.04763828516 | R88: 0.04140222371 | S88: 0 | T88: 0 | W88: =IF(RAND()<poisson_parameter*model!K88,1,0) -> 0 | X88: =IF(RAND()<(K77^quadratic_condition*L77-$T$21)*$T$22*(1+pref_attach_on*SUM($X$35:X87)),1,0) -> 0 | Y88: 54 | Z88: =IF(AND(SUM($X$35:X87)=0,X88=1),Y88,"") -> 
A89: 0.07392029707 | D89: =B26 -> 1.206186144 | G89: 66 | H89: 6.6 | I89: 0.2664065938 | J89: 0.01617022345 | K89: 0.1998402334 | L89: 0.1845307479 | M89: 0.03481343985 | N89: 0.5113386162 | O89: 0.05452262865 | P89: 0.01916859746 | Q89: 0.04763828516 | R89: 0.04140222371 | S89: 0 | T89: 0 | W89: =IF(RAND()<poisson_parameter*model!K89,1,0) -> 0 | X89: =IF(RAND()<(K78^quadratic_condition*L78-$T$21)*$T$22*(1+pref_attach_on*SUM($X$35:X88)),1,0) -> 0 | Y89: 55 | Z89: =IF(AND(SUM($X$35:X88)=0,X89=1),Y89,"") -> 
A90: 0.1945267823 | D90: =AB33 -> 0.02239812709 | G90: 67 | H90: 6.7 | I90: 0.2742297319 | J90: 0.01542184946 | K90: 0.2056290765 | L90: 0.1884659663 | M90: 0.03481343985 | N90: 0.5126156559 | O90: 0.05589281427 | P90: 0.01916859746 | Q90: 0.04763828516 | R90: 0.04140222371 | S90: 0 | T90: =S90-S89 -> 0 | W90: =IF(RAND()<poisson_parameter*model!K90,1,0) -> 0 | X90: =IF(RAND()<(K79^quadratic_condition*L79-$T$21)*$T$22*(1+pref_attach_on*SUM($X$35:X89)),1,0) -> 0 | Y90: 56 | Z90: =IF(AND(SUM($X$35:X89)=0,X90=1),Y90,"") -> 
A91: -0.1694307104 | D91: =M20 -> 0.07392029707 | G91: 68 | H91: 6.8 | I91: 0.2821021047 | J91: 0.01470563552 | K91: 0.2114925801 | L91: 0.1923853853 | M91: 0.03481343985 | N91: 0.5136021085 | O91: 0.05724807108 | P91: 0.01916859746 | Q91: 0.04763828516 | R91: 0.04140222371 | S91: 0 | T91: 0 | W91: =IF(RAND()<poisson_parameter*model!K91,1,0) -> 0 | X91: =IF(RAND()<(K80^quadratic_condition*L80-$T$21)*$T$22*(1+pref_attach_on*SUM($X$35:X90)),1,0) -> 0 | Y91: 57 | Z91: =IF(AND(SUM($X$35:X90)=0,X91=1),Y91,"") -> 
A92: -0.1993313995 | D92: =E13 -> 0.866515278 | G92: 69 | H92: 6.9 | I92: 0.2900154017 | J92: 0.01402113061 | K92: 0.2174257373 | L92: 0.1962849859 | M92: 0.03481343985 | N92: 0.5143144982 | O92: 0.05858545467 | P92: 0.01916859746 | Q92: 0.04763828516 | R92: 0.04140222371 | S92: 0 | T92: 0 | W92: =IF(RAND()<poisson_parameter*model!K92,1,0) -> 0 | X92: =IF(RAND()<(K81^quadratic_condition*L81-$T$21)*$T$22*(1+pref_attach_on*SUM($X$35:X91)),1,0) -> 0 | Y92: 58 | Z92: =IF(AND(SUM($X$35:X91)=0,X92=1),Y92,"") -> 
A93: -0.4145269493 | D93: =D13 -> 0.0579026969 | G93: 70 | H93: 7 | I93: 0.2979611877 | J93: 0.01336772979 | K93: 0.2234232274 | L93: 0.2001608284 | M93: 0.03481343985 | N93: 0.5147689714 | O93: 0.05990204529 | P93: 0.01916859746 | Q93: 0.04763828516 | R93: 0.04140222371 | S93: 0 | T93: 0 | W93: =IF(RAND()<poisson_parameter*model!K93,1,0) -> 0 | X93: =IF(RAND()<(K82^quadratic_condition*L82-$T$21)*$T$22*(1+pref_attach_on*SUM($X$35:X92)),1,0) -> 0 | Y93: 59 | Z93: =IF(AND(SUM($X$35:X92)=0,X93=1),Y93,"") -> 
A94: 0.1038660095 | D94: =B27 -> 0.5149812295 | G94: 71 | H94: 7.1 | I94: 0.305930933 | J94: 0.01274470198 | K94: 0.2294794307 | L94: 0.2040090682 | M94: 0.03481343985 | N94: 0.5149812295 | O94: 0.0611949654 | P94: 0.01916859746 | Q94: 0.04763828516 | R94: 0.04140222371 | S94: 0 | T94: 0 | W94: =IF(RAND()<poisson_parameter*model!K94,1,0) -> 0 | X94: =IF(RAND()<(K83^quadratic_condition*L83-$T$21)*$T$22*(1+pref_attach_on*SUM($X$35:X93)),1,0) -> 0 | Y94: 60 | Z94: =IF(AND(SUM($X$35:X93)=0,X94=1),Y94,"") -> 
D95: =AC33 -> -0.02549234076 | G95: 72 | H95: 7.2 | I95: 0.3139160445 | J95: 0.01215121489 | K95: 0.2355884464 | L95: 0.2078259703 | M95: 0.03481343985 | N95: 0.5149664763 | O95: 0.06246139701 | P95: 0.01916859746 | Q95: 0.04763828516 | R95: 0.04140222371 | S95: 0 | T95: 0 | W95: =IF(RAND()<poisson_parameter*model!K95,1,0) -> 0 | X95: =IF(RAND()<(K84^quadratic_condition*L84-$T$21)*$T$22*(1+pref_attach_on*SUM($X$35:X94)),1,0) -> 0 | Y95: 61 | Z95: =IF(AND(SUM($X$35:X94)=0,X95=1),Y95,"") -> 
D96: =N20 -> 0.1945267823 | G96: 73 | H96: 7.3 | I96: 0.3219078979 | J96: 0.01158635739 | K96: 0.2417441125 | L96: 0.2116079235 | M96: 0.03481343985 | N96: 0.5147393818 | O96: 0.06369859883 | P96: 0.01916859746 | Q96: 0.04763828516 | R96: 0.04140222371 | S96: 0 | T96: 0 | W96: =IF(RAND()<poisson_parameter*model!K96,1,0) -> 0 | X96: =IF(RAND()<(K85^quadratic_condition*L85-$T$21)*$T$22*(1+pref_attach_on*SUM($X$35:X95)),1,0) -> 0 | Y96: 62 | Z96: =IF(AND(SUM($X$35:X95)=0,X96=1),Y96,"") -> 
D97: =E14 -> 0.5539786194 | G97: 74 | H97: 7.4 | I97: 0.3298978704 | J97: 0.01104915911 | K97: 0.2479400289 | L97: 0.2153514529 | M97: 0.03481343985 | N97: 0.5143140567 | O97: 0.0649039227 | P97: 0.01916859746 | Q97: 0.04763828516 | R97: 0.04140222371 | S97: 0 | T97: 0 | W97: =IF(RAND()<poisson_parameter*model!K97,1,0) -> 0 | X97: =IF(RAND()<(K86^quadratic_condition*L86-$T$21)*$T$22*(1+pref_attach_on*SUM($X$35:X96)),1,0) -> 0 | Y97: 63 | Z97: =IF(AND(SUM($X$35:X96)=0,X97=1),Y97,"") -> 
D98: =D14 -> 0.07209752005 | G98: 75 | H98: 7.5 | I98: 0.3378773738 | J98: 0.01053860765 | K98: 0.2541695823 | L98: 0.2190532319 | M98: 0.03481343985 | N98: 0.5137040381 | O98: 0.06607482938 | P98: 0.01916859746 | Q98: 0.04763828516 | R98: 0.04140222371 | S98: 0 | T98: 0 | W98: =IF(RAND()<poisson_parameter*model!K98,1,0) -> 0 | X98: =IF(RAND()<(K87^quadratic_condition*L87-$T$21)*$T$22*(1+pref_attach_on*SUM($X$35:X97)),1,0) -> 0 | Y98: 64 | Z98: =IF(AND(SUM($X$35:X97)=0,X98=1),Y98,"") -> 
B99: early_levels | G99: 76 | H99: 7.6 | I99: 0.3458378873 | J99: 0.01005366348 | K99: 0.2604259737 | L99: 0.2227100929 | M99: 0.03481343985 | N99: 0.5129222844 | O99: 0.06720890344 | P99: 0.01916859746 | Q99: 0.04763828516 | R99: 0.04140222371 | S99: 0 | T99: 0 | W99: =IF(RAND()<poisson_parameter*model!K99,1,0) -> 0 | X99: =IF(RAND()<(K88^quadratic_condition*L88-$T$21)*$T$22*(1+pref_attach_on*SUM($X$35:X98)),1,0) -> 0 | Y99: 65 | Z99: =IF(AND(SUM($X$35:X98)=0,X99=1),Y99,"") -> 
B100: =TRANSPOSE(early_levels) -> 0.153845502 | C100: =TRANSPOSE(maxlevel10) -> 0.7394182791 | E100: =B100 -> 0.153845502 | G100: 77 | H100: 7.7 | I100: 0.3537709906 | J100: 0.009593272718 | K100: 0.2667022479 | L100: 0.2263190364 | M100: 0.03481343985 | N100: 0.5119811759 | O100: 0.06830386695 | P100: 0.01916859746 | Q100: 0.04763828516 | R100: 0.04140222371 | S100: 0 | T100: 0 | W100: =IF(RAND()<poisson_parameter*model!K100,1,0) -> 0 | X100: =IF(RAND()<(K89^quadratic_condition*L89-$T$21)*$T$22*(1+pref_attach_on*SUM($X$35:X99)),1,0) -> 0 | Y100: 66 | Z100: =IF(AND(SUM($X$35:X99)=0,X100=1),Y100,"") -> 
B101: 0.03175732366 | C101: 0.04184883324 | E101: =C100 -> 0.7394182791 | G101: 78 | H101: 7.8 | I101: 0.3616683959 | J101: 0.009156377903 | K101: 0.2729913247 | L101: 0.2298772389 | M101: 0.03481343985 | N101: 0.5108925225 | O101: 0.06935759208 | P101: 0.01916859746 | Q101: 0.04763828516 | R101: 0.04140222371 | S101: 0 | T101: 0 | W101: =IF(RAND()<poisson_parameter*model!K101,1,0) -> 0 | X101: =IF(RAND()<(K90^quadratic_condition*L90-$T$21)*$T$22*(1+pref_attach_on*SUM($X$35:X100)),1,0) -> 0 | Y101: 67 | Z101: =IF(AND(SUM($X$35:X100)=0,X101=1),Y101,"") -> 
B102: 0.120154903 | C102: 0.5740356122 | E102: =B101 -> 0.03175732366 | G102: 79 | H102: 7.9 | I102: 0.3695219794 | J102: 0.00874192711 | K102: 0.2792860315 | L102: 0.23338206 | M102: 0.03481343985 | N102: 0.509667575 | O102: 0.07036811218 | P102: 0.01916859746 | Q102: 0.04763828516 | R102: 0.04140222371 | S102: 0 | T102: 0 | W102: =IF(RAND()<poisson_parameter*model!K102,1,0) -> 0 | X102: =IF(RAND()<(K91^quadratic_condition*L91-$T$21)*$T$22*(1+pref_attach_on*SUM($X$35:X101)),1,0) -> 0 | Y102: 68 | Z102: =IF(AND(SUM($X$35:X101)=0,X102=1),Y102,"") -> 
B103: 0.122743389 | C103: 0.4266862619 | E103: =C101 -> 0.04184883324 | G103: 80 | H103: 8 | I103: 0.3773238113 | J103: 0.008348881443 | K103: 0.2855791367 | L103: 0.2368310477 | M103: 0.03481343985 | N103: 0.5083170403 | O103: 0.07133363146 | P103: 0.01916859746 | Q103: 0.04763828516 | R103: 0.04140222371 | S103: 0 | T103: 0 | W103: =IF(RAND()<poisson_parameter*model!K103,1,0) -> 0 | X103: =IF(RAND()<(K92^quadratic_condition*L92-$T$21)*$T$22*(1+pref_attach_on*SUM($X$35:X102)),1,0) -> 0 | Y103: 69 | Z103: =IF(AND(SUM($X$35:X102)=0,X103=1),Y103,"") -> 
B104: 0.03481343985 | C104: 1.206186144 | E104: =B102 -> 0.120154903 | G104: 81 | H104: 8.1 | I104: 0.3850661848 | J104: 0.007976221177 | K104: 0.2918633846 | L104: 0.240221942 | M104: 0.03481343985 | N104: 0.5068510983 | O104: 0.07225253309 | P104: 0.01916859746 | Q104: 0.04763828516 | R104: 0.04140222371 | S104: 0 | T104: 0 | W104: =IF(RAND()<poisson_parameter*model!K104,1,0) -> 0 | X104: =IF(RAND()<(K93^quadratic_condition*L93-$T$21)*$T$22*(1+pref_attach_on*SUM($X$35:X103)),1,0) -> 0 | Y104: 70 | Z104: =IF(AND(SUM($X$35:X103)=0,X104=1),Y104,"") -> 
B105: 0.4386704463 | C105: 0.5149812295 | E105: =C102 -> 0.5740356122 | G105: 82 | H105: 8.2 | I105: 0.3927416432 | J105: 0.007622950666 | K105: 0.2981315302 | L105: 0.2435526783 | M105: 0.03481343985 | N105: 0.505279421 | O105: 0.07312338567 | P105: 0.01916859746 | Q105: 0.04763828516 | R105: 0.04140222371 | S105: 0 | T105: 0 | W105: =IF(RAND()<poisson_parameter*model!K105,1,0) -> 0 | X105: =IF(RAND()<(K94^quadratic_condition*L94-$T$21)*$T$22*(1+pref_attach_on*SUM($X$35:X104)),1,0) -> 0 | Y105: 71 | Z105: =IF(AND(SUM($X$35:X104)=0,X105=1),Y105,"") -> 
B106: 0.03281925195 | C106: 0.08010345035 | E106: =B103 -> 0.122743389 | G106: 83 | H106: 8.3 | I106: 0.4003430054 | J106: 0.007288102206 | K106: 0.3043763743 | L106: 0.2468213886 | M106: 0.03481343985 | N106: 0.5036111926 | O106: 0.073944948 | P106: 0.01916859746 | Q106: 0.04763828516 | R106: 0.04140222371 | S106: 0 | T106: 0 | W106: =IF(RAND()<poisson_parameter*model!K106,1,0) -> 0 | X106: =IF(RAND()<(K95^quadratic_condition*L95-$T$21)*$T$22*(1+pref_attach_on*SUM($X$35:X105)),1,0) -> 0 | Y106: 72 | Z106: =IF(AND(SUM($X$35:X105)=0,X106=1),Y106,"") -> 
B107: 0.01916859746 | C107: 0.01916859746 | E107: =C103 -> 0.4266862619 | G107: 84 | H107: 8.4 | I107: 0.4078633885 | J107: 0.006970738972 | K107: 0.3105907978 | L107: 0.2500264017 | M107: 0.03481343985 | N107: 0.5018551295 | O107: 0.07471617223 | P107: 0.01916859746 | Q107: 0.04763828516 | R107: 0.04140222371 | S107: 0 | T107: 0 | W107: =IF(RAND()<poisson_parameter*model!K107,1,0) -> 0 | X107: =IF(RAND()<(K96^quadratic_condition*L96-$T$21)*$T$22*(1+pref_attach_on*SUM($X$35:X106)),1,0) -> 0 | Y107: 73 | Z107: =IF(AND(SUM($X$35:X106)=0,X107=1),Y107,"") -> 
B108: 0.04763828516 | C108: 0.04763828516 | G108: 85 | H108: 8.5 | I108: 0.4152962296 | J108: 0.006669957177 | K108: 0.3167677962 | L108: 0.2531662425 | M108: 0.03481343985 | N108: 0.5000195007 | O108: 0.07543620533 | P108: 0.01916859746 | Q108: 0.04763828516 | R108: 0.04140222371 | S108: 0 | T108: 0 | W108: =IF(RAND()<poisson_parameter*model!K108,1,0) -> 0 | X108: =IF(RAND()<(K97^quadratic_condition*L97-$T$21)*$T$22*(1+pref_attach_on*SUM($X$35:X107)),1,0) -> 0 | Y108: 74 | Z108: =IF(AND(SUM($X$35:X107)=0,X108=1),Y108,"") -> 
B109: 0.04140222371 | C109: 0.4183920952 | G109: 86 | H109: 8.6 | I109: 0.4226353038 | J109: 0.006384887554 | K109: 0.3229005123 | L109: 0.2562396299 | M109: 0.03481343985 | N109: 0.4981121482 | O109: 0.0761043889 | P109: 0.01916859746 | Q109: 0.04763828516 | R109: 0.04140222371 | S109: 0 | T109: 0 | W109: =IF(RAND()<poisson_parameter*model!K109,1,0) -> 0 | X109: =IF(RAND()<(K98^quadratic_condition*L98-$T$21)*$T$22*(1+pref_attach_on*SUM($X$35:X108)),1,0) -> 0 | Y109: 75 | Z109: =IF(AND(SUM($X$35:X108)=0,X109=1),Y109,"") -> 
G110: 87 | H110: 8.7 | I110: 0.4298747405 | J110: 0.006114696279 | K110: 0.328982268 | L110: 0.2592454738 | M110: 0.03481343985 | N110: 0.4961405057 | O110: 0.07672025747 | P110: 0.01916859746 | Q110: 0.04763828516 | R110: 0.04140222371 | S110: 0 | T110: 0 | W110: =IF(RAND()<poisson_parameter*model!K110,1,0) -> 0 | X110: =IF(RAND()<(K99^quadratic_condition*L99-$T$21)*$T$22*(1+pref_attach_on*SUM($X$35:X109)),1,0) -> 0 | Y110: 76 | Z110: =IF(AND(SUM($X$35:X109)=0,X110=1),Y110,"") -> 
B111: =CORREL(B100:B109,C100:C109) -> 0.2358713414 | G111: 88 | H111: 8.8 | I111: 0.4370090371 | J111: 0.005858585409 | K111: 0.3350065941 | L111: 0.2621828713 | M111: 0.03481343985 | N111: 0.494111618 | O111: 0.07728353534 | P111: 0.01916859746 | Q111: 0.04763828516 | R111: 0.04140222371 | S111: 0 | T111: 0 | W111: =IF(RAND()<poisson_parameter*model!K111,1,0) -> 0 | X111: =IF(RAND()<(K100^quadratic_condition*L100-$T$21)*$T$22*(1+pref_attach_on*SUM($X$35:X110)),1,0) -> 0 | Y111: 77 | Z111: =IF(AND(SUM($X$35:X110)=0,X111=1),Y111,"") -> 
G112: 89 | H112: 8.9 | I112: 0.4440330703 | J112: 0.00561579294 | K112: 0.3409672582 | L112: 0.2650511016 | M112: 0.03481343985 | N112: 0.4920321586 | O112: 0.07779413191 | P112: 0.01916859746 | Q112: 0.04763828516 | R112: 0.04140222371 | S112: 0 | T112: 0 | W112: =IF(RAND()<poisson_parameter*model!K112,1,0) -> 0 | X112: =IF(RAND()<(K101^quadratic_condition*L101-$T$21)*$T$22*(1+pref_attach_on*SUM($X$35:X111)),1,0) -> 0 | Y112: 78 | Z112: =IF(AND(SUM($X$35:X111)=0,X112=1),Y112,"") -> 
G113: 90 | H113: 9 | I113: 0.4509421037 | J113: 0.005385592535 | K113: 0.3468582911 | L113: 0.2678496208 | M113: 0.03481343985 | N113: 0.4899084462 | O113: 0.07825213594 | P113: 0.01916859746 | Q113: 0.04763828516 | R113: 0.04140222371 | S113: 0 | T113: 0 | W113: =IF(RAND()<poisson_parameter*model!K113,1,0) -> 0 | X113: =IF(RAND()<(K102^quadratic_condition*L102-$T$21)*$T$22*(1+pref_attach_on*SUM($X$35:X112)),1,0) -> 0 | Y113: 79 | Z113: =IF(AND(SUM($X$35:X112)=0,X113=1),Y113,"") -> 
G114: 91 | H114: 9.1 | I114: 0.4577317949 | J114: 0.005167292986 | K114: 0.3526740092 | L114: 0.2705780552 | M114: 0.03481343985 | N114: 0.4877464612 | O114: 0.07865780846 | P114: 0.01916859746 | Q114: 0.04763828516 | R114: 0.04140222371 | S114: 0 | T114: 0 | W114: =IF(RAND()<poisson_parameter*model!K114,1,0) -> 0 | X114: =IF(RAND()<(K103^quadratic_condition*L103-$T$21)*$T$22*(1+pref_attach_on*SUM($X$35:X113)),1,0) -> 0 | Y114: 80 | Z114: =IF(AND(SUM($X$35:X113)=0,X114=1),Y114,"") -> 
G115: 92 | H115: 9.2 | I115: 0.4643981978 | J115: 0.004960237478 | K115: 0.3584090362 | L115: 0.2732361949 | M115: 0.03481343985 | N115: 0.4855518603 | O115: 0.07901157479 | P115: 0.01916859746 | Q115: 0.04763828516 | R115: 0.04140222371 | S115: 0 | T115: 0 | W115: =IF(RAND()<poisson_parameter*model!K115,1,0) -> 0 | X115: =IF(RAND()<(K104^quadratic_condition*L104-$T$21)*$T$22*(1+pref_attach_on*SUM($X$35:X114)),1,0) -> 0 | Y115: 81 | Z115: =IF(AND(SUM($X$35:X114)=0,X115=1),Y115,"") -> 
G116: 93 | H116: 9.3 | I116: 0.4709377643 | J116: 0.004763802682 | K116: 0.3640583203 | L116: 0.2758239863 | M116: 0.03481343985 | N116: 0.4833299906 | O116: 0.07931401566 | P116: 0.01916859746 | Q116: 0.04763828516 | R116: 0.04140222371 | S116: 0 | T116: 0 | W116: =IF(RAND()<poisson_parameter*model!K116,1,0) -> 0 | X116: =IF(RAND()<(K105^quadratic_condition*L105-$T$21)*$T$22*(1+pref_attach_on*SUM($X$35:X115)),1,0) -> 0 | Y116: 82 | Z116: =IF(AND(SUM($X$35:X115)=0,X116=1),Y116,"") -> 
G117: 94 | H117: 9.4 | I117: 0.4773473427 | J117: 0.004577397725 | K117: 0.3696171501 | L117: 0.2783415242 | M117: 0.03481343985 | N117: 0.4810859027 | O117: 0.07956585757 | P117: 0.01916859746 | Q117: 0.04763828516 | R117: 0.04140222371 | S117: 0 | T117: 0 | W117: =IF(RAND()<poisson_parameter*model!K117,1,0) -> 0 | X117: =IF(RAND()<(K106^quadratic_condition*L106-$T$21)*$T$22*(1+pref_attach_on*SUM($X$35:X116)),1,0) -> 0 | Y117: 83 | Z117: =IF(AND(SUM($X$35:X116)=0,X117=1),Y117,"") -> 
G118: 95 | H118: 9.5 | I118: 0.4836241743 | J118: 0.004400463066 | K118: 0.3750811663 | L118: 0.2807890439 | M118: 0.03481343985 | N118: 0.4788243631 | O118: 0.07976796256 | P118: 0.01916859746 | Q118: 0.04759259745 | R118: 0.04140222371 | S118: 0 | T118: 0 | W118: =IF(RAND()<poisson_parameter*model!K118,1,0) -> 0 | X118: =IF(RAND()<(K107^quadratic_condition*L107-$T$21)*$T$22*(1+pref_attach_on*SUM($X$35:X117)),1,0) -> 0 | Y118: 84 | Z118: =IF(AND(SUM($X$35:X117)=0,X118=1),Y118,"") -> 
G119: 96 | H119: 9.6 | I119: 0.4897685998 | J119: 0.004232453243 | K119: 0.3804463714 | L119: 0.2831688672 | M119: 0.03481343985 | N119: 0.4765465791 | O119: 0.07992159561 | P119: 0.01916859746 | Q119: 0.04753824864 | R119: 0.04140222371 | S119: 0 | T119: 0 | W119: =IF(RAND()<poisson_parameter*model!K119,1,0) -> 0 | X119: =IF(RAND()<(K108^quadratic_condition*L108-$T$21)*$T$22*(1+pref_attach_on*SUM($X$35:X118)),1,0) -> 0 | Y119: 85 | Z119: =IF(AND(SUM($X$35:X118)=0,X119=1),Y119,"") -> 
G120: 97 | H120: 9.7 | I120: 0.4957791573 | J120: 0.004072869707 | K120: 0.3857091738 | L120: 0.285481834 | M120: 0.03481343985 | N120: 0.4742564069 | O120: 0.08002788895 | P120: 0.01916859746 | Q120: 0.0474756376 | R120: 0.04140222371 | S120: 0 | T120: 0 | W120: =IF(RAND()<poisson_parameter*model!K120,1,0) -> 0 | X120: =IF(RAND()<(K109^quadratic_condition*L109-$T$21)*$T$22*(1+pref_attach_on*SUM($X$35:X119)),1,0) -> 0 | Y120: 86 | Z120: =IF(AND(SUM($X$35:X119)=0,X120=1),Y120,"") ->  | AB120: 10 | AC120: 20 | AD120: 30 | AE120: 50 | AF120: 12.5 | AG120: 22.5 | AH120: 32.5 | AI120: 23.5 | AJ120: 33.5 | AK120: 14.5 | AL120: 24.5 | AM120: 34.5 | AN120: 54.5
G121: 98 | H121: 9.8 | I121: 0.5016547292 | J121: 0.003921241852 | K121: 0.3908663613 | L121: 0.2877288753 | M121: 0.03481343985 | N121: 0.4719575093 | O121: 0.08008807003 | P121: 0.01916859746 | Q121: 0.04740516318 | R121: 0.04140222371 | S121: 0 | T121: 0 | W121: =IF(RAND()<poisson_parameter*model!K121,1,0) -> 0 | X121: =IF(RAND()<(K110^quadratic_condition*L110-$T$21)*$T$22*(1+pref_attach_on*SUM($X$35:X120)),1,0) -> 0 | Y121: 87 | Z121: =IF(AND(SUM($X$35:X120)=0,X121=1),Y121,"") ->  | AA121: 10 | AB121: 125 | AC121: 2 | AF121: 1 | AK121: 1 | AO121: 129
G122: 99 | H122: 9.9 | I122: 0.5073945294 | J122: 0.003777125644 | K122: 0.395915101 | L122: 0.2899110043 | M122: 0.03481343985 | N122: 0.4696533604 | O122: 0.08010345035 | P122: 0.01916859746 | Q122: 0.04732722272 | R122: 0.04140222371 | S122: 0 | T122: 0 | W122: =IF(RAND()<poisson_parameter*model!K122,1,0) -> 0 | X122: =IF(RAND()<(K111^quadratic_condition*L111-$T$21)*$T$22*(1+pref_attach_on*SUM($X$35:X121)),1,0) -> 0 | Y122: 88 | Z122: =IF(AND(SUM($X$35:X121)=0,X122=1),Y122,"") ->  | AA122: 20 | AC122: 116 | AD122: 2 | AG122: 1 | AL122: 1 | AO122: 120
G123: 100 | H123: 10 | I123: 0.5129980886 | J123: 0.003640102275 | K123: 0.4008529378 | L123: 0.2920293066 | M123: 0.03481343985 | N123: 0.4673472497 | O123: 0.0800754145 | P123: 0.01916859746 | Q123: 0.04724221068 | R123: 0.04140222371 | S123: 0 | T123: 0 | W123: =IF(RAND()<poisson_parameter*model!K123,1,0) -> 0 | X123: =IF(RAND()<(K112^quadratic_condition*L112-$T$21)*$T$22*(1+pref_attach_on*SUM($X$35:X122)),1,0) -> 0 | Y123: 89 | Z123: =IF(AND(SUM($X$35:X122)=0,X123=1),Y123,"") ->  | AA123: 30 | AB123: 1 | AC123: 2 | AD123: 88 | AM123: 3 | AO123: 94
G124: 101 | H124: 10.1 | I124: 0.5184652387 | J124: 0.003509776859 | K124: 0.4056777892 | L124: 0.2940849322 | M124: 0.03481343985 | N124: 0.4650422867 | O124: 0.08000540944 | P124: 0.01916859746 | Q124: 0.04715051732 | R124: 0.04140222371 | S124: 0 | T124: 0 | W124: =IF(RAND()<poisson_parameter*model!K124,1,0) -> 0 | X124: =IF(RAND()<(K113^quadratic_condition*L113-$T$21)*$T$22*(1+pref_attach_on*SUM($X$35:X123)),1,0) -> 0 | Y124: 90 | Z124: =IF(AND(SUM($X$35:X123)=0,X124=1),Y124,"") ->  | AA124: 50 | AE124: 22 | AN124: 1 | AO124: 23
G125: 102 | H125: 10.2 | I125: 0.5237960977 | J125: 0.003385777164 | K125: 0.4103879383 | L125: 0.2960790862 | M125: 0.03481343985 | N125: 0.4627414048 | O125: 0.0798949341 | P125: 0.01916859746 | Q125: 0.04705252755 | R125: 0.04140222371 | S125: 0 | T125: 0 | W125: =IF(RAND()<poisson_parameter*model!K125,1,0) -> 0 | X125: =IF(RAND()<(K114^quadratic_condition*L114-$T$21)*$T$22*(1+pref_attach_on*SUM($X$35:X124)),1,0) -> 0 | Y125: 91 | Z125: =IF(AND(SUM($X$35:X124)=0,X125=1),Y125,"") ->  | AA125: 12.5 | AB125: 2 | AF125: 171 | AG125: 1 | AL125: 1 | AO125: 175
G126: 103 | H126: 10.3 | I126: 0.5289910526 | J126: 0.003267752399 | K126: 0.4149820252 | L126: 0.2980130216 | M126: 0.03481343985 | N126: 0.4604473653 | O126: 0.07974552938 | P126: 0.01916859746 | Q126: 0.04694861989 | R126: 0.04140222371 | S126: 0 | T126: 0 | W126: =IF(RAND()<poisson_parameter*model!K126,1,0) -> 0 | X126: =IF(RAND()<(K115^quadratic_condition*L115-$T$21)*$T$22*(1+pref_attach_on*SUM($X$35:X125)),1,0) -> 0 | Y126: 92 | Z126: =IF(AND(SUM($X$35:X125)=0,X126=1),Y126,"") ->  | AA126: 22.5 | AG126: 209 | AH126: 1 | AI126: 1 | AL126: 2 | AO126: 213
G127: 104 | H127: 10.4 | I127: 0.5340507432 | J127: 0.003155372039 | K127: 0.4194590353 | L127: 0.299888031 | M127: 0.03481343985 | N127: 0.4581627615 | O127: 0.07955876859 | P127: 0.01916859746 | Q127: 0.04683916551 | R127: 0.04140222371 | S127: 0 | T127: 0 | W127: =IF(RAND()<poisson_parameter*model!K127,1,0) -> 0 | X127: =IF(RAND()<(K116^quadratic_condition*L116-$T$21)*$T$22*(1+pref_attach_on*SUM($X$35:X126)),1,0) -> 0 | Y127: 93 | Z127: =IF(AND(SUM($X$35:X126)=0,X127=1),Y127,"") ->  | AA127: 32.5 | AD127: 1 | AH127: 63 | AJ127: 1 | AM127: 1 | AO127: 66
G128: 105 | H128: 10.5 | I128: 0.5389760451 | J128: 0.003048324702 | K128: 0.4238182873 | L128: 0.3017054401 | M128: 0.03481343985 | N128: 0.455890023 | O128: 0.07933624837 | P128: 0.01916859746 | Q128: 0.04672452741 | R128: 0.04140222371 | S128: 0 | T128: 0 | W128: =IF(RAND()<poisson_parameter*model!K128,1,0) -> 0 | X128: =IF(RAND()<(K117^quadratic_condition*L117-$T$21)*$T$22*(1+pref_attach_on*SUM($X$35:X127)),1,0) -> 0 | Y128: 94 | Z128: =IF(AND(SUM($X$35:X127)=0,X128=1),Y128,"") ->  | AA128: 23.5 | AG128: 1 | AI128: 10 | AO128: 11
G129: 106 | H129: 10.6 | I129: 0.5437680533 | J129: 0.002946317079 | K129: 0.4280594185 | L129: 0.3034666005 | M129: 0.03481343985 | N129: 0.4536314198 | O129: 0.07907958021 | P129: 0.01916859746 | Q129: 0.04660505971 | R129: 0.04140222371 | S129: 0 | T129: 0 | W129: =IF(RAND()<poisson_parameter*model!K129,1,0) -> 0 | X129: =IF(RAND()<(K118^quadratic_condition*L118-$T$21)*$T$22*(1+pref_attach_on*SUM($X$35:X128)),1,0) -> 0 | Y129: 95 | Z129: =IF(AND(SUM($X$35:X128)=0,X129=1),Y129,"") ->  | AA129: 33.5 | AH129: 1 | AJ129: 11 | AO129: 12
G130: 107 | H130: 10.7 | I130: 0.5484280647 | J130: 0.002849072905 | K130: 0.4321823702 | L130: 0.3051728837 | M130: 0.03481343985 | N130: 0.4513890663 | O130: 0.0787903825 | P130: 0.01916859746 | Q130: 0.04648110698 | R130: 0.04140222371 | S130: 0 | T130: 0 | W130: =IF(RAND()<poisson_parameter*model!K130,1,0) -> 0 | X130: =IF(RAND()<(K119^quadratic_condition*L119-$T$21)*$T$22*(1+pref_attach_on*SUM($X$35:X129)),1,0) -> 0 | Y130: 96 | Z130: =IF(AND(SUM($X$35:X129)=0,X130=1),Y130,"") ->  | AA130: 14.5 | AB130: 1 | AF130: 3 | AK130: 47 | AO130: 51
G131: 108 | H131: 10.8 | I131: 0.5529575621 | J131: 0.002756331989 | K131: 0.4361873709 | L131: 0.3068256754 | M131: 0.03481343985 | N131: 0.4491649263 | O131: 0.07847027312 | P131: 0.01916859746 | Q131: 0.04635300379 | R131: 0.04140222371 | S131: 0 | T131: 0 | W131: =IF(RAND()<poisson_parameter*model!K131,1,0) -> 0 | X131: =IF(RAND()<(K120^quadratic_condition*L120-$T$21)*$T$22*(1+pref_attach_on*SUM($X$35:X130)),1,0) -> 0 | Y131: 97 | Z131: =IF(AND(SUM($X$35:X130)=0,X131=1),Y131,"") ->  | AA131: 24.5 | AG131: 1 | AK131: 1 | AL131: 102 | AN131: 1 | AO131: 105
G132: 109 | H132: 10.9 | I132: 0.5573581979 | J132: 0.002667849284 | K132: 0.4400749194 | L132: 0.3084263698 | M132: 0.03481343985 | N132: 0.446960817 | O132: 0.07812086266 | P132: 0.01916859746 | Q132: 0.04622107421 | R132: 0.04140222371 | S132: 0 | T132: 0 | W132: =IF(RAND()<poisson_parameter*model!K132,1,0) -> 0 | X132: =IF(RAND()<(K121^quadratic_condition*L121-$T$21)*$T$22*(1+pref_attach_on*SUM($X$35:X131)),1,0) -> 0 | Y132: 98 | Z132: =IF(AND(SUM($X$35:X131)=0,X132=1),Y132,"") ->  | AA132: 34.5 | AD132: 2 | AH132: 1 | AK132: 1 | AM132: 164 | AO132: 168
G133: 110 | H133: 11 | I133: 0.5616317781 | J133: 0.002583394008 | K133: 0.4438457673 | L133: 0.309976365 | M133: 0.03481343985 | N133: 0.4447784138 | O133: 0.0777437483 | P133: 0.01916859746 | Q133: 0.04608563151 | R133: 0.04140222371 | S133: 0 | T133: 0 | W133: =IF(RAND()<poisson_parameter*model!K133,1,0) -> 0 | X133: =IF(RAND()<(K122^quadratic_condition*L122-$T$21)*$T$22*(1+pref_attach_on*SUM($X$35:X132)),1,0) -> 0 | Y133: 99 | Z133: =IF(AND(SUM($X$35:X132)=0,X133=1),Y133,"") ->  | AA133: 54.5 | AE133: 1 | AK133: 1 | AN133: 95 | AO133: 97
G134: 111 | H134: 11.1 | I134: 0.5657802468 | J134: 0.002502748814 | K134: 0.4475009012 | L134: 0.3114770583 | M134: 0.03481343985 | N134: 0.442619255 | O134: 0.07734050813 | P134: 0.01916859746 | Q134: 0.04594697787 | R134: 0.04140222371 | S134: 0 | T134: 0 | W134: =IF(RAND()<poisson_parameter*model!K134,1,0) -> 0 | X134: =IF(RAND()<(K123^quadratic_condition*L123-$T$21)*$T$22*(1+pref_attach_on*SUM($X$35:X133)),1,0) -> 0 | Y134: 100 | Z134: =IF(AND(SUM($X$35:X133)=0,X134=1),Y134,"") ->  | AB134: 129 | AC134: 120 | AD134: 93 | AE134: 23 | AF134: 175 | AG134: 213 | AH134: 66 | AI134: 11 | AJ134: 12 | AK134: 51 | AL134: 106 | AM134: 168 | AN134: 97 | AO134: 1264
G135: 112 | H135: 11.2 | I135: 0.5698056716 | J135: 0.002425708993 | K135: 0.4510415244 | L135: 0.3129298423 | M135: 0.03481343985 | N135: 0.4404847467 | O135: 0.07691269615 | P135: 0.01916859746 | Q135: 0.04580540423 | R135: 0.04140222371 | S135: 0 | T135: 0 | W135: =IF(RAND()<poisson_parameter*model!K135,1,0) -> 0 | X135: =IF(RAND()<(K124^quadratic_condition*L124-$T$21)*$T$22*(1+pref_attach_on*SUM($X$35:X134)),1,0) -> 0 | Y135: 101 | Z135: =IF(AND(SUM($X$35:X134)=0,X135=1),Y135,"") -> 
G136: 113 | H136: 11.3 | I136: 0.5737102288 | J136: 0.002352081737 | K136: 0.4544690387 | L136: 0.314336101 | M136: 0.03481343985 | N136: 0.4383761675 | O136: 0.07646183787 | P136: 0.01916859746 | Q136: 0.04566119011 | R136: 0.04140222371 | S136: 0 | T136: 0 | W136: =IF(RAND()<poisson_parameter*model!K136,1,0) -> 0 | X136: =IF(RAND()<(K125^quadratic_condition*L125-$T$21)*$T$22*(1+pref_attach_on*SUM($X$35:X135)),1,0) -> 0 | Y136: 102 | Z136: =IF(AND(SUM($X$35:X135)=0,X136=1),Y136,"") -> 
G137: 114 | H137: 11.4 | I137: 0.5774961899 | J137: 0.002281685427 | K137: 0.4577850268 | L137: 0.3156972064 | M137: 0.03481343985 | N137: 0.4362946734 | O137: 0.07598942629 | P137: 0.01916859746 | Q137: 0.04551460362 | R137: 0.04140222371 | S137: 0 | T137: 0 | W137: =IF(RAND()<poisson_parameter*model!K137,1,0) -> 0 | X137: =IF(RAND()<(K126^quadratic_condition*L126-$T$21)*$T$22*(1+pref_attach_on*SUM($X$35:X136)),1,0) -> 0 | Y137: 103 | Z137: =IF(AND(SUM($X$35:X136)=0,X137=1),Y137,"") -> 
G138: 115 | H138: 11.5 | I138: 0.5811659087 | J138: 0.002214348972 | K138: 0.4609912343 | L138: 0.3170145159 | M138: 0.03481343985 | N138: 0.4342413031 | O138: 0.0754969186 | P138: 0.01916859746 | Q138: 0.04536590141 | R138: 0.04140222371 | S138: 0 | T138: 0 | W138: =IF(RAND()<poisson_parameter*model!K138,1,0) -> 0 | X138: =IF(RAND()<(K127^quadratic_condition*L127-$T$21)*$T$22*(1+pref_attach_on*SUM($X$35:X137)),1,0) -> 0 | Y138: 104 | Z138: =IF(AND(SUM($X$35:X137)=0,X138=1),Y138,"") -> 
G139: 116 | H139: 11.6 | I139: 0.5847218083 | J139: 0.002149911178 | K139: 0.4640895526 | L139: 0.3182893692 | M139: 0.03481343985 | N139: 0.432216983 | O139: 0.07498573324 | P139: 0.01916859746 | Q139: 0.04521532877 | R139: 0.04140222371 | S139: 0 | T139: 0 | W139: =IF(RAND()<poisson_parameter*model!K139,1,0) -> 0 | X139: =IF(RAND()<(K128^quadratic_condition*L128-$T$21)*$T$22*(1+pref_attach_on*SUM($X$35:X138)),1,0) -> 0 | Y139: 105 | Z139: =IF(AND(SUM($X$35:X138)=0,X139=1),Y139,"") -> 
G140: 117 | H140: 11.7 | I140: 0.58816637 | J140: 0.002088220161 | K140: 0.467082002 | L140: 0.3195230862 | M140: 0.03481343985 | N140: 0.4302225318 | O140: 0.07445724745 | P140: 0.01916859746 | Q140: 0.04506311968 | R140: 0.04140222371 | S140: 0 | T140: 0 | W140: =IF(RAND()<poisson_parameter*model!K140,1,0) -> 0 | X140: =IF(RAND()<(K129^quadratic_condition*L129-$T$21)*$T$22*(1+pref_attach_on*SUM($X$35:X139)),1,0) -> 0 | Y140: 106 | Z140: =IF(AND(SUM($X$35:X139)=0,X140=1),Y140,"") -> 
G141: 118 | H141: 11.8 | I141: 0.5915021215 | J141: 0.002029132785 | K141: 0.4699707157 | L141: 0.3207169649 | M141: 0.03481343985 | N141: 0.4282586663 | O141: 0.0739127953 | P141: 0.01916859746 | Q141: 0.04490949702 | R141: 0.04140222371 | S141: 0 | T141: 0 | W141: =IF(RAND()<poisson_parameter*model!K141,1,0) -> 0 | X141: =IF(RAND()<(K130^quadratic_condition*L130-$T$21)*$T$22*(1+pref_attach_on*SUM($X$35:X140)),1,0) -> 0 | Y141: 107 | Z141: =IF(AND(SUM($X$35:X140)=0,X141=1),Y141,"") -> 
G142: 119 | H142: 11.9 | I142: 0.5947316271 | J142: 0.00197251414 | K142: 0.4727579241 | L142: 0.3218722796 | M142: 0.03481343985 | N142: 0.4263260056 | O142: 0.0733536661 | P142: 0.01916859746 | Q142: 0.04475467267 | R142: 0.04140222371 | S142: 0 | T142: 0 | W142: =IF(RAND()<poisson_parameter*model!K142,1,0) -> 0 | X142: =IF(RAND()<(K131^quadratic_condition*L131-$T$21)*$T$22*(1+pref_attach_on*SUM($X$35:X141)),1,0) -> 0 | Y142: 108 | Z142: =IF(AND(SUM($X$35:X141)=0,X142=1),Y142,"") -> 
G143: 120 | H143: 12 | I143: 0.5978574779 | J143: 0.001918237049 | K143: 0.47544594 | L143: 0.3229902796 | M143: 0.03481343985 | N143: 0.4244250767 | O143: 0.07278110317 | P143: 0.01916859746 | Q143: 0.04459884779 | R143: 0.04140222371 | S143: 0 | T143: 0 | W143: =IF(RAND()<poisson_parameter*model!K143,1,0) -> 0 | X143: =IF(RAND()<(K132^quadratic_condition*L132-$T$21)*$T$22*(1+pref_attach_on*SUM($X$35:X142)),1,0) -> 0 | Y143: 109 | Z143: =IF(AND(SUM($X$35:X142)=0,X143=1),Y143,"") -> 
G144: 121 | H144: 12.1 | I144: 0.6008822823 | J144: 0.001866181603 | K144: 0.4780371448 | L144: 0.3240721877 | M144: 0.03481343985 | N144: 0.4225563194 | O144: 0.07219630299 | P144: 0.01916859746 | Q144: 0.044442213 | R144: 0.04140222371 | S144: 0 | T144: 0 | W144: =IF(RAND()<poisson_parameter*model!K144,1,0) -> 0 | X144: =IF(RAND()<(K133^quadratic_condition*L133-$T$21)*$T$22*(1+pref_attach_on*SUM($X$35:X143)),1,0) -> 0 | Y144: 110 | Z144: =IF(AND(SUM($X$35:X143)=0,X144=1),Y144,"") -> 
G145: 122 | H145: 12.2 | I145: 0.6038086582 | J145: 0.001816234723 | K145: 0.4805339751 | L145: 0.3251191992 | M145: 0.03481343985 | N145: 0.4207200908 | O145: 0.07160041464 | P145: 0.01916859746 | Q145: 0.04428494868 | R145: 0.04140222371 | S145: 0 | T145: 0 | W145: =IF(RAND()<poisson_parameter*model!K145,1,0) -> 0 | X145: =IF(RAND()<(K134^quadratic_condition*L134-$T$21)*$T$22*(1+pref_attach_on*SUM($X$35:X144)),1,0) -> 0 | Y145: 111 | Z145: =IF(AND(SUM($X$35:X144)=0,X145=1),Y145,"") -> 
G146: 123 | H146: 12.3 | I146: 0.6066392253 | J146: 0.001768289754 | K146: 0.4829389102 | L146: 0.3261324812 | M146: 0.03481343985 | N146: 0.4189166704 | O146: 0.07099453955 | P146: 0.01916859746 | Q146: 0.04412722523 | R146: 0.04140222371 | S146: 0 | T146: 0 | W146: =IF(RAND()<poisson_parameter*model!K146,1,0) -> 0 | X146: =IF(RAND()<(K135^quadratic_condition*L135-$T$21)*$T$22*(1+pref_attach_on*SUM($X$35:X145)),1,0) -> 0 | Y146: 112 | Z146: =IF(AND(SUM($X$35:X145)=0,X146=1),Y146,"") -> 
G147: 124 | H147: 12.4 | I147: 0.6093765973 | J147: 0.001722246076 | K147: 0.4852544608 | L147: 0.3271131716 | M147: 0.03481343985 | N147: 0.4171462644 | O147: 0.07037973149 | P147: 0.01916859746 | Q147: 0.04396920339 | R147: 0.04140222371 | S147: 0 | T147: 0 | W147: =IF(RAND()<poisson_parameter*model!K147,1,0) -> 0 | X147: =IF(RAND()<(K136^quadratic_condition*L136-$T$21)*$T$22*(1+pref_attach_on*SUM($X$35:X146)),1,0) -> 0 | Y147: 113 | Z147: =IF(AND(SUM($X$35:X146)=0,X147=1),Y147,"") -> 
G148: 125 | H148: 12.5 | I148: 0.6120233764 | J148: 0.001678008743 | K148: 0.487483158 | L148: 0.3280623791 | M148: 0.03481343985 | N148: 0.4154090109 | O148: 0.0697569968 | P148: 0.01916859746 | Q148: 0.04381103449 | R148: 0.04140222371 | S148: 0 | T148: 0 | W148: =IF(RAND()<poisson_parameter*model!K148,1,0) -> 0 | X148: =IF(RAND()<(K137^quadratic_condition*L137-$T$21)*$T$22*(1+pref_attach_on*SUM($X$35:X147)),1,0) -> 0 | Y148: 114 | Z148: =IF(AND(SUM($X$35:X147)=0,X148=1),Y148,"") -> 
G149: 126 | H149: 12.6 | I149: 0.6145821467 | J149: 0.001635488142 | K149: 0.4896275435 | L149: 0.3289811824 | M149: 0.03481343985 | N149: 0.4137049837 | O149: 0.06912729485 | P149: 0.01856987254 | Q149: 0.04365286083 | R149: 0.04140222371 | S149: 0 | T149: 0 | W149: =IF(RAND()<poisson_parameter*model!K149,1,0) -> 0 | X149: =IF(RAND()<(K138^quadratic_condition*L138-$T$21)*$T$22*(1+pref_attach_on*SUM($X$35:X148)),1,0) -> 0 | Y149: 115 | Z149: =IF(AND(SUM($X$35:X148)=0,X149=1),Y149,"") -> 
G150: 127 | H150: 12.7 | I150: 0.6170382062 | J150: 0.001594599678 | K150: 0.4916901606 | L150: 0.3299068343 | M150: 0.03481343985 | N150: 0.4120341971 | O150: 0.06849142197 | P150: 0.01798600614 | Q150: 0.04349617658 | R150: 0.04140222371 | S150: 0 | T150: 0 | W150: =IF(RAND()<poisson_parameter*model!K150,1,0) -> 0 | X150: =IF(RAND()<(K139^quadratic_condition*L139-$T$21)*$T$22*(1+pref_attach_on*SUM($X$35:X149)),1,0) -> 0 | Y150: 116 | Z150: =IF(AND(SUM($X$35:X149)=0,X150=1),Y150,"") -> 
G151: 128 | H151: 12.8 | I151: 0.6193949224 | J151: 0.001555263171 | K151: 0.4936744383 | L151: 0.3308381043 | M151: 0.03481343985 | N151: 0.4103966941 | O151: 0.06785035795 | P151: 0.01741689543 | Q151: 0.04334107563 | R151: 0.04140222371 | S151: 0 | T151: 0 | W151: =IF(RAND()<poisson_parameter*model!K151,1,0) -> 0 | X151: =IF(RAND()<(K140^quadratic_condition*L140-$T$21)*$T$22*(1+pref_attach_on*SUM($X$35:X150)),1,0) -> 0 | Y151: 117 | Z151: =IF(AND(SUM($X$35:X150)=0,X151=1),Y151,"") -> 
G152: 129 | H152: 12.9 | I152: 0.6216556254 | J152: 0.001517402868 | K152: 0.4955837018 | L152: 0.3317738031 | M152: 0.03481343985 | N152: 0.4087924372 | O152: 0.06720502782 | P152: 0.01686241684 | Q152: 0.04318764314 | R152: 0.04140222371 | S152: 0 | T152: 0 | W152: =IF(RAND()<poisson_parameter*model!K152,1,0) -> 0 | X152: =IF(RAND()<(K141^quadratic_condition*L141-$T$21)*$T$22*(1+pref_attach_on*SUM($X$35:X151)),1,0) -> 0 | Y152: 118 | Z152: =IF(AND(SUM($X$35:X151)=0,X152=1),Y152,"") -> 
G153: 130 | H153: 13 | I153: 0.623823601 | J153: 0.001480947194 | K153: 0.4974211688 | L153: 0.3327127836 | M153: 0.03481343985 | N153: 0.4072213162 | O153: 0.06655630323 | P153: 0.01632242788 | Q153: 0.04303595604 | R153: 0.04140222371 | S153: 0 | T153: 0 | W153: =IF(RAND()<poisson_parameter*model!K153,1,0) -> 0 | X153: =IF(RAND()<(K142^quadratic_condition*L142-$T$21)*$T$22*(1+pref_attach_on*SUM($X$35:X152)),1,0) -> 0 | Y153: 119 | Z153: =IF(AND(SUM($X$35:X152)=0,X153=1),Y153,"") -> 
G154: 131 | H154: 13.1 | I154: 0.6259020845 | J154: 0.001445828515 | K154: 0.499189947 | L154: 0.3336539406 | M154: 0.03481343985 | N154: 0.4056831561 | O154: 0.06590500388 | P154: 0.0157967689 | Q154: 0.04288608342 | R154: 0.04140222371 | S154: 0 | T154: =S154-S153 -> 0 | W154: =IF(RAND()<poisson_parameter*model!K154,1,0) -> 0 | X154: =IF(RAND()<(K143^quadratic_condition*L143-$T$21)*$T$22*(1+pref_attach_on*SUM($X$35:X153)),1,0) -> 0 | Y154: 120 | Z154: =IF(AND(SUM($X$35:X153)=0,X154=1),Y154,"") -> 
G155: 132 | H155: 13.2 | I155: 0.6278942553 | J155: 0.001411982907 | K155: 0.5008930328 | L155: 0.3345962117 | M155: 0.03481343985 | N155: 0.4041777236 | O155: 0.06525189909 | P155: 0.01528526471 | Q155: 0.04273808702 | R155: 0.04140222371 | S155: 0 | T155: 0 | W155: =IF(RAND()<poisson_parameter*model!K155,1,0) -> 0 | X155: =IF(RAND()<(K144^quadratic_condition*L144-$T$21)*$T$22*(1+pref_attach_on*SUM($X$35:X154)),1,0) -> 0 | Y155: 121 | Z155: =IF(AND(SUM($X$35:X154)=0,X155=1),Y155,"") -> 
G156: 133 | H156: 13.3 | I156: 0.6298032322 | J156: 0.001379349948 | K156: 0.5025333103 | L156: 0.3355385768 | M156: 0.03481343985 | N156: 0.4027047341 | O156: 0.06459770955 | P156: 0.01478772619 | Q156: 0.04259202166 | R156: 0.04140222371 | S156: 0 | T156: 0 | W156: =IF(RAND()<poisson_parameter*model!K156,1,0) -> 0 | X156: =IF(RAND()<(K145^quadratic_condition*L145-$T$21)*$T$22*(1+pref_attach_on*SUM($X$35:X155)),1,0) -> 0 | Y156: 122 | Z156: =IF(AND(SUM($X$35:X155)=0,X156=1),Y156,"") -> 
G157: 134 | H157: 13.4 | I157: 0.6316320695 | J157: 0.001347872514 | K157: 0.5041135513 | L157: 0.3364800588 | M157: 0.03481343985 | N157: 0.4012638574 | O157: 0.06394310897 | P157: 0.0143039518 | Q157: 0.04244793561 | R157: 0.04140222371 | S157: 0 | T157: 0 | W157: =IF(RAND()<poisson_parameter*model!K157,1,0) -> 0 | X157: =IF(RAND()<(K146^quadratic_condition*L146-$T$21)*$T$22*(1+pref_attach_on*SUM($X$35:X156)),1,0) -> 0 | Y157: 123 | Z157: =IF(AND(SUM($X$35:X156)=0,X157=1),Y157,"") -> 
G158: 135 | H158: 13.5 | I158: 0.6333837537 | J158: 0.001317496587 | K158: 0.5056364158 | L158: 0.337419723 | M158: 0.03481343985 | N158: 0.3998547232 | O158: 0.06328872594 | P158: 0.01383372897 | Q158: 0.04230587104 | R158: 0.04140222371 | S158: 0 | T158: 0 | W158: =IF(RAND()<poisson_parameter*model!K158,1,0) -> 0 | X158: =IF(RAND()<(K147^quadratic_condition*L147-$T$21)*$T$22*(1+pref_attach_on*SUM($X$35:X157)),1,0) -> 0 | Y158: 124 | Z158: =IF(AND(SUM($X$35:X157)=0,X158=1),Y158,"") -> 
G159: 136 | H159: 13.6 | I159: 0.6350612005 | J159: 0.001288171079 | K159: 0.5071044533 | L159: 0.3383566775 | M159: 0.03481343985 | N159: 0.3984769265 | O159: 0.06263514573 | P159: 0.01337683544 | Q159: 0.04216586438 | R159: 0.04140222371 | S159: 0 | T159: 0 | W159: =IF(RAND()<poisson_parameter*model!K159,1,0) -> 0 | X159: =IF(RAND()<(K148^quadratic_condition*L148-$T$21)*$T$22*(1+pref_attach_on*SUM($X$35:X158)),1,0) -> 0 | Y159: 125 | Z159: =IF(AND(SUM($X$35:X158)=0,X159=1),Y159,"") -> 
G160: 137 | H160: 13.7 | I160: 0.6366672524 | J160: 0.001259847659 | K160: 0.5085201042 | L160: 0.3392900724 | M160: 0.03481343985 | N160: 0.3971300321 | O160: 0.06198291214 | P160: 0.01293304057 | Q160: 0.0420279467 | R160: 0.04140222371 | S160: 0 | T160: 0 | W160: =IF(RAND()<poisson_parameter*model!K160,1,0) -> 0 | X160: =IF(RAND()<(K149^quadratic_condition*L149-$T$21)*$T$22*(1+pref_attach_on*SUM($X$35:X159)),1,0) -> 0 | Y160: 126 | Z160: =IF(AND(SUM($X$35:X159)=0,X160=1),Y160,"") -> 
G161: 138 | H161: 13.8 | I161: 0.6382046774 | J161: 0.001232480593 | K161: 0.5098857018 | L161: 0.3402190999 | M161: 0.03481343985 | N161: 0.3958135789 | O161: 0.06133252933 | P161: 0.01250210644 | Q161: 0.04189214405 | R161: 0.04140222371 | S161: 0 | T161: 0 | W161: =IF(RAND()<poisson_parameter*model!K161,1,0) -> 0 | X161: =IF(RAND()<(K150^quadratic_condition*L150-$T$21)*$T$22*(1+pref_attach_on*SUM($X$35:X160)),1,0) -> 0 | Y161: 127 | Z161: =IF(AND(SUM($X$35:X160)=0,X161=1),Y161,"") -> 
G162: 139 | H162: 13.9 | I162: 0.6396761671 | J162: 0.001206026598 | K162: 0.5112034747 | L162: 0.3411429938 | M162: 0.03481343985 | N162: 0.3945270839 | O162: 0.06068446369 | P162: 0.01208378903 | Q162: 0.04175847784 | R162: 0.04140222371 | S162: 0 | T162: 0 | W162: =IF(RAND()<poisson_parameter*model!K162,1,0) -> 0 | X162: =IF(RAND()<(K151^quadratic_condition*L151-$T$21)*$T$22*(1+pref_attach_on*SUM($X$35:X161)),1,0) -> 0 | Y162: 128 | Z162: =IF(AND(SUM($X$35:X161)=0,X162=1),Y162,"") -> 
G163: 140 | H163: 14 | I163: 0.6410843361 | J163: 0.001180444692 | K163: 0.5124755491 | L163: 0.342061029 | M163: 0.03481343985 | N163: 0.3932700461 | O163: 0.06003914564 | P163: 0.01167783922 | Q163: 0.0416269651 | R163: 0.04140222371 | S163: 0 | T163: 0 | W163: =IF(RAND()<poisson_parameter*model!K163,1,0) -> 0 | X163: =IF(RAND()<(K152^quadratic_condition*L152-$T$21)*$T$22*(1+pref_attach_on*SUM($X$35:X162)),1,0) -> 0 | Y163: 129 | Z163: =IF(AND(SUM($X$35:X162)=0,X163=1),Y163,"") -> 
G164: 141 | H164: 14.1 | I164: 0.6424317213 | J164: 0.001155696071 | K164: 0.5137039522 | L164: 0.3429725208 | M164: 0.03481343985 | N164: 0.3920419491 | O164: 0.05939697143 | P164: 0.01128400377 | Q164: 0.04149761885 | R164: 0.04140222371 | S164: 0 | T164: 0 | W164: =IF(RAND()<poisson_parameter*model!K164,1,0) -> 0 | X164: =IF(RAND()<(K153^quadratic_condition*L153-$T$21)*$T$22*(1+pref_attach_on*SUM($X$35:X163)),1,0) -> 0 | Y164: 130 | Z164: =IF(AND(SUM($X$35:X163)=0,X164=1),Y164,"") -> 
G165: 142 | H165: 14.2 | I165: 0.6437207816 | J165: 0.001131743972 | K165: 0.5148906145 | L165: 0.3438768246 | M165: 0.03481343985 | N165: 0.3908422647 | O165: 0.0587583049 | P165: 0.01090202618 | Q165: 0.04137044836 | R165: 0.04140222371 | S165: 0 | T165: 0 | W165: =IF(RAND()<poisson_parameter*model!K165,1,0) -> 0 | X165: =IF(RAND()<(K154^quadratic_condition*L154-$T$21)*$T$22*(1+pref_attach_on*SUM($X$35:X164)),1,0) -> 0 | Y165: 131 | Z165: =IF(AND(SUM($X$35:X164)=0,X165=1),Y165,"") -> 
G166: 143 | H166: 14.3 | I166: 0.6449538982 | J166: 0.001108553564 | K166: 0.5160373735 | L166: 0.344773335 | M166: 0.03481343985 | N166: 0.3896704555 | O166: 0.05812347919 | P166: 0.01053164756 | Q166: 0.04124545945 | R166: 0.04140222371 | S166: 0 | T166: 0 | W166: =IF(RAND()<poisson_parameter*model!K166,1,0) -> 0 | X166: =IF(RAND()<(K155^quadratic_condition*L155-$T$21)*$T$22*(1+pref_attach_on*SUM($X$35:X165)),1,0) -> 0 | Y166: 132 | Z166: =IF(AND(SUM($X$35:X165)=0,X166=1),Y166,"") -> 
G167: 144 | H167: 14.4 | I167: 0.6461333747 | J167: 0.001086091832 | K167: 0.5171459767 | L167: 0.345661485 | M167: 0.03481343985 | N167: 0.3885259772 | O167: 0.05749279844 | P167: 0.01017260737 | Q167: 0.04112265471 | R167: 0.04140222371 | S167: 0 | T167: 0 | W167: =IF(RAND()<poisson_parameter*model!K167,1,0) -> 0 | X167: =IF(RAND()<(K156^quadratic_condition*L156-$T$21)*$T$22*(1+pref_attach_on*SUM($X$35:X166)),1,0) -> 0 | Y167: 133 | Z167: =IF(AND(SUM($X$35:X166)=0,X167=1),Y167,"") -> 
G168: 145 | H168: 14.5 | I168: 0.6472614376 | J168: 0.001064327474 | K168: 0.5182180849 | L168: 0.3465407454 | M168: 0.03481343985 | N168: 0.3874082809 | O168: 0.05686653939 | P168: 0.00982464413 | Q168: 0.0410020338 | R168: 0.04140222371 | S168: 0 | T168: 0 | W168: =IF(RAND()<poisson_parameter*model!K168,1,0) -> 0 | X168: =IF(RAND()<(K157^quadratic_condition*L157-$T$21)*$T$22*(1+pref_attach_on*SUM($X$35:X167)),1,0) -> 0 | Y168: 134 | Z168: =IF(AND(SUM($X$35:X167)=0,X168=1),Y168,"") -> 
G169: 146 | H169: 14.6 | I169: 0.6483402376 | J169: 0.001043230802 | K169: 0.5192552759 | L169: 0.3474106239 | M169: 0.03481343985 | N169: 0.3863168152 | O169: 0.05624495296 | P169: 0.009487496079 | Q169: 0.04088359368 | R169: 0.04140222371 | S169: 0 | T169: 0 | W169: =IF(RAND()<poisson_parameter*model!K169,1,0) -> 0 | X169: =IF(RAND()<(K158^quadratic_condition*L158-$T$21)*$T$22*(1+pref_attach_on*SUM($X$35:X168)),1,0) -> 0 | Y169: 135 | Z169: =IF(AND(SUM($X$35:X168)=0,X169=1),Y169,"") -> 
G170: 147 | H170: 14.7 | I170: 0.6493718497 | J170: 0.00102277365 | K170: 0.5202590474 | L170: 0.3482706641 | M170: 0.03481343985 | N170: 0.385251028 | O170: 0.05562826576 | P170: 0.009160901752 | Q170: 0.04076732878 | R170: 0.04140222371 | S170: 0 | T170: 0 | W170: =IF(RAND()<poisson_parameter*model!K170,1,0) -> 0 | X170: =IF(RAND()<(K159^quadratic_condition*L159-$T$21)*$T$22*(1+pref_attach_on*SUM($X$35:X169)),1,0) -> 0 | Y170: 136 | Z170: =IF(AND(SUM($X$35:X169)=0,X170=1),Y170,"") -> 
G171: 148 | H171: 14.8 | I171: 0.6503582752 | J171: 0.001002929289 | K171: 0.5212308208 | L171: 0.3491204444 | M171: 0.037621662 | N171: 0.3842103676 | O171: 0.05501668157 | P171: 0.008844600535 | Q171: 0.04065323128 | R171: 0.04140222371 | S171: 0 | T171: 0 | W171: =IF(RAND()<poisson_parameter*model!K171,1,0) -> 0 | X171: =IF(RAND()<(K160^quadratic_condition*L160-$T$21)*$T$22*(1+pref_attach_on*SUM($X$35:X170)),1,0) -> 0 | Y171: 137 | Z171: =IF(AND(SUM($X$35:X170)=0,X171=1),Y171,"") -> 
G172: 149 | H172: 14.9 | I172: 0.6513014426 | J172: 0.0009836723404 | K172: 0.5221719444 | L172: 0.3499595776 | M172: 0.04064784061 | N172: 0.3831942851 | O172: 0.05441038272 | P172: 0.008538333151 | Q172: 0.04051667048 | R172: 0.04140222371 | S172: 0 | T172: 0 | W172: =IF(RAND()<poisson_parameter*model!K172,1,0) -> 0 | X172: =IF(RAND()<(K161^quadratic_condition*L161-$T$21)*$T$22*(1+pref_attach_on*SUM($X$35:X171)),1,0) -> 0 | Y172: 138 | Z172: =IF(AND(SUM($X$35:X171)=0,X172=1),Y172,"") -> 
G173: 150 | H173: 15 | I173: 0.6522051529 | J173: 0.0009649767678 | K173: 0.5230836966 | L173: 0.3507890153 | M173: 0.04390759422 | N173: 0.3822008109 | O173: 0.0538096338 | P173: 0.008241842113 | Q173: 0.04035604009 | R173: 0.04140222371 | S173: 0 | T173: 0 | W173: =IF(RAND()<poisson_parameter*model!K173,1,0) -> 0 | X173: =IF(RAND()<(K162^quadratic_condition*L162-$T$21)*$T$22*(1+pref_attach_on*SUM($X$35:X172)),1,0) -> 0 | Y173: 139 | Z173: =IF(AND(SUM($X$35:X172)=0,X173=1),Y173,"") -> 
G174: 151 | H174: 15.1 | I174: 0.65307319 | J174: 0.0009468180738 | K174: 0.5239673238 | L174: 0.351609778 | M174: 0.04741745072 | N174: 0.381227972 | O174: 0.05321467208 | P174: 0.007954870164 | Q174: 0.04016966487 | R174: 0.04140222371 | S174: 0 | T174: 0 | W174: =IF(RAND()<poisson_parameter*model!K174,1,0) -> 0 | X174: =IF(RAND()<(K163^quadratic_condition*L163-$T$21)*$T$22*(1+pref_attach_on*SUM($X$35:X173)),1,0) -> 0 | Y174: 140 | Z174: =IF(AND(SUM($X$35:X173)=0,X174=1),Y174,"") -> 
G175: 152 | H175: 15.2 | I175: 0.6539093243 | J175: 0.0009291732004 | K175: 0.5248240422 | L175: 0.3524229555 | M175: 0.05119486511 | N175: 0.3802737881 | O175: 0.05262570917 | P175: 0.007677160932 | Q175: 0.03995580653 | R175: 0.04140222371 | S175: 0 | T175: 0 | W175: =IF(RAND()<poisson_parameter*model!K175,1,0) -> 0 | X175: =IF(RAND()<(K164^quadratic_condition*L164-$T$21)*$T$22*(1+pref_attach_on*SUM($X$35:X174)),1,0) -> 0 | Y175: 141 | Z175: =IF(AND(SUM($X$35:X174)=0,X175=1),Y175,"") -> 
G176: 153 | H176: 15.3 | I176: 0.6547173165 | J176: 0.0009120204388 | K176: 0.525655041 | L176: 0.3532297078 | M176: 0.05525823083 | N176: 0.3793362688 | O176: 0.05204293248 | P176: 0.007408459522 | Q176: 0.03971267134 | R176: 0.04140222371 | S176: 0 | T176: 0 | W176: =IF(RAND()<poisson_parameter*model!K176,1,0) -> 0 | X176: =IF(RAND()<(K165^quadratic_condition*L165-$T$21)*$T$22*(1+pref_attach_on*SUM($X$35:X175)),1,0) -> 0 | Y176: 142 | Z176: =IF(AND(SUM($X$35:X175)=0,X176=1),Y176,"") -> 
G177: 154 | H177: 15.4 | I177: 0.6555009206 | J177: 0.0008953393452 | K177: 0.5264614844 | L177: 0.3540312648 | M177: 0.05962688334 | N177: 0.3784134104 | O177: 0.05146650665 | P177: 0.007148513052 | Q177: 0.03943842002 | R177: 0.04140222371 | S177: 0 | T177: 0 | W177: =IF(RAND()<poisson_parameter*model!K177,1,0) -> 0 | X177: =IF(RAND()<(K166^quadratic_condition*L166-$T$21)*$T$22*(1+pref_attach_on*SUM($X$35:X176)),1,0) -> 0 | Y177: 143 | Z177: =IF(AND(SUM($X$35:X176)=0,X177=1),Y177,"") -> 
G178: 155 | H178: 15.5 | I178: 0.656263886 | J178: 0.000879110664 | K178: 0.5272445142 | L178: 0.3548289259 | M178: 0.06432109428 | N178: 0.3775031949 | O178: 0.05089657485 | P178: 0.006897071132 | Q178: 0.03913118 | R178: 0.04140222371 | S178: 0 | T178: 0 | W178: =IF(RAND()<poisson_parameter*model!K178,1,0) -> 0 | X178: =IF(RAND()<(K167^quadratic_condition*L167-$T$21)*$T$22*(1+pref_attach_on*SUM($X$35:X177)),1,0) -> 0 | Y178: 144 | Z178: =IF(AND(SUM($X$35:X177)=0,X178=1),Y178,"") -> 
G179: 156 | H179: 15.6 | I179: 0.6570099593 | J179: 0.0008633162578 | K179: 0.5280052519 | L179: 0.3556240591 | M179: 0.06936205452 | N179: 0.3766035883 | O179: 0.05033325994 | P179: 0.006653886292 | Q179: 0.03878906043 | R179: 0.04140222371 | S179: 0 | T179: 0 | W179: =IF(RAND()<poisson_parameter*model!K179,1,0) -> 0 | X179: =IF(RAND()<(K168^quadratic_condition*L168-$T$21)*$T$22*(1+pref_attach_on*SUM($X$35:X178)),1,0) -> 0 | Y179: 145 | Z179: =IF(AND(SUM($X$35:X178)=0,X179=1),Y179,"") -> 
G180: 157 | H180: 15.7 | I180: 0.6577428851 | J180: 0.0008479390424 | K180: 0.5287448013 | L180: 0.3564180988 | M180: 0.07477184412 | N180: 0.3757125412 | O180: 0.04977666558 | P180: 0.006418714363 | Q180: 0.03841017006 | R180: 0.04140222371 | S180: 0 | T180: 0 | W180: =IF(RAND()<poisson_parameter*model!K180,1,0) -> 0 | X180: =IF(RAND()<(K169^quadratic_condition*L169-$T$21)*$T$22*(1+pref_attach_on*SUM($X$35:X179)),1,0) -> 0 | Y180: 146 | Z180: =IF(AND(SUM($X$35:X179)=0,X180=1),Y180,"") -> 
G181: 158 | H181: 15.8 | I181: 0.6584664047 | J181: 0.0008329629274 | K181: 0.5294642503 | L181: 0.357212543 | M181: 0.0805733872 | N181: 0.3748279896 | O181: 0.04922687721 | P181: 0.006191314824 | Q181: 0.03799263855 | R181: 0.04140222371 | S181: 0 | T181: 0 | W181: =IF(RAND()<poisson_parameter*model!K181,1,0) -> 0 | X181: =IF(RAND()<(K170^quadratic_condition*L170-$T$21)*$T$22*(1+pref_attach_on*SUM($X$35:X180)),1,0) -> 0 | Y181: 147 | Z181: =IF(AND(SUM($X$35:X180)=0,X181=1),Y181,"") -> 
G182: 159 | H182: 15.9 | I182: 0.6591842547 | J182: 0.0008183727623 | K182: 0.530164673 | L182: 0.3580089497 | M182: 0.08679038952 | N182: 0.373947857 | O182: 0.04868396292 | P182: 0.005971451097 | Q182: 0.03753464108 | R182: 0.04140222371 | S182: 0 | T182: 0 | W182: =IF(RAND()<poisson_parameter*model!K182,1,0) -> 0 | X182: =IF(RAND()<(K171^quadratic_condition*L171-$T$21)*$T$22*(1+pref_attach_on*SUM($X$35:X181)),1,0) -> 0 | Y182: 148 | Z182: =IF(AND(SUM($X$35:X181)=0,X182=1),Y182,"") -> 
G183: 160 | H183: 16 | I183: 0.6599001625 | J183: 0.0008041542859 | K183: 0.5308471315 | L183: 0.3588089315 | M183: 0.09344725628 | N183: 0.3730700582 | O183: 0.04814797416 | P183: 0.005758890814 | Q183: 0.03703442676 | R183: 0.04140222371 | S183: 0 | T183: 0 | W183: =IF(RAND()<poisson_parameter*model!K183,1,0) -> 0 | X183: =IF(RAND()<(K172^quadratic_condition*L172-$T$21)*$T$22*(1+pref_attach_on*SUM($X$35:X182)),1,0) -> 0 | Y183: 149 | Z183: =IF(AND(SUM($X$35:X182)=0,X183=1),Y183,"") -> 
G184: 161 | H184: 16.1 | I184: 0.6606178412 | J184: 0.000790294081 | K184: 0.5315126777 | L184: 0.3596141497 | M184: 0.100568988 | N184: 0.3721925041 | O184: 0.04761894646 | P184: 0.005553406056 | Q184: 0.03649035079 | R184: 0.04140222371 | S184: 0 | T184: 0 | W184: =IF(RAND()<poisson_parameter*model!K184,1,0) -> 0 | X184: =IF(RAND()<(K173^quadratic_condition*L173-$T$21)*$T$22*(1+pref_attach_on*SUM($X$35:X183)),1,0) -> 0 | Y184: 150 | Z184: =IF(AND(SUM($X$35:X183)=0,X184=1),Y184,"") -> 
G185: 162 | H185: 16.2 | I185: 0.6613409814 | J185: 0.0007767795322 | K185: 0.5321623544 | L185: 0.3604263062 | M185: 0.1081810518 | N185: 0.3713131084 | O185: 0.0470968999 | P185: 0.00535477355 | Q185: 0.03590091045 | R185: 0.04140222371 | S185: 0 | T185: 0 | W185: =IF(RAND()<poisson_parameter*model!K185,1,0) -> 0 | X185: =IF(RAND()<(K174^quadratic_condition*L174-$T$21)*$T$22*(1+pref_attach_on*SUM($X$35:X184)),1,0) -> 0 | Y185: 151 | Z185: =IF(AND(SUM($X$35:X184)=0,X185=1),Y185,"") -> 
G186: 163 | H186: 16.3 | I186: 0.662073241 | J186: 0.000763598787 | K186: 0.5327971966 | L186: 0.3612471342 | M186: 0.1163092258 | N186: 0.3704297958 | O186: 0.04658183958 | P186: 0.00516277485 | Q186: 0.03526478485 | R186: 0.04140222371 | S186: 0 | T186: 0 | W186: =IF(RAND()<poisson_parameter*model!K186,1,0) -> 0 | X186: =IF(RAND()<(K175^quadratic_condition*L175-$T$21)*$T$22*(1+pref_attach_on*SUM($X$35:X185)),1,0) -> 0 | Y186: 152 | Z186: =IF(AND(SUM($X$35:X185)=0,X186=1),Y186,"") -> 
G187: 164 | H187: 16.4 | I187: 0.6628182323 | J187: 0.000750740721 | K187: 0.5334182328 | L187: 0.3620783866 | M187: 0.1249794148 | N187: 0.3695405121 | O187: 0.04607375592 | P187: 0.004977196494 | Q187: 0.03458087825 | R187: 0.04140222371 | S187: 0 | T187: 0 | W187: =IF(RAND()<poisson_parameter*model!K187,1,0) -> 0 | X187: =IF(RAND()<(K176^quadratic_condition*L176-$T$21)*$T$22*(1+pref_attach_on*SUM($X$35:X186)),1,0) -> 0 | Y187: 153 | Z187: =IF(AND(SUM($X$35:X186)=0,X187=1),Y187,"") -> 
G188: 165 | H188: 16.5 | I188: 0.6635795067 | J188: 0.0007381949042 | K188: 0.5340264847 | L188: 0.3629218236 | M188: 0.1342174338 | N188: 0.368643236 | O188: 0.04557262496 | P188: 0.004797830131 | Q188: 0.03384836643 | R188: 0.04140222371 | S188: 0 | T188: 0 | W188: =IF(RAND()<poisson_parameter*model!K188,1,0) -> 0 | X188: =IF(RAND()<(K177^quadratic_condition*L177-$T$21)*$T$22*(1+pref_attach_on*SUM($X$35:X187)),1,0) -> 0 | Y188: 154 | Z188: =IF(AND(SUM($X$35:X187)=0,X188=1),Y188,"") -> 
G189: 166 | H189: 16.6 | I189: 0.6643605353 | J189: 0.000725951571 | K189: 0.5346229682 | L189: 0.3637791966 | M189: 0.1440487602 | N189: 0.3677359933 | O189: 0.04507840841 | P189: 0.004624472636 | Q189: 0.03306674567 | R189: 0.04140222371 | S189: 0 | T189: 0 | W189: =IF(RAND()<poisson_parameter*model!K189,1,0) -> 0 | X189: =IF(RAND()<(K178^quadratic_condition*L178-$T$21)*$T$22*(1+pref_attach_on*SUM($X$35:X188)),1,0) -> 0 | Y189: 155 | Z189: =IF(AND(SUM($X$35:X188)=0,X189=1),Y189,"") -> 
G190: 167 | H190: 16.7 | I190: 0.6651646877 | J190: 0.000714001592 | K190: 0.5352086931 | L190: 0.3646522314 | M190: 0.1544982504 | N190: 0.3668168728 | O190: 0.04459105379 | P190: 0.004456926206 | Q190: 0.03223588332 | R190: 0.04140222371 | S190: 0 | T190: 0 | W190: =IF(RAND()<poisson_parameter*model!K190,1,0) -> 0 | X190: =IF(RAND()<(K179^quadratic_condition*L179-$T$21)*$T$22*(1+pref_attach_on*SUM($X$35:X189)),1,0) -> 0 | Y190: 156 | Z190: =IF(AND(SUM($X$35:X189)=0,X190=1),Y190,"") -> 
G191: 168 | H191: 16.8 | I191: 0.665995207 | J191: 0.0007023364468 | K191: 0.535784662 | L191: 0.365542609 | M191: 0.1655898235 | N191: 0.3658840436 | O191: 0.04411049442 | P191: 0.004294998437 | Q191: 0.031356069 | R191: 0.04140222371 | S191: 0 | T191: 0 | W191: =IF(RAND()<poisson_parameter*model!K191,1,0) -> 0 | X191: =IF(RAND()<(K180^quadratic_condition*L180-$T$21)*$T$22*(1+pref_attach_on*SUM($X$35:X190)),1,0) -> 0 | Y191: 157 | Z191: =IF(AND(SUM($X$35:X190)=0,X191=1),Y191,"") -> 
G192: 169 | H192: 16.9 | I192: 0.6668551818 | J192: 0.0006909481988 | K192: 0.5363518699 | L192: 0.3664519432 | M192: 0.1773461097 | N192: 0.3649357752 | O192: 0.04363664934 | P192: 0.004138502388 | Q192: 0.03042806498 | R192: 0.04140222371 | S192: 0 | T192: 0 | W192: =IF(RAND()<poisson_parameter*model!K192,1,0) -> 0 | X192: =IF(RAND()<(K181^quadratic_condition*L181-$T$21)*$T$22*(1+pref_attach_on*SUM($X$35:X191)),1,0) -> 0 | Y192: 158 | Z192: =IF(AND(SUM($X$35:X191)=0,X192=1),Y192,"") -> 
G193: 170 | H193: 17 | I193: 0.6677475149 | J193: 0.0006798294707 | K193: 0.536911302 | L193: 0.3673817576 | M193: 0.1897880664 | N193: 0.3639704587 | O193: 0.04316942329 | P193: 0.003987256633 | Q193: 0.02945315402 | R193: 0.04140222371 | S193: 0 | T193: 0 | W193: =IF(RAND()<poisson_parameter*model!K193,1,0) -> 0 | X193: =IF(RAND()<(K182^quadratic_condition*L182-$T$21)*$T$22*(1+pref_attach_on*SUM($X$35:X192)),1,0) -> 0 | Y193: 159 | Z193: =IF(AND(SUM($X$35:X192)=0,X193=1),Y193,"") -> 
G194: 171 | H194: 17.1 | I194: 0.66867489 | J194: 0.0006689734203 | K194: 0.5374639322 | L194: 0.3683334601 | M194: 0.2029345637 | N194: 0.3629866293 | O194: 0.04270870659 | P194: 0.003841085294 | Q194: 0.02843318285 | R194: 0.04140222371 | S194: 0 | T194: 0 | W194: =IF(RAND()<poisson_parameter*model!K194,1,0) -> 0 | X194: =IF(RAND()<(K183^quadratic_condition*L183-$T$21)*$T$22*(1+pref_attach_on*SUM($X$35:X193)),1,0) -> 0 | Y194: 160 | Z194: =IF(AND(SUM($X$35:X193)=0,X194=1),Y194,"") -> 
G195: 172 | H195: 17.2 | I195: 0.6696397353 | J195: 0.0006583737168 | K195: 0.5380107199 | L195: 0.3693083154 | M195: 0.2168019448 | N195: 0.3619829899 | O195: 0.04225437505 | P195: 0.003699818071 | Q195: 0.02737059897 | R195: 0.04140222371 | S195: 0 | T195: 0 | W195: =IF(RAND()<poisson_parameter*model!K195,1,0) -> 0 | X195: =IF(RAND()<(K184^quadratic_condition*L184-$T$21)*$T$22*(1+pref_attach_on*SUM($X$35:X194)),1,0) -> 0 | Y195: 161 | Z195: =IF(AND(SUM($X$35:X194)=0,X195=1),Y195,"") -> 
G196: 173 | H196: 17.3 | I196: 0.6706441859 | J196: 0.0006480245159 | K196: 0.5385526072 | L196: 0.3703074169 | M196: 0.2314035635 | N196: 0.3609584354 | O196: 0.04180629004 | P196: 0.003563290247 | Q196: 0.02626847851 | R196: 0.04140222371 | S196: 0 | T196: 0 | W196: =IF(RAND()<poisson_parameter*model!K196,1,0) -> 0 | X196: =IF(RAND()<(K185^quadratic_condition*L185-$T$21)*$T$22*(1+pref_attach_on*SUM($X$35:X195)),1,0) -> 0 | Y196: 162 | Z196: =IF(AND(SUM($X$35:X195)=0,X196=1),Y196,"") -> 
G197: 174 | H197: 17.4 | I197: 0.6716900449 | J197: 0.0006379204356 | K197: 0.5390905149 | L197: 0.371331658 | M197: 0.2467493103 | N197: 0.3599120767 | O197: 0.04136429845 | P197: 0.003431342694 | Q197: 0.0251305425 | R197: 0.04140222371 | S197: 0 | T197: 0 | W197: =IF(RAND()<poisson_parameter*model!K197,1,0) -> 0 | X197: =IF(RAND()<(K186^quadratic_condition*L186-$T$21)*$T$22*(1+pref_attach_on*SUM($X$35:X196)),1,0) -> 0 | Y197: 163 | Z197: =IF(AND(SUM($X$35:X196)=0,X197=1),Y197,"") -> 
G198: 175 | H198: 17.5 | I198: 0.6727787442 | J198: 0.0006280565291 | K198: 0.5396253381 | L198: 0.3723817022 | M198: 0.2628451317 | N198: 0.3588432642 | O198: 0.04092823297 | P198: 0.003303821853 | Q198: 0.02396115934 | R198: 0.04140222371 | S198: 0 | T198: 0 | W198: =IF(RAND()<poisson_parameter*model!K198,1,0) -> 0 | X198: =IF(RAND()<(K187^quadratic_condition*L187-$T$21)*$T$22*(1+pref_attach_on*SUM($X$35:X197)),1,0) -> 0 | Y198: 164 | Z198: =IF(AND(SUM($X$35:X197)=0,X198=1),Y198,"") -> 
G199: 176 | H199: 17.6 | I199: 0.6739113065 | J199: 0.0006184282575 | K199: 0.5401579414 | L199: 0.3734579554 | M199: 0.2796925566 | N199: 0.3577516098 | O199: 0.04049791233 | P199: 0.003180579712 | Q199: 0.02276533079 | R199: 0.04140222371 | S199: 0 | T199: 0 | W199: =IF(RAND()<poisson_parameter*model!K199,1,0) -> 0 | X199: =IF(RAND()<(K188^quadratic_condition*L188-$T$21)*$T$22*(1+pref_attach_on*SUM($X$35:X198)),1,0) -> 0 | Y199: 165 | Z199: =IF(AND(SUM($X$35:X198)=0,X199=1),Y199,"") -> 
G200: 177 | H200: 17.7 | I200: 0.6750883094 | J200: 0.0006090314599 | K200: 0.5406891534 | L200: 0.3745605385 | M200: 0.2972882403 | N200: 0.3566370064 | O200: 0.0400731419 | P200: 0.00306147376 | Q200: 0.02154865971 | R200: 0.04140222371 | S200: 0 | T200: 0 | W200: =IF(RAND()<poisson_parameter*model!K200,1,0) -> 0 | X200: =IF(RAND()<(K189^quadratic_condition*L189-$T$21)*$T$22*(1+pref_attach_on*SUM($X$35:X199)),1,0) -> 0 | Y200: 166 | Z200: =IF(AND(SUM($X$35:X199)=0,X200=1),Y200,"") -> 
... 822 more rows

Sheet results

Sheet Preparation

Sheet Explanation Parameters

Sheet Explanation Output

Sheet Running a Simulation
